Workbook

Sheet Overview
A1: GENERAL | C1: FILL IN THE CELLS WITH THE LIGHT BLUE BACKGROUND
A2: Activity Name | B2: Our Awesome Project | G2: The buttons below are to be used by the bidder
A3: Activity Main Domain | B3: Space Segment | C3: Select the main segment of your activity
A4: Total Price in Euro | B4: =IF(B9=2,SUM(Consortium!F3:F14)+SUM(Consortium!N3:N15),SUM(Consortium!F3:F14)) -> 1315000 | C4: Sum of Consortium Price - fill Consortium sheet
A5: Total Cost in Euro | B5: =IF(B9=2,SUM(Consortium!E3:E15)+SUM(Consortium!M3:M15),SUM(Consortium!E3:E15)) -> 2430000 | C5: Sum of Consortium Cost - fill Consortium sheet
A6: Prime Name | B6: =Consortium!B3 -> Our company | C6: From Consortium sheet
A7: Prime Country | B7: =Consortium!C3 -> IT | C7: From Consortium sheet
A8: InCubed Development Cycle | B8: De-risking + Product Development | C8: Select the chosen InCubed Development Cycle
A9: Number of Phases | B9: 2 | C9: If contract is not phased enter 1. Maximum 2 phases with this tool.
A10: Number of Subcos in Phase 1 | B10: 1 | C10: Maximum 11 subcos with this tool
A11: Number of Subcos in Phase 2 | B11: 2 | C11: Maximum 11 subcos with this tool
A12: =IF(B9=1,"Number of Milestones","Number of Milestones in Phase 1") -> Number of Milestones in Phase 1 | B12: 2 | C12: Maximum 8 milestones with this tool, suggested maximum two milestones per year.
A13: =IF(B9=2,"Number of Milestones in Phase 2","") -> Number of Milestones in Phase 2 | B13: 5 | C13: Maximum 8 milestones with this tool, suggested maximum two milestones per year.
A14: =IF(B9=1,"Advance Foreseen", "Advance Foreseen in Phase 1") -> Advance Foreseen in Phase 1 | B14: =IF(COUNTIF(Consortium!G3:G14,"Yes")>0,"Yes","No") -> Yes | C14: From Consortium sheet
A15: =IF(B9=2, "Advance Foreseen in Phase 2","") -> Advance Foreseen in Phase 2 | B15: =IF(COUNTIF(Consortium!O3:O14,"Yes")>0,"Yes","No") -> Yes | C15: From Consortium sheet
A16: Expected Contract Signature | B16: 2023-08-17 | C16: Use format dd/mm/yyyy. It should be later than today
A17: Final Delivery Date | B17: =B18-4*7 -> 2024-12-18 | C17: 4 weeks before final milestone - fill MPP sheet
A18: End of Contract | B18: =IF(B9=1,MAX(MPP!C5:C12),MAX(MPP!C17:C24)) -> 2025-01-15 | C18: Latest milestone in the MPP - fill MPP sheet
A20: Agree to use digital signatures only | B20: yes | C20: Select YES if you are OK to use only e-signing digital tools, or NO if you foresee to use also handwritten scanned signatures
A22: PHASE(S) | C22: Date of achievement must consistent with last milestone of Phase 1
A23: Intermediate Phase | B23: date of achievement | C23: Draft report to be submitted 4 weeks before | D23: deadline report | E23: -4 | F23: in weeks
A24: 1 | B24: =MAX(MPP!C5:C12) -> 2023-09-30 | C24: In case of phased contract, this is last milestone of Phase 1 | D24: =IF(B9>1,"The draft Phase 1 Report, shall be submitted by email in electronic searchable, indexed and not encrypted PDF and original (WORD)" & "format for approval, to the Agency’s Technical Officer specified in Article 5, Clause 5, Sub-Clause 5.1 a) of the Contract, not later than " & TEXT(B24 - 7*references!$C$47, "dd mmmm yyyy"),"") -> The draft Phase 1 Report, shall be submitted by email in electronic searchable, indexed and not encrypted PDF and original (WORD)format for approval, to the Agency’s Technical Officer specified in Article 5, Clause 5, Sub-Clause 5.1 a) of the Contract, not later than 02 September 2023
A25: 2 | D25: =IF(B9>2,"The draft Phase 2 Report, shall be submitted by email in electronic searchable, indexed and not encrypted PDF and original (WORD)" & "format for approval, to the Agency’s Technical Officer specified in Article 5, Clause 5, Sub-Clause 5.1 a) of the Contract, not later than " & TEXT(B25 - 7*references!$C$47, "dd mmmm yyyy"),"") ->  | G25: The buttons below are only to be used by ESA
G26: They require a password
A27: Is Software Development Foreseen? | B27: no
A28: Is Hardware Development Foreseen? | B28: no
A29: Do you request the waiver for HW ownership? | B29: no
A30: BACKGROUND INTELLECTUAL PROPERTY RIGHTS
A31: how many BIPR items do you have? | B31: 1 | C31: Maximum 4 items. Please fill in BIPRs tab of the file.
A33: ADDITIONAL INFO
A34: Source of co-funding: | B34: Internal Funds
A35: If other, please specify:
A37: Is your company based in EU? | B37: yes
A39: Type of ESA Price | B39: Firm Fixed Price

Sheet Flight Items (hidden)
A1: Are there any flight items foreseen ? | C1: ="as defined in " &#REF! -> 
B2: no
A4: How many ? | B4: 2 | C4: maximum 4 in this tool
A7: Item name | B7: delivery date | C7: alternative delivery + X months | E7: name of item is name of flight item/payload/spacecraft
D8: 1 | E8: delivery date is the date at which the item shall be delivered to the launch authority
D9: 2 | E9: alternative deadline : date of the deadline for proposing an alternative launch in case the first choice is not available
D10: 3
D11: 4

Sheet Consortium
A1: # of Subcos | B1: Phase 1 | I1: # of Subcos | J1: Phase 2
A2: =Overview!B10 -> 1 | B2: Entity | C2: Country (ISO Code) | D2: Role | E2: Cost in Euro | F2: Price in Euro | G2: Advance Requested | I2: =Overview!B11 -> 2 | J2: Entity | K2: Country (ISO Code) | L2: Role | M2: Cost in Euro | N2: Price in Euro | O2: Advance Requested
B3: Our company | C3: IT | D3: Prime | E3: 1000000 | F3: 500000 | G3: Yes | J3: Our company | K3: IT | L3: Prime | M3: 1000000 | N3: 600000 | O3: Yes
A4: 1 | B4: Subco 1 | C4: AT | D4: Subco | E4: 50000 | F4: 25000 | G4: Yes | I4: 1 | J4: Subco 1 | K4: AT | L4: Subco | M4: 200000 | N4: 100000 | O4: No
A5: 2 | G5: No | I5: 2 | J5: Subco 2 | K5: DE | L5: Subco | M5: 180000 | N5: 90000 | O5: No
A6: 3 | G6: No | I6: 3 | O6: No
A7: 4 | G7: No | I7: 4 | O7: No
A8: 5 | G8: No | I8: 5 | O8: No
A9: 6 | G9: No | I9: 6 | O9: No
A10: 7 | G10: No | I10: 7 | O10: No
A11: 8 | G11: No | I11: 8 | O11: No
A12: 9 | G12: No | I12: 9 | O12: No
A13: 10 | G13: No | I13: 10 | O13: No
A14: 11 | G14: No | I14: 11 | O14: No
A15: 12 | I15: 12

Sheet MPP
C1: Total Phase 1 = | D1: =SUM(Consortium!F3:F14) -> 525000 | R1: Total Phase 2 = | S1: =SUM(Consortium!N3:N14) -> 790000
B2: Phase 1 - Milestone Payment Plan | F2: Scroll down to fill Prime/Subcos Payments Breakdown tables!
A3: # of Milestones
A4: =Overview!B12 -> 2 | B4: Milestone Description | C4: Schedule Date | D4: Amount in EUR | E4: Country (ISO Code)
A5: 1 | B5: Milestone Description | C5: 2023-07-16 | D5: 225000 | E5: IT | G5: =LOOKUP(2,1/(B5:B12<>""),B5:B12) -> Milestone Description
A6: 2 | B6: Milestone Description | C6: 2023-09-30 | D6: 300000 | E6: IT
A7: 3
A8: 4
A9: 5
A10: 6
A11: 7
A12: 8
A13: 9 | D13: =IF(A13>$A$4,0,$D$1/$A$4) -> 0
B14: Phase 2 - Milestone Payment Plan
A15: # of Milestones
A16: =Overview!B13 -> 5 | B16: Milestone Description | C16: Schedule Date | D16: Amount in EUR | E16: Country (ISO Code)
A17: 1 | B17: Milestone Description | C17: 2023-10-30 | D17: 200000 | E17: IT
A18: 2 | B18: Milestone Description | C18: 2024-01-30 | D18: 200000 | E18: IT
A19: 3 | B19: Milestone Description | C19: 2024-06-15 | D19: 150000 | E19: IT
A20: 4 | B20: Milestone Description | C20: 2024-10-15 | D20: 200000 | E20: IT
A21: 5 | B21: Milestone Description | C21: 2025-01-15 | D21: 40000 | E21: IT
A22: 6
A23: 7
A24: 8
A25: 9 | D25: =IF(A25>$A$16,0,$S$1/$A$16) -> 0
B27: Phase 1 - Breakdown of Payments
C28: =Overview!B10 -> 1 | D28: 1 | E28: 2 | F28: 3 | G28: 4 | H28: 5 | I28: 6 | J28: 7 | K28: 8 | L28: 9 | M28: 10 | N28: 11
B29: Milestone | C29: =Consortium!B3&CHAR(10)& "("&Consortium!C3&")" -> Our company (IT) | D29: =Consortium!B4&CHAR(10)& "("&Consortium!C4&")" -> Subco 1 (AT) | E29: =Consortium!B5&CHAR(10)& "("&Consortium!C5&")" -> () | F29: =Consortium!B6&CHAR(10)& "("&Consortium!C6&")" -> () | G29: =Consortium!B7&CHAR(10)& "("&Consortium!C7&")" -> () | H29: =Consortium!B8&CHAR(10)& "("&Consortium!C8&")" -> () | I29: =Consortium!B9&CHAR(10)& "("&Consortium!C9&")" -> () | J29: =Consortium!B10&CHAR(10)& "("&Consortium!C10&")" -> () | K29: =Consortium!B11&CHAR(10)& "("&Consortium!C11&")" -> () | L29: =Consortium!B12&CHAR(10)& "("&Consortium!C12&")" -> () | M29: =Consortium!B13&CHAR(10)& "("&Consortium!C13&")" -> () | N29: =Consortium!B14&CHAR(10)& "("&Consortium!C14&")" -> ()
A30: 1 | B30: Milestone Description | C30: 210000 | D30: 15000
A31: 2 | B31: Milestone Description | C31: 290000 | D31: 10000
A32: 3
A33: 4
A34: 5
A35: 6
A36: 7
A37: 8
A38: 9
B40: Phase 2 - Breakdown of Payments
C41: =Overview!B11 -> 2 | D41: =D28 -> 1 | E41: 2 | F41: 3 | G41: 4 | H41: 5 | I41: 6 | J41: 7 | K41: 8 | L41: 9 | M41: 10 | N41: 11
B42: =B29 -> Milestone | C42: =Consortium!J3&CHAR(10)&"("&Consortium!K3&")" -> Our company (IT) | D42: =Consortium!J4&CHAR(10)&"("&Consortium!K4&")" -> Subco 1 (AT) | E42: =Consortium!J5&CHAR(10)&"("&Consortium!K5&")" -> Subco 2 (DE) | F42: =Consortium!J6&CHAR(10)&"("&Consortium!K6&")" -> () | G42: =Consortium!J7&CHAR(10)&"("&Consortium!K7&")" -> () | H42: =Consortium!J8&CHAR(10)&"("&Consortium!K8&")" -> () | I42: =Consortium!J9&CHAR(10)&"("&Consortium!K9&")" -> () | J42: =Consortium!J10&CHAR(10)&"("&Consortium!K10&")" -> () | K42: =Consortium!J11&CHAR(10)&"("&Consortium!K11&")" -> () | L42: =Consortium!J12&CHAR(10)&"("&Consortium!K12&")" -> () | M42: =Consortium!J13&CHAR(10)&"("&Consortium!K13&")" -> () | N42: =Consortium!J14&CHAR(10)&"("&Consortium!K14&")" -> ()
A43: 1 | B43: Milestone Description | C43: 140000 | D43: 40000 | E43: 20000
A44: 2 | B44: Milestone Description | C44: 160000 | D44: 20000 | E44: 20000
A45: 3 | B45: Milestone Description | C45: 110000 | D45: 20000 | E45: 20000
A46: 4 | B46: Milestone Description | C46: 170000 | D46: 10000 | E46: 20000
A47: 5 | B47: Milestone Description | C47: 20000 | D47: 10000 | E47: 10000
A48: 6
A49: 7
A50: 8
A51: 9

Sheet ADV
C1: # of Subcos | D1: Phase 1 - Advance Payments
C2: =Overview!B10 -> 1 | D2: Prime (P) / Subco (SI) | E2: Company Name | F2: Entity Code | G2: Country (ISO Code) | H2: Advance Payment (in EUR) | I2: Off-Set against | J2: Off-set by (amount in EUR) | K2: Condition for release of the Advance Payment (if applicable)
A3: =Consortium!$G$3 -> Yes | D3: P | E3: Our Company | F3: 100 xxx-xxx | G3: IT | H3: 50000 | I3: Milestone 1 | J3: 25000 | K3: After signature of the Contract by both Parties
A4: =$A$3 -> Yes | I4: Milestone 2 | J4: 25000
A5: Yes
A6: Yes
A7: Yes
A8: Yes
A9: Yes
A10: Yes
A11: =Consortium!$G$4 -> Yes | B11: 1 | C11: 1 | D11: SI | E11: Subco 1 | F11: 100 xxx-xxx | G11: AT | H11: 4000 | I11: Milestone 1 | J11: 2000 | K11: After signature of the Contract by both Parties
A12: =Consortium!$G$4 -> Yes | C12: 1 | I12: Milestone 2 | J12: 2000
A13: =Consortium!$G$4 -> Yes | C13: 1
A14: =Consortium!$G$4 -> Yes | C14: 1
A15: =Consortium!$G$4 -> Yes | C15: 1
A16: =Consortium!$G$4 -> Yes | C16: 1
A17: =Consortium!$G$4 -> Yes | C17: 1
A18: =Consortium!$G$4 -> Yes | C18: 1
A19: =Consortium!$G$5 -> No | B19: =B11+1 -> 2 | C19: 2
A20: =Consortium!$G$5 -> No | C20: 2
A21: =Consortium!$G$5 -> No | C21: 2
A22: =Consortium!$G$5 -> No | C22: 2
A23: =Consortium!$G$5 -> No | C23: 2
A24: =Consortium!$G$5 -> No | C24: 2
A25: =Consortium!$G$5 -> No | C25: 2
A26: =Consortium!$G$5 -> No | C26: 2
A27: =Consortium!$G$6 -> No | B27: =B19+1 -> 3 | C27: 3
A28: =Consortium!$G$6 -> No | C28: 3
A29: =Consortium!$G$6 -> No | C29: 3
A30: =Consortium!$G$6 -> No | C30: 3
A31: =Consortium!$G$6 -> No | C31: 3
A32: =Consortium!$G$6 -> No | C32: 3
A33: =Consortium!$G$6 -> No | C33: 3
A34: =Consortium!$G$6 -> No | C34: 3
A35: =Consortium!$G$7 -> No | B35: =B27+1 -> 4 | C35: 4
A36: =Consortium!$G$7 -> No | C36: 4
A37: =Consortium!$G$7 -> No | C37: 4
A38: =Consortium!$G$7 -> No | C38: 4
A39: =Consortium!$G$7 -> No | C39: 4
A40: =Consortium!$G$7 -> No | C40: 4
A41: =Consortium!$G$7 -> No | C41: 4
A42: =Consortium!$G$7 -> No | C42: 4
A43: =Consortium!$G$8 -> No | B43: =B35+1 -> 5 | C43: 5
A44: =Consortium!$G$8 -> No | C44: 5
A45: =Consortium!$G$8 -> No | C45: 5
A46: =Consortium!$G$8 -> No | C46: 5
A47: =Consortium!$G$8 -> No | C47: 5
A48: =Consortium!$G$8 -> No | C48: 5
A49: =Consortium!$G$8 -> No | C49: 5
A50: =Consortium!$G$8 -> No | C50: 5
A51: =Consortium!$G$9 -> No | B51: =B43+1 -> 6 | C51: 6
A52: =Consortium!$G$9 -> No | C52: 6
A53: =Consortium!$G$9 -> No | C53: 6
A54: =Consortium!$G$9 -> No | C54: 6
A55: =Consortium!$G$9 -> No | C55: 6
A56: =Consortium!$G$9 -> No | C56: 6
A57: =Consortium!$G$9 -> No | C57: 6
A58: =Consortium!$G$9 -> No | C58: 6
A59: =Consortium!$G$10 -> No | B59: =B51+1 -> 7 | C59: 7
A60: =Consortium!$G$10 -> No | C60: 7
A61: =Consortium!$G$10 -> No | C61: 7
A62: =Consortium!$G$10 -> No | C62: 7
A63: =Consortium!$G$10 -> No | C63: 7
A64: =Consortium!$G$10 -> No | C64: 7
A65: =Consortium!$G$10 -> No | C65: 7
A66: =Consortium!$G$10 -> No | C66: 7
A67: =Consortium!$G$11 -> No | B67: =B59+1 -> 8 | C67: 8
A68: =Consortium!$G$11 -> No | C68: 8
A69: =Consortium!$G$11 -> No | C69: 8
A70: =Consortium!$G$11 -> No | C70: 8
A71: =Consortium!$G$11 -> No | C71: 8
A72: =Consortium!$G$11 -> No | C72: 8
A73: =Consortium!$G$11 -> No | C73: 8
A74: =Consortium!$G$11 -> No | C74: 8
A75: =Consortium!$G$12 -> No | B75: =B67+1 -> 9 | C75: 9
A76: =Consortium!$G$12 -> No | C76: 9
A77: =Consortium!$G$12 -> No | C77: 9
A78: =Consortium!$G$12 -> No | C78: 9
A79: =Consortium!$G$12 -> No | C79: 9
A80: =Consortium!$G$12 -> No | C80: 9
A81: =Consortium!$G$12 -> No | C81: 9
A82: =Consortium!$G$12 -> No | C82: 9
A83: =Consortium!$G$13 -> No | B83: =B75+1 -> 10 | C83: 10
A84: =Consortium!$G$13 -> No | C84: 10
A85: =Consortium!$G$13 -> No | C85: 10
A86: =Consortium!$G$13 -> No | C86: 10
A87: =Consortium!$G$13 -> No | C87: 10
A88: =Consortium!$G$13 -> No | C88: 10
A89: =Consortium!$G$13 -> No | C89: 10
A90: =Consortium!$G$13 -> No | C90: 10
A91: =Consortium!$G$14 -> No | B91: =B83+1 -> 11 | C91: 11
A92: =Consortium!$G$14 -> No | C92: 11
A93: =Consortium!$G$14 -> No | C93: 11
A94: =Consortium!$G$14 -> No | C94: 11
A95: =Consortium!$G$14 -> No | C95: 11
A96: =Consortium!$G$14 -> No | C96: 11
A97: =Consortium!$G$14 -> No | C97: 11
A98: =Consortium!$G$14 -> No | C98: 11
C102: # of Subcos | D102: Phase 2 - Advance Payments
C103: =Overview!B11 -> 2 | D103: Prime (P) / Subco (SI) | E103: Company Name | F103: Entity Code | G103: Country (ISO Code) | H103: Advance Payment (in EUR) | I103: Off-Set against | J103: Off-set by (amount in EUR) | K103: Condition for release of the Advance Payment (if applicable)
A104: =Consortium!$O$3 -> Yes | D104: P | E104: Our Company | F104: 100 xxx-xxx | G104: IT | H104: 50000 | I104: Milestone 1 | J104: 10000 | K104: After signature of the Contract by both Parties
A105: =Consortium!$O$3 -> Yes | I105: Milestone 2 | J105: 10000
A106: =Consortium!$O$3 -> Yes | I106: Milestone 3 | J106: 10000
A107: =Consortium!$O$3 -> Yes | I107: Milestone 4 | J107: 10000
A108: =Consortium!$O$3 -> Yes
A109: =Consortium!$O$3 -> Yes
A110: =Consortium!$O$3 -> Yes
A111: =Consortium!$O$3 -> Yes
A112: =Consortium!$O$4 -> No | B112: 1 | C112: 1
A113: =Consortium!$O$4 -> No | C113: 1
A114: =Consortium!$O$4 -> No | C114: 1
A115: =Consortium!$O$4 -> No | C115: 1
A116: =Consortium!$O$4 -> No | C116: 1
A117: =Consortium!$O$4 -> No | C117: 1
A118: =Consortium!$O$4 -> No | C118: 1
A119: =Consortium!$O$4 -> No | C119: 1
A120: =Consortium!$O$5 -> No | B120: =B112+1 -> 2 | C120: 2
A121: =Consortium!$O$5 -> No | C121: 2
A122: =Consortium!$O$5 -> No | C122: 2
A123: =Consortium!$O$5 -> No | C123: 2
A124: =Consortium!$O$5 -> No | C124: 2
A125: =Consortium!$O$5 -> No | C125: 2
A126: =Consortium!$O$5 -> No | C126: 2
A127: =Consortium!$O$5 -> No | C127: 2
A128: =Consortium!$O$6 -> No | B128: =B120+1 -> 3 | C128: 3
A129: =Consortium!$O$6 -> No | C129: 3
A130: =Consortium!$O$6 -> No | C130: 3
A131: =Consortium!$O$6 -> No | C131: 3
A132: =Consortium!$O$6 -> No | C132: 3
A133: =Consortium!$O$6 -> No | C133: 3
A134: =Consortium!$O$6 -> No | C134: 3
A135: =Consortium!$O$6 -> No | C135: 3
A136: =Consortium!$O$7 -> No | B136: =B128+1 -> 4 | C136: 4
A137: =Consortium!$O$7 -> No | C137: 4
A138: =Consortium!$O$7 -> No | C138: 4
A139: =Consortium!$O$7 -> No | C139: 4
A140: =Consortium!$O$7 -> No | C140: 4
A141: =Consortium!$O$7 -> No | C141: 4
A142: =Consortium!$O$7 -> No | C142: 4
A143: =Consortium!$O$7 -> No | C143: 4
A144: =Consortium!$O$8 -> No | B144: =B136+1 -> 5 | C144: 5
A145: =Consortium!$O$8 -> No | C145: 5
A146: =Consortium!$O$8 -> No | C146: 5
A147: =Consortium!$O$8 -> No | C147: 5
A148: =Consortium!$O$8 -> No | C148: 5
A149: =Consortium!$O$8 -> No | C149: 5
A150: =Consortium!$O$8 -> No | C150: 5
A151: =Consortium!$O$8 -> No | C151: 5
A152: =Consortium!$O$9 -> No | B152: =B144+1 -> 6 | C152: 6
A153: =Consortium!$O$9 -> No | C153: 6
A154: =Consortium!$O$9 -> No | C154: 6
A155: =Consortium!$O$9 -> No | C155: 6
A156: =Consortium!$O$9 -> No | C156: 6
A157: =Consortium!$O$9 -> No | C157: 6
A158: =Consortium!$O$9 -> No | C158: 6
A159: =Consortium!$O$9 -> No | C159: 6
A160: =Consortium!$O$10 -> No | B160: =B152+1 -> 7 | C160: 7
A161: =Consortium!$O$10 -> No | C161: 7
A162: =Consortium!$O$10 -> No | C162: 7
A163: =Consortium!$O$10 -> No | C163: 7
A164: =Consortium!$O$10 -> No | C164: 7
A165: =Consortium!$O$10 -> No | C165: 7
A166: =Consortium!$O$10 -> No | C166: 7
A167: =Consortium!$O$10 -> No | C167: 7
A168: =Consortium!$O$11 -> No | B168: =B160+1 -> 8 | C168: 8
A169: =Consortium!$O$11 -> No | C169: 8
A170: =Consortium!$O$11 -> No | C170: 8
A171: =Consortium!$O$11 -> No | C171: 8
A172: =Consortium!$O$11 -> No | C172: 8
A173: =Consortium!$O$11 -> No | C173: 8
A174: =Consortium!$O$11 -> No | C174: 8
A175: =Consortium!$O$11 -> No | C175: 8
A176: =Consortium!$O$12 -> No | B176: =B168+1 -> 9 | C176: 9
A177: =Consortium!$O$12 -> No | C177: 9
A178: =Consortium!$O$12 -> No | C178: 9
A179: =Consortium!$O$12 -> No | C179: 9
A180: =Consortium!$O$12 -> No | C180: 9
A181: =Consortium!$O$12 -> No | C181: 9
A182: =Consortium!$O$12 -> No | C182: 9
A183: =Consortium!$O$12 -> No | C183: 9
A184: =Consortium!$O$13 -> No | B184: =B176+1 -> 10 | C184: 10
A185: =Consortium!$O$13 -> No | C185: 10
A186: =Consortium!$O$13 -> No | C186: 10
A187: =Consortium!$O$13 -> No | C187: 10
A188: =Consortium!$O$13 -> No | C188: 10
A189: =Consortium!$O$13 -> No | C189: 10
A190: =Consortium!$O$13 -> No | C190: 10
A191: =Consortium!$O$13 -> No | C191: 10
A192: =Consortium!$O$14 -> No | B192: =B184+1 -> 11 | C192: 11
A193: =Consortium!$O$14 -> No | C193: 11
A194: =Consortium!$O$14 -> No | C194: 11
A195: =Consortium!$O$14 -> No | C195: 11
A196: =Consortium!$O$14 -> No | C196: 11
A197: =Consortium!$O$14 -> No | C197: 11
A198: =Consortium!$O$14 -> No | C198: 11
A199: =Consortium!$O$14 -> No | C199: 11

Sheet Contact
A1: Main Contact Person
B3: Prefix (Ms/Mr/Dr/etc.) | C3: Mr.
B4: First Name | C4: John
B5: Last Name | C5: Doe
B6: Job Title | C6: Head of Programs
B7: Physical Address | C7: My Address, 123
B8: postal code | C8: 123-456
B9: City | C9: My City
B10: Country | C10: My Country
B11: Complete Physical Address | C11: My Address, 123 123-456 My City, My Country
A13: Technical Officer - Company Side
B15: Prefix (Ms/Mr/Dr/etc.) | C15: Mr.
B16: First Name | C16: John
B17: Last Name | C17: Doe
B18: Complete Physical Address | C18: My Address, 123 123-456 My City, My Country
B19: Phone | C19: (+XX) 123 456 789
B20: Email | C20: myemail@myawesomecompany.com
A22: Contract Officer - Company Side
B24: Prefix (Ms/Mr/Dr/etc.) | C24: Ms.
B25: First Name | C25: Julianne
B26: Last Name | C26: Foo
B27: Complete Physical Address | C27: My Address, 123 123-456 My City, My Country
B28: Phone | C28: (+XX) 123 456 789
B29: Email | C29: myemail@myawesomecompany.com
A31: Data Protection Officer - Company Side
B33: Prefix (Ms/Mr/Dr/etc.) | C33: Mr.
B34: First Name | C34: Mark
B35: Last Name | C35: Smith
B36: Complete Physical Address | C36: My Address, 123 123-456 My City, My Country
B37: Phone | C37: (+XX) 123 456 789
B38: Email | C38: myemail@myawesomecompany.com

Sheet FlightItem
A1: existence of a flight item | B1: Yes
A2: name of the flight item | B2: some sub-system
A3: Deadline to deliver the hardware to the launch authority | B3: 2024-01-15
A4: Deadline for alternative flight opportunity | B4: 2024-06-15
A5: Is the satellite operator different from the prime contractor ? | B5: No
C33: No

Sheet Deliverables
B1: Documents (InCubed Deliverables List is available at: https://incubed.esa.int/wp-content/uploads/sites/2/2021/09/InCubed-deliverables.xlsx) | E1: Review Data Package N: New issue to be delivered at the indicated review U: Updated issue to be delivered at the indicated review C: Document already delivered and under configuration control
B2: ID | C2: TITLE | D2: ACRONYM | E2: =IF(Overview!B3="Space Segment","RR",IF(Overview!B3="Ground Segment","RR",IF(Overview!B3="Data Segment","RR","MS1"))) -> RR | F2: =IF(Overview!B3="Space Segment","PDR",IF(Overview!B3="Ground Segment","PDR",IF(Overview!B3="Data Segment","CDR","MS2"))) -> PDR | G2: =IF(Overview!B3="Space Segment","CDR",IF(Overview!B3="Ground Segment","CDR",IF(Overview!B3="Data Segment","FAT","MS3"))) -> CDR | H2: =IF(Overview!B3="Space Segment","TRR",IF(Overview!B3="Ground Segment","FAT",IF(Overview!B3="Data Segment","SAT","MS4"))) -> TRR | I2: =IF(Overview!B3="Space Segment","QAR",IF(Overview!B3="Ground Segment","SAT",IF(Overview!B3="Data Segment","DCCR","MS5"))) -> QAR | J2: =IF(Overview!B3="Space Segment","IOCR",IF(Overview!B3="Ground Segment","DCCR",IF(Overview!B3="Data Segment","FR","MS6"))) -> IOCR | K2: =IF(Overview!B3="Space Segment","DCCR",IF(Overview!B3="Ground Segment","FR",IF(Overview!B3="Data Segment","","MS7"))) -> DCCR | L2: =IF(Overview!B3="Space Segment","FR",IF(Overview!B3="Ground Segment","",IF(Overview!B3="Data Segment","","MS8"))) -> FR
B3: MANAGEMENT
A4: 1 | B4: =IF(Overview!$B$3="Space Segment", "S", IF(Overview!$B$3="Ground Segment","G","D"))&".MG"&TEXT(A4,"00") -> S.MG01 | C4: Configuration and Documentation Management Plan | D4: CMDP | E4: =IF(Overview!B3="","","N") -> N | F4: =IF(Overview!B3="","","U") -> U | I4: =IF(Overview!B3="Data Segment","C","") ->  | J4: =IF(OR(Overview!B3="Ground Segment",Overview!B3="Data Segment"),"C","") ->  | K4: =IF(OR(Overview!B3="Ground Segment",Overview!B3="Space Segment"),"C","") -> C | L4: =IF(Overview!B3="Space Segment","C","") -> C
A5: 2 | B5: =IF(Overview!$B$3="Space Segment", "S", IF(Overview!$B$3="Ground Segment","G","D"))&".MG"&TEXT(A5,"00") -> S.MG02 | C5: Risk Register | D5: RR | E5: =IF(Overview!B3="","","Monthly and at each progress meeting/review") -> Monthly and at each progress meeting/review
A6: 3 | B6: =IF(Overview!$B$3="Space Segment", "S", IF(Overview!$B$3="Ground Segment","G","D"))&".MG"&TEXT(A6,"00") -> S.MG03 | C6: Business Plan | D6: BP | E6: =IF(Overview!B3="","","N") -> N | F6: =IF(Overview!B3="","","U") -> U | G6: =IF(Overview!B3="","","U") -> U | H6: =IF(Overview!B3="","","U") -> U | I6: =IF(Overview!B3="","","U") -> U | J6: =IF(Overview!B3="","","U") -> U | K6: =IF(OR(Overview!B3="Ground Segment",Overview!B3="Space Segment"),"U","") -> U | L6: =IF(Overview!B3="Space Segment","U","") -> U
A7: 4 | B7: =IF(Overview!$B$3="Space Segment", "S", IF(Overview!$B$3="Ground Segment","G","D"))&".MG"&TEXT(A7,"00") -> S.MG04 | C7: Document List | D7: DL | E7: =IF(Overview!B3="","","N") -> N | F7: =IF(Overview!B3="","","U") -> U | G7: =IF(Overview!B3="","","U") -> U | H7: =IF(Overview!B3="","","U") -> U | I7: =IF(Overview!B3="","","U") -> U | J7: =IF(Overview!B3="","","U") -> U | K7: =IF(OR(Overview!B3="Ground Segment",Overview!B3="Space Segment"),"U","") -> U | L7: =IF(Overview!B3="Space Segment","U","") -> U
A8: 5 | B8: =IF(Overview!$B$3="Space Segment", "S", IF(Overview!$B$3="Ground Segment","G","D"))&".MG"&TEXT(A8,"00") -> S.MG05 | C8: Monthly Progress Report | D8: MPR | E8: =IF(Overview!B3="","","Monthly") -> Monthly
A9: 6 | B9: =IF(Overview!$B$3="Space Segment", "S", IF(Overview!$B$3="Ground Segment","G","D"))&".MG"&TEXT(A9,"00") -> S.MG06 | C9: Minutes of the Meeting | D9: MoM | E9: =IF(Overview!B3="","","N") -> N | F9: =IF(Overview!B3="","","N") -> N | G9: =IF(Overview!B3="","","N") -> N | H9: =IF(Overview!B3="","","N") -> N | I9: =IF(Overview!B3="","","N") -> N | J9: =IF(Overview!B3="","","N") -> N | K9: =IF(OR(Overview!B3="Ground Segment",Overview!B3="Space Segment"),"N","") -> N | L9: =IF(Overview!B3="Space Segment","N","") -> N
A10: 7 | B10: =IF(Overview!$B$3="Space Segment", "S", IF(Overview!$B$3="Ground Segment","G","D"))&".MG"&TEXT(A10,"00") -> S.MG07 | C10: Activity Web Page | D10: AWP | E10: =IF(Overview!B3="","","At the first review meeting and current status updated at each review") -> At the first review meeting and current status updated at each review
A11: 8 | B11: =IF(Overview!$B$3="Space Segment", "S", IF(Overview!$B$3="Ground Segment","G","D"))&".MG"&TEXT(A11,"00") -> S.MG08 | C11: Justification for non continuation | D11: JFNC | I11: =IF(Overview!B3="Data Segment","N","") ->  | J11: =IF(Overview!B3="Ground Segment","N","") ->  | K11: =IF(Overview!B3="Space Segment","N","") -> N
A12: 9 | B12: =IF(Overview!$B$3="Space Segment", "S", IF(Overview!$B$3="Ground Segment","G","D"))&".MG"&TEXT(A12,"00") -> S.MG09 | C12: Digital Media | D12: DM | I12: =IF(Overview!B3="Data Segment","N","") ->  | J12: =IF(OR(Overview!B3="Ground Segment",Overview!B3="Data Segment"),"N","") ->  | K12: =IF(OR(Overview!B3="Space Segment",Overview!B3="Ground Segment"),"N","") -> N | L12: =IF(Overview!B3="Space Segment","N","") -> N
A13: 10 | B13: =IF(Overview!$B$3="Space Segment", "S", IF(Overview!$B$3="Ground Segment","G","D"))&".MG"&TEXT(A13,"00") -> S.MG10 | C13: Product Data Sheet | D13: PDS | J13: =IF(Overview!B3="Data Segment","N","") ->  | K13: =IF(Overview!B3="Ground Segment","N","") ->  | L13: =IF(Overview!B3="Space Segment","N","") -> N
A14: 11 | B14: =IF(Overview!$B$3="Space Segment", "S", IF(Overview!$B$3="Ground Segment","G","D"))&".MG"&TEXT(A14,"00") -> S.MG11 | C14: CCN for follow-on Cycle(s) | D14: CCN-FOC | I14: =IF(Overview!B3="Data Segment","N","") ->  | J14: =IF(Overview!B3="Ground Segment","N","") ->  | K14: =IF(Overview!B3="Space Segment","N","") -> N
A15: 12 | B15: =IF(Overview!$B$3="Space Segment", "S", IF(Overview!$B$3="Ground Segment","G","D"))&".MG"&TEXT(A15,"00") -> S.MG12 | C15: Contract Achievements and Socio Economic Impact Questionnaire | D15: CA-SEIQ | I15: =IF(Overview!B3="Data Segment","N","") ->  | J15: =IF(OR(Overview!B3="Ground Segment",Overview!B3="Data Segment"),"N","") ->  | K15: =IF(OR(Overview!B3="Space Segment",Overview!B3="Ground Segment"),"N","") -> N | L15: =IF(Overview!B3="Space Segment","N","") -> N
A16: 13 | B16: =IF(Overview!$B$3="Space Segment", "S", IF(Overview!$B$3="Ground Segment","G","D"))&".MG"&TEXT(A16,"00") -> S.MG13 | C16: Final Data Package | D16: FDP | I16: =IF(Overview!B3="Data Segment","N","") ->  | J16: =IF(OR(Overview!B3="Ground Segment",Overview!B3="Data Segment"),"N","") ->  | K16: =IF(OR(Overview!B3="Space Segment",Overview!B3="Ground Segment"),"N","") -> N | L16: =IF(Overview!B3="Space Segment","N","") -> N
A17: 14 | B17: =IF(Overview!$B$3="Space Segment", "S", IF(Overview!$B$3="Ground Segment","G","D"))&".MG"&TEXT(A17,"00") -> S.MG14 | C17: Final Report | D17: FREP | I17: =IF(Overview!B3="Data Segment","N","") ->  | J17: =IF(OR(Overview!B3="Ground Segment",Overview!B3="Data Segment"),"N","") ->  | K17: =IF(OR(Overview!B3="Space Segment",Overview!B3="Ground Segment"),"N","") -> N | L17: =IF(Overview!B3="Space Segment","N","") -> N
A18: 15
A19: 16
A20: 17
A21: 18
A22: 19
A23: 20
A24: 21
A25: 22
A26: 23
A27: 24
A28: 25
B29: ENGINEERING
A30: 1 | B30: =IF(Overview!$B$3="Space Segment", "S", IF(Overview!$B$3="Ground Segment","G","D"))&".EN"&TEXT(A30,"00") -> S.EN01 | C30: Engineering Document #1 | D30: ACR#1 | E30: N | F30: U | G30: U | H30: U | I30: U | J30: U | K30: U | L30: U
A31: 2 | B31: S.EN02 | C31: Engineering Document #2 | D31: ACR#2 | E31: N | F31: U | G31: U | H31: U | I31: U | J31: U | K31: U | L31: U
A32: 3 | B32: S.EN03 | C32: Engineering Document #3 | D32: ACR#3 | G32: N | H32: U | I32: U | J32: U | K32: C | L32: C
A33: 4 | B33: S.EN04 | C33: Engineering Document #4 | D33: ACR#4 | E33: N | H33: U | I33: U | J33: U | K33: C | L33: C
A34: 5 | B34: S.EN05 | C34: Engineering Document #5 | D34: ACR#5 | H34: N | I34: U | J34: U | K34: C | L34: C
A35: 6
A36: 7
A37: 8
A38: 9
A39: 10
A40: 11
A41: 12
A42: 13
A43: 14
A44: 15
A45: 16
A46: 17
A47: 18
A48: 19
A49: 20
A50: 21
A51: 22
A52: 23
A53: 24
A54: 25
A55: 26
A56: 27
A57: 28
A58: 29
A59: 30
A60: 31
A61: 32
A62: 33
A63: 34
A64: 35
A65: 36
A66: 37
A67: 38
A68: 39
A69: 40
B70: TESTING
A71: 1 | B71: =IF(Overview!$B$3="Space Segment", "S", IF(Overview!$B$3="Ground Segment","G","D"))&".TE"&TEXT(A71,"00") -> S.TE01 | C71: Testing Document #1 | D71: ACR#6 | H71: N | I71: U | J71: U | K71: C | L71: C
A72: 2 | B72: S.TE02 | C72: Testing Document #2 | D72: ACR#7 | G72: N | I72: U | J72: U | K72: C | L72: C
A73: 3 | B73: S.TE03 | C73: Testing Document #3 | D73: ACR#8 | G73: N | I73: U | J73: U | K73: C | L73: C
A74: 4
A75: 5
A76: 6
A77: 7
A78: 8
A79: 9
A80: 10
A81: 11
A82: 12
A83: 13
A84: 14
A85: 15
A86: 16
A87: 17
A88: 18
A89: 19
A90: 20
A91: 21
A92: 22
A93: 23
A94: 24
A95: 25
B96: PRODUCT ASSURANCE
A97: 1 | B97: =IF(Overview!$B$3="Space Segment", "S", IF(Overview!$B$3="Ground Segment","G","D"))&".PA"&TEXT(A97,"00") -> S.PA01 | C97: PA Document #1 | D97: ACR#9 | H97: N | I97: U | J97: U | K97: C | L97: C
A98: 2 | B98: S.PA02 | C98: PA Document #2 | D98: ACR#10 | G98: N | I98: U | J98: U | K98: C | L98: C
A99: 3
A100: 4
A101: 5
A102: 6
A103: 7
A104: 8
A105: 9
A106: 10
A107: 11
A108: 12
A109: 13
A110: 14
A111: 15
A112: 16
A113: 17
A114: 18
A115: 19
A116: 20
B117: SOFTWARE
A118: 1 | B118: =IF(Overview!$B$3="Space Segment", "S", IF(Overview!$B$3="Ground Segment","G","D"))&".SW"&TEXT(A118,"00") -> S.SW01 | C118: SW Document #1 | D118: ACR#11 | E118: N | F118: U | G118: U | H118: U | I118: U | J118: U | K118: U | L118: U
A119: 2 | B119: S.SW02 | C119: SW Document #2 | D119: ACR#12 | G119: N | H119: U | I119: U | J119: U | K119: C | L119: C
A120: 3
A121: 4
A122: 5
A123: 6
A124: 7
A125: 8
A126: 9
A127: 10
A128: 11
A129: 12
A130: 13
A131: 14
A132: 15
A133: 16
A134: 17
A135: 18
A136: 19
A137: 20

Sheet BIPRs
B2: List of BIPRs (max 4 items)
A3: # of Milestones
A4: =Overview!B31 -> 1 | B4: Exact Name of BIPR Item | C4: Owner | D4: Description | E4: Patent # or Ref. / Issue / Revision / Version # | F4: Contract / Funding Details under which the IPR was created | G4: Date of creation of the version of the BIPR listed here | H4: Type of License | I4: Affected deliverables with comments | J4: Protected Format (Y/N)
A5: 1 | B5: My Awesome BIPR Item
A6: 2
A7: 3
A8: 4

Sheet TableConsortium
A1: Phase 1 | H1: Phase 2
A2: Entity | B2: Country (ISO Code) | C2: Role | D2: Total Cost in EUR | E2: Total Price in EUR | H2: Entity | I2: Country (ISO Code) | J2: Role | K2: Total Cost in EUR | L2: Total Price in EUR
A3: =IF(Consortium!B3="","",Consortium!B3) -> Our company | B3: =IF(Consortium!B3="","",Consortium!C3) -> IT | C3: Contractor | D3: =Consortium!E3 -> 1000000 | E3: =Consortium!F3 -> 500000 | H3: =IF(Consortium!J3="","",Consortium!J3) -> Our company | I3: =IF(Consortium!J3="","",Consortium!K3) -> IT | J3: =IF(Consortium!I3<=Consortium!$I$2,"Contractor",IF(AND(Consortium!I3=Consortium!$I$2+1,Overview!B9=2),"Total","")) -> Contractor | K3: =IF(Consortium!M3="","",Consortium!M3) -> 1000000 | L3: =IF(Consortium!N3="","",Consortium!N3) -> 600000
A4: =IF(Consortium!A4<=Consortium!$A$2,Consortium!B4,"") -> Subco 1 | B4: =IF(A4="","",IF(A4="Total","",Consortium!C4)) -> AT | C4: =IF(Consortium!A4<=Consortium!$A$2,"Subcontractor",IF(Consortium!A4=Consortium!$A$2+1,"Total","")) -> Subcontractor | D4: =IF(C4="","",IF(C4="Total",SUM(Consortium!E3:E14),Consortium!E4)) -> 50000 | E4: =IF(C4="","",IF(C4="Total",SUM(Consortium!F3:F14),Consortium!F4)) -> 25000 | H4: =IF(Consortium!I4<=Consortium!$I$2,Consortium!J4,"") -> Subco 1 | I4: =IF(H4="","",IF(H4="Total","",Consortium!K4)) -> AT | J4: =IF(Consortium!I4<=Consortium!$I$2,"Subcontractor",IF(AND(Consortium!I4=Consortium!$I$2+1,Overview!$B$9=2),"Total","")) -> Subcontractor | K4: =IF(J4="","",IF(J4="Total",SUM(Consortium!M3:M14),Consortium!M4)) -> 200000 | L4: =IF(J4="","",IF(J4="Total",SUM(Consortium!N3:N14),Consortium!N4)) -> 100000
A5: =IF(Consortium!A5<=Consortium!$A$2,Consortium!B5,"") ->  | B5: =IF(A5="","",IF(A5="Total","",Consortium!C5)) ->  | C5: =IF(Consortium!A5<=Consortium!$A$2,"Subcontractor",IF(Consortium!A5=Consortium!$A$2+1,"Total","")) -> Total | D5: =IF(C5="","",IF(C5="Total",SUM(Consortium!E3:E14),Consortium!E5)) -> 1050000 | E5: =IF(C5="","",IF(C5="Total",SUM(Consortium!F3:F14),Consortium!F5)) -> 525000 | H5: =IF(Consortium!I5<=Consortium!$I$2,Consortium!J5,"") -> Subco 2 | I5: =IF(H5="","",IF(H5="Total","",Consortium!K5)) -> DE | J5: =IF(Consortium!I5<=Consortium!$I$2,"Subcontractor",IF(AND(Consortium!I5=Consortium!$I$2+1,Overview!$B$9=2),"Total","")) -> Subcontractor | K5: =IF(J5="","",IF(J5="Total",SUM(Consortium!M3:M14),Consortium!M5)) -> 180000 | L5: =IF(J5="","",IF(J5="Total",SUM(Consortium!N3:N14),Consortium!N5)) -> 90000
A6: =IF(Consortium!A6<=Consortium!$A$2,Consortium!B6,"") ->  | B6: =IF(A6="","",IF(A6="Total","",Consortium!C6)) ->  | C6: =IF(Consortium!A6<=Consortium!$A$2,"Subcontractor",IF(Consortium!A6=Consortium!$A$2+1,"Total","")) ->  | D6: =IF(C6="","",IF(C6="Total",SUM(Consortium!E3:E14),Consortium!E6)) ->  | E6: =IF(C6="","",IF(C6="Total",SUM(Consortium!F3:F14),Consortium!F6)) ->  | H6: =IF(Consortium!I6<=Consortium!$I$2,Consortium!J6,"") ->  | I6: =IF(H6="","",IF(H6="Total","",Consortium!K6)) ->  | J6: =IF(Consortium!I6<=Consortium!$I$2,"Subcontractor",IF(AND(Consortium!I6=Consortium!$I$2+1,Overview!$B$9=2),"Total","")) -> Total | K6: =IF(J6="","",IF(J6="Total",SUM(Consortium!M3:M14),Consortium!M6)) -> 1380000 | L6: =IF(J6="","",IF(J6="Total",SUM(Consortium!N3:N14),Consortium!N6)) -> 790000
A7: =IF(Consortium!A7<=Consortium!$A$2,Consortium!B7,"") ->  | B7: =IF(A7="","",IF(A7="Total","",Consortium!C7)) ->  | C7: =IF(Consortium!A7<=Consortium!$A$2,"Subcontractor",IF(Consortium!A7=Consortium!$A$2+1,"Total","")) ->  | D7: =IF(C7="","",IF(C7="Total",SUM(Consortium!E3:E14),Consortium!E7)) ->  | E7: =IF(C7="","",IF(C7="Total",SUM(Consortium!F3:F14),Consortium!F7)) ->  | H7: =IF(Consortium!I7<=Consortium!$I$2,Consortium!J7,"") ->  | I7: =IF(H7="","",IF(H7="Total","",Consortium!K7)) ->  | J7: =IF(Consortium!I7<=Consortium!$I$2,"Subcontractor",IF(AND(Consortium!I7=Consortium!$I$2+1,Overview!$B$9=2),"Total","")) ->  | K7: =IF(J7="","",IF(J7="Total",SUM(Consortium!M3:M14),Consortium!M7)) ->  | L7: =IF(J7="","",IF(J7="Total",SUM(Consortium!N3:N14),Consortium!N7)) -> 
A8: =IF(Consortium!A8<=Consortium!$A$2,Consortium!B8,"") ->  | B8: =IF(A8="","",IF(A8="Total","",Consortium!C8)) ->  | C8: =IF(Consortium!A8<=Consortium!$A$2,"Subcontractor",IF(Consortium!A8=Consortium!$A$2+1,"Total","")) ->  | D8: =IF(C8="","",IF(C8="Total",SUM(Consortium!E3:E14),Consortium!E8)) ->  | E8: =IF(C8="","",IF(C8="Total",SUM(Consortium!F3:F14),Consortium!F8)) ->  | H8: =IF(Consortium!I8<=Consortium!$I$2,Consortium!J8,"") ->  | I8: =IF(H8="","",IF(H8="Total","",Consortium!K8)) ->  | J8: =IF(Consortium!I8<=Consortium!$I$2,"Subcontractor",IF(AND(Consortium!I8=Consortium!$I$2+1,Overview!$B$9=2),"Total","")) ->  | K8: =IF(J8="","",IF(J8="Total",SUM(Consortium!M3:M14),Consortium!M8)) ->  | L8: =IF(J8="","",IF(J8="Total",SUM(Consortium!N3:N14),Consortium!N8)) -> 
A9: =IF(Consortium!A9<=Consortium!$A$2,Consortium!B9,"") ->  | B9: =IF(A9="","",IF(A9="Total","",Consortium!C9)) ->  | C9: =IF(Consortium!A9<=Consortium!$A$2,"Subcontractor",IF(Consortium!A9=Consortium!$A$2+1,"Total","")) ->  | D9: =IF(C9="","",IF(C9="Total",SUM(Consortium!E3:E14),Consortium!E9)) ->  | E9: =IF(C9="","",IF(C9="Total",SUM(Consortium!F3:F14),Consortium!F9)) ->  | H9: =IF(Consortium!I9<=Consortium!$I$2,Consortium!J9,"") ->  | I9: =IF(H9="","",IF(H9="Total","",Consortium!K9)) ->  | J9: =IF(Consortium!I9<=Consortium!$I$2,"Subcontractor",IF(AND(Consortium!I9=Consortium!$I$2+1,Overview!$B$9=2),"Total","")) ->  | K9: =IF(J9="","",IF(J9="Total",SUM(Consortium!M3:M14),Consortium!M9)) ->  | L9: =IF(J9="","",IF(J9="Total",SUM(Consortium!N3:N14),Consortium!N9)) -> 
A10: =IF(Consortium!A10<=Consortium!$A$2,Consortium!B10,"") ->  | B10: =IF(A10="","",IF(A10="Total","",Consortium!C10)) ->  | C10: =IF(Consortium!A10<=Consortium!$A$2,"Subcontractor",IF(Consortium!A10=Consortium!$A$2+1,"Total","")) ->  | D10: =IF(C10="","",IF(C10="Total",SUM(Consortium!E3:E14),Consortium!E10)) ->  | E10: =IF(C10="","",IF(C10="Total",SUM(Consortium!F3:F14),Consortium!F10)) ->  | H10: =IF(Consortium!I10<=Consortium!$I$2,Consortium!J10,"") ->  | I10: =IF(H10="","",IF(H10="Total","",Consortium!K10)) ->  | J10: =IF(Consortium!I10<=Consortium!$I$2,"Subcontractor",IF(AND(Consortium!I10=Consortium!$I$2+1,Overview!$B$9=2),"Total","")) ->  | K10: =IF(J10="","",IF(J10="Total",SUM(Consortium!M3:M14),Consortium!M10)) ->  | L10: =IF(J10="","",IF(J10="Total",SUM(Consortium!N3:N14),Consortium!N10)) -> 
A11: =IF(Consortium!A11<=Consortium!$A$2,Consortium!B11,"") ->  | B11: =IF(A11="","",IF(A11="Total","",Consortium!C11)) ->  | C11: =IF(Consortium!A11<=Consortium!$A$2,"Subcontractor",IF(Consortium!A11=Consortium!$A$2+1,"Total","")) ->  | D11: =IF(C11="","",IF(C11="Total",SUM(Consortium!E3:E14),Consortium!E11)) ->  | E11: =IF(C11="","",IF(C11="Total",SUM(Consortium!F3:F14),Consortium!F11)) ->  | H11: =IF(Consortium!I11<=Consortium!$I$2,Consortium!J11,"") ->  | I11: =IF(H11="","",IF(H11="Total","",Consortium!K11)) ->  | J11: =IF(Consortium!I11<=Consortium!$I$2,"Subcontractor",IF(AND(Consortium!I11=Consortium!$I$2+1,Overview!$B$9=2),"Total","")) ->  | K11: =IF(J11="","",IF(J11="Total",SUM(Consortium!M3:M14),Consortium!M11)) ->  | L11: =IF(J11="","",IF(J11="Total",SUM(Consortium!N3:N14),Consortium!N11)) -> 
A12: =IF(Consortium!A12<=Consortium!$A$2,Consortium!B12,"") ->  | B12: =IF(A12="","",IF(A12="Total","",Consortium!C12)) ->  | C12: =IF(Consortium!A12<=Consortium!$A$2,"Subcontractor",IF(Consortium!A12=Consortium!$A$2+1,"Total","")) ->  | D12: =IF(C12="","",IF(C12="Total",SUM(Consortium!E3:E14),Consortium!E12)) ->  | E12: =IF(C12="","",IF(C12="Total",SUM(Consortium!F3:F14),Consortium!F12)) ->  | H12: =IF(Consortium!I12<=Consortium!$I$2,Consortium!J12,"") ->  | I12: =IF(H12="","",IF(H12="Total","",Consortium!K12)) ->  | J12: =IF(Consortium!I12<=Consortium!$I$2,"Subcontractor",IF(AND(Consortium!I12=Consortium!$I$2+1,Overview!$B$9=2),"Total","")) ->  | K12: =IF(J12="","",IF(J12="Total",SUM(Consortium!M3:M14),Consortium!M12)) ->  | L12: =IF(J12="","",IF(J12="Total",SUM(Consortium!N3:N14),Consortium!N12)) -> 
A13: =IF(Consortium!A13<=Consortium!$A$2,Consortium!B13,"") ->  | B13: =IF(A13="","",IF(A13="Total","",Consortium!C13)) ->  | C13: =IF(Consortium!A13<=Consortium!$A$2,"Subcontractor",IF(Consortium!A13=Consortium!$A$2+1,"Total","")) ->  | D13: =IF(C13="","",IF(C13="Total",SUM(Consortium!E3:E14),Consortium!E13)) ->  | E13: =IF(C13="","",IF(C13="Total",SUM(Consortium!F3:F14),Consortium!F13)) ->  | H13: =IF(Consortium!I13<=Consortium!$I$2,Consortium!J13,"") ->  | I13: =IF(H13="","",IF(H13="Total","",Consortium!K13)) ->  | J13: =IF(Consortium!I13<=Consortium!$I$2,"Subcontractor",IF(AND(Consortium!I13=Consortium!$I$2+1,Overview!$B$9=2),"Total","")) ->  | K13: =IF(J13="","",IF(J13="Total",SUM(Consortium!M3:M14),Consortium!M13)) ->  | L13: =IF(J13="","",IF(J13="Total",SUM(Consortium!N3:N14),Consortium!N13)) -> 
A14: =IF(Consortium!A14<=Consortium!$A$2,Consortium!B14,"") ->  | B14: =IF(A14="","",IF(A14="Total","",Consortium!C14)) ->  | C14: =IF(Consortium!A14<=Consortium!$A$2,"Subcontractor",IF(Consortium!A14=Consortium!$A$2+1,"Total","")) ->  | D14: =IF(C14="","",IF(C14="Total",SUM(Consortium!E3:E14),Consortium!E14)) ->  | E14: =IF(C14="","",IF(C14="Total",SUM(Consortium!F3:F14),Consortium!F14)) ->  | H14: =IF(Consortium!I14<=Consortium!$I$2,Consortium!J14,"") ->  | I14: =IF(H14="","",IF(H14="Total","",Consortium!K14)) ->  | J14: =IF(Consortium!I14<=Consortium!$I$2,"Subcontractor",IF(AND(Consortium!I14=Consortium!$I$2+1,Overview!$B$9=2),"Total","")) ->  | K14: =IF(J14="","",IF(J14="Total",SUM(Consortium!M3:M14),Consortium!M14)) ->  | L14: =IF(J14="","",IF(J14="Total",SUM(Consortium!N3:N14),Consortium!N14)) -> 
B15: =IF(A15="","",IF(A15="Total","",Consortium!C15)) ->  | C15: =IF(Consortium!A15<=Consortium!$A$2,"Subcontractor",IF(Consortium!A15=Consortium!$A$2+1,"Total","")) ->  | D15: =IF(C15="","",IF(C15="Total",SUM(Consortium!E3:E14),Consortium!E15)) ->  | E15: =IF(C15="","",IF(C15="Total",SUM(Consortium!F3:F14),Consortium!F15)) ->  | J15: =IF(Consortium!I15<=Consortium!$I$2,"Subcontractor",IF(AND(Consortium!I15=Consortium!$I$2+1,Overview!$B$9=2),"Total","")) ->  | K15: =IF(J15="","",IF(J15="Total",SUM(Consortium!M3:M14),Consortium!M15)) ->  | L15: =IF(J15="","",IF(J15="Total",SUM(Consortium!N3:N14),Consortium!N15)) -> 
B16: =IF(A16="","",IF(A16="Total","",Consortium!C16)) -> 
B17: =IF(A17="","",IF(A17="Total","",Consortium!C17)) -> 
B18: =IF(A18="","",IF(A18="Total","",Consortium!C18)) -> 
B19: =IF(A19="","",IF(A19="Total","",Consortium!C19)) -> 
B20: =IF(A20="","",IF(A20="Total","",Consortium!C20)) -> 

Sheet TableBIPRs
B2: Exact Name of BIPR Item | C2: Owner | D2: Description | E2: Patent # or Ref. / Issue / Revision / Version # | F2: Contract / Funding Details under which the IPR was created | G2: Date of creation of the version of the BIPR listed here | H2: Type of License | I2: Affected deliverables with comments | J2: Protected Format (Y/N)
A3: =IF(BIPRs!B5="",0,1) -> 1 | B3: =IF(BIPRs!B5="","",BIPRs!B5) -> My Awesome BIPR Item | C3: =IF(BIPRs!C5="","",BIPRs!C5) ->  | D3: =IF(BIPRs!D5="","",BIPRs!D5) ->  | E3: =IF(BIPRs!E5="","",BIPRs!E5) ->  | F3: =IF(BIPRs!F5="","",BIPRs!F5) ->  | G3: =IF(BIPRs!G5="","",BIPRs!G5) ->  | H3: =IF(BIPRs!H5="","",BIPRs!H5) ->  | I3: =IF(BIPRs!I5="","",BIPRs!I5) ->  | J3: =IF(BIPRs!J5="","",BIPRs!J5) -> 
A4: =IF(BIPRs!B6="",0,1) -> 0 | B4: =IF(BIPRs!B6="","",BIPRs!B6) ->  | C4: =IF(BIPRs!C6="","",BIPRs!C6) ->  | D4: =IF(BIPRs!D6="","",BIPRs!D6) ->  | E4: =IF(BIPRs!E6="","",BIPRs!E6) ->  | F4: =IF(BIPRs!F6="","",BIPRs!F6) ->  | G4: =IF(BIPRs!G6="","",BIPRs!G6) ->  | H4: =IF(BIPRs!H6="","",BIPRs!H6) ->  | I4: =IF(BIPRs!I6="","",BIPRs!I6) ->  | J4: =IF(BIPRs!J6="","",BIPRs!J6) -> 
A5: =IF(BIPRs!B7="",0,1) -> 0 | B5: =IF(BIPRs!B7="","",BIPRs!B7) ->  | C5: =IF(BIPRs!C7="","",BIPRs!C7) ->  | D5: =IF(BIPRs!D7="","",BIPRs!D7) ->  | E5: =IF(BIPRs!E7="","",BIPRs!E7) ->  | F5: =IF(BIPRs!F7="","",BIPRs!F7) ->  | G5: =IF(BIPRs!G7="","",BIPRs!G7) ->  | H5: =IF(BIPRs!H7="","",BIPRs!H7) ->  | I5: =IF(BIPRs!I7="","",BIPRs!I7) ->  | J5: =IF(BIPRs!J7="","",BIPRs!J7) -> 
A6: =IF(BIPRs!B8="",0,1) -> 0 | B6: =IF(BIPRs!B8="","",BIPRs!B8) ->  | C6: =IF(BIPRs!C8="","",BIPRs!C8) ->  | D6: =IF(BIPRs!D8="","",BIPRs!D8) ->  | E6: =IF(BIPRs!E8="","",BIPRs!E8) ->  | F6: =IF(BIPRs!F8="","",BIPRs!F8) ->  | G6: =IF(BIPRs!G8="","",BIPRs!G8) ->  | H6: =IF(BIPRs!H8="","",BIPRs!H8) ->  | I6: =IF(BIPRs!I8="","",BIPRs!I8) ->  | J6: =IF(BIPRs!J8="","",BIPRs!J8) -> 

Sheet TableMilestones
A1: Phase 1 | F1: Phase 2
A2: Milestone (MS) Description | B2: Schedule Date | C2: Payments from ESA to Prime Contractor (in Euro) | D2: Country (ISO code) | F2: Milestone (MS) Description | G2: Schedule Date | H2: Payments from ESA to Prime Contractor (in Euro) | I2: Country (ISO code)
A3: =IF(MPP!A5<=MPP!$A$4,MPP!B5,"") -> Milestone Description | B3: =IF(MPP!A5<=MPP!$A$4,MPP!C5,IF(MPP!A5=MPP!$A$4+1,"Total","")) -> 2023-07-16 | C3: =IF(MPP!A5<=MPP!$A$4,MPP!D5,IF(MPP!A5=MPP!$A$4+1,SUM(MPP!D5:D12),"")) -> 225000 | D3: =IF(MPP!A5<=MPP!$A$4,MPP!E5,"") -> IT | F3: =IF(MPP!A17<=MPP!$A$16,MPP!B17,"") -> Milestone Description | G3: =IF(MPP!A17<=MPP!$A$16,MPP!C17,IF(MPP!A17=MPP!$A$16+1,"Total","")) -> 2023-10-30 | H3: =IF(MPP!A17<=MPP!$A$16,MPP!D17,IF(MPP!A17=MPP!$A$16+1,SUM(MPP!D17:D24),"")) -> 200000 | I3: =IF(MPP!A17<=MPP!$A$16,MPP!E17,"") -> IT
A4: =IF(MPP!A6<=MPP!$A$4,MPP!B6,"") -> Milestone Description | B4: =IF(MPP!A6<=MPP!$A$4,MPP!C6,IF(MPP!A6=MPP!$A$4+1,"Total","")) -> 2023-09-30 | C4: =IF(MPP!A6<=MPP!$A$4,MPP!D6,IF(MPP!A6=MPP!$A$4+1,SUM(MPP!D5:D12),"")) -> 300000 | D4: =IF(MPP!A6<=MPP!$A$4,MPP!E6,"") -> IT | F4: =IF(MPP!A18<=MPP!$A$16,MPP!B18,"") -> Milestone Description | G4: =IF(MPP!A18<=MPP!$A$16,MPP!C18,IF(MPP!A18=MPP!$A$16+1,"Total","")) -> 2024-01-30 | H4: =IF(MPP!A18<=MPP!$A$16,MPP!D18,IF(MPP!A18=MPP!$A$16+1,SUM(MPP!D17:D24),"")) -> 200000 | I4: =IF(MPP!A18<=MPP!$A$16,MPP!E18,"") -> IT
A5: =IF(MPP!A7<=MPP!$A$4,MPP!B7,"") ->  | B5: =IF(MPP!A7<=MPP!$A$4,MPP!C7,IF(MPP!A7=MPP!$A$4+1,"Total","")) -> Total | C5: =IF(MPP!A7<=MPP!$A$4,MPP!D7,IF(MPP!A7=MPP!$A$4+1,SUM(MPP!D5:D12),"")) -> 525000 | D5: =IF(MPP!A7<=MPP!$A$4,MPP!E7,"") ->  | F5: =IF(MPP!A19<=MPP!$A$16,MPP!B19,"") -> Milestone Description | G5: =IF(MPP!A19<=MPP!$A$16,MPP!C19,IF(MPP!A19=MPP!$A$16+1,"Total","")) -> 2024-06-15 | H5: =IF(MPP!A19<=MPP!$A$16,MPP!D19,IF(MPP!A19=MPP!$A$16+1,SUM(MPP!D17:D24),"")) -> 150000 | I5: =IF(MPP!A19<=MPP!$A$16,MPP!E19,"") -> IT
A6: =IF(MPP!A8<=MPP!$A$4,MPP!B8,"") ->  | B6: =IF(MPP!A8<=MPP!$A$4,MPP!C8,IF(MPP!A8=MPP!$A$4+1,"Total","")) ->  | C6: =IF(MPP!A8<=MPP!$A$4,MPP!D8,IF(MPP!A8=MPP!$A$4+1,SUM(MPP!D5:D12),"")) ->  | D6: =IF(MPP!A8<=MPP!$A$4,MPP!E8,"") ->  | F6: =IF(MPP!A20<=MPP!$A$16,MPP!B20,"") -> Milestone Description | G6: =IF(MPP!A20<=MPP!$A$16,MPP!C20,IF(MPP!A20=MPP!$A$16+1,"Total","")) -> 2024-10-15 | H6: =IF(MPP!A20<=MPP!$A$16,MPP!D20,IF(MPP!A20=MPP!$A$16+1,SUM(MPP!D17:D24),"")) -> 200000 | I6: =IF(MPP!A20<=MPP!$A$16,MPP!E20,"") -> IT
A7: =IF(MPP!A9<=MPP!$A$4,MPP!B9,"") ->  | B7: =IF(MPP!A9<=MPP!$A$4,MPP!C9,IF(MPP!A9=MPP!$A$4+1,"Total","")) ->  | C7: =IF(MPP!A9<=MPP!$A$4,MPP!D9,IF(MPP!A9=MPP!$A$4+1,SUM(MPP!D5:D12),"")) ->  | D7: =IF(MPP!A9<=MPP!$A$4,MPP!E9,"") ->  | F7: =IF(MPP!A21<=MPP!$A$16,MPP!B21,"") -> Milestone Description | G7: =IF(MPP!A21<=MPP!$A$16,MPP!C21,IF(MPP!A21=MPP!$A$16+1,"Total","")) -> 2025-01-15 | H7: =IF(MPP!A21<=MPP!$A$16,MPP!D21,IF(MPP!A21=MPP!$A$16+1,SUM(MPP!D17:D24),"")) -> 40000 | I7: =IF(MPP!A21<=MPP!$A$16,MPP!E21,"") -> IT
A8: =IF(MPP!A10<=MPP!$A$4,MPP!B10,"") ->  | B8: =IF(MPP!A10<=MPP!$A$4,MPP!C10,IF(MPP!A10=MPP!$A$4+1,"Total","")) ->  | C8: =IF(MPP!A10<=MPP!$A$4,MPP!D10,IF(MPP!A10=MPP!$A$4+1,SUM(MPP!D5:D12),"")) ->  | D8: =IF(MPP!A10<=MPP!$A$4,MPP!E10,"") ->  | F8: =IF(MPP!A22<=MPP!$A$16,MPP!B22,"") ->  | G8: =IF(MPP!A22<=MPP!$A$16,MPP!C22,IF(MPP!A22=MPP!$A$16+1,"Total","")) -> Total | H8: =IF(MPP!A22<=MPP!$A$16,MPP!D22,IF(MPP!A22=MPP!$A$16+1,SUM(MPP!D17:D24),"")) -> 790000 | I8: =IF(MPP!A22<=MPP!$A$16,MPP!E22,"") -> 
A9: =IF(MPP!A11<=MPP!$A$4,MPP!B11,"") ->  | B9: =IF(MPP!A11<=MPP!$A$4,MPP!C11,IF(MPP!A11=MPP!$A$4+1,"Total","")) ->  | C9: =IF(MPP!A11<=MPP!$A$4,MPP!D11,IF(MPP!A11=MPP!$A$4+1,SUM(MPP!D5:D12),"")) ->  | D9: =IF(MPP!A11<=MPP!$A$4,MPP!E11,"") ->  | F9: =IF(MPP!A23<=MPP!$A$16,MPP!B23,"") ->  | G9: =IF(MPP!A23<=MPP!$A$16,MPP!C23,IF(MPP!A23=MPP!$A$16+1,"Total","")) ->  | H9: =IF(MPP!A23<=MPP!$A$16,MPP!D23,IF(MPP!A23=MPP!$A$16+1,SUM(MPP!D17:D24),"")) ->  | I9: =IF(MPP!A23<=MPP!$A$16,MPP!E23,"") -> 
A10: =IF(MPP!A12<=MPP!$A$4,MPP!B12,"") ->  | B10: =IF(MPP!A12<=MPP!$A$4,MPP!C12,IF(MPP!A12=MPP!$A$4+1,"Total","")) ->  | C10: =IF(MPP!A12<=MPP!$A$4,MPP!D12,IF(MPP!A12=MPP!$A$4+1,SUM(MPP!D5:D12),"")) ->  | D10: =IF(MPP!A12<=MPP!$A$4,MPP!E12,"") ->  | F10: =IF(MPP!A24<=MPP!$A$16,MPP!B24,"") ->  | G10: =IF(MPP!A24<=MPP!$A$16,MPP!C24,IF(MPP!A24=MPP!$A$16+1,"Total","")) ->  | H10: =IF(MPP!A24<=MPP!$A$16,MPP!D24,IF(MPP!A24=MPP!$A$16+1,SUM(MPP!D17:D24),"")) ->  | I10: =IF(MPP!A24<=MPP!$A$16,MPP!E24,"") -> 
B11: =IF(MPP!A13<=MPP!$A$4,MPP!C13,IF(MPP!A13=MPP!$A$4+1,"Total","")) ->  | C11: =IF(MPP!A13<=MPP!$A$4,MPP!D13,IF(MPP!A13=MPP!$A$4+1,SUM(MPP!D5:D12),"")) ->  | G11: =IF(MPP!A25<=MPP!$A$16,MPP!C25,IF(MPP!A25=MPP!$A$16+1,"Total","")) ->  | H11: =IF(MPP!A25<=MPP!$A$16,MPP!D25,IF(MPP!A25=MPP!$A$16+1,SUM(MPP!D17:D24),"")) -> 

Sheet TableBreakdown
A1: Phase 1 | D1: Scroll down for Phase 2 table
A2: For Information purposes only:
A3: Amounts in Euro for Prime and Subcontractor(s)
A4: Milestone | B4: =MPP!C29 -> Our company (IT) | C4: =IF(MPP!D28<=MPP!$C$28,MPP!D29,"") -> Subco 1 (AT) | D4: =IF(MPP!E28<=MPP!$C$28,MPP!E29,"") ->  | E4: =IF(MPP!F28<=MPP!$C$28,MPP!F29,"") ->  | F4: =IF(MPP!G28<=MPP!$C$28,MPP!G29,"") ->  | G4: =IF(MPP!H28<=MPP!$C$28,MPP!H29,"") ->  | H4: =IF(MPP!I28<=MPP!$C$28,MPP!I29,"") ->  | I4: =IF(MPP!J28<=MPP!$C$28,MPP!J29,"") ->  | J4: =IF(MPP!K28<=MPP!$C$28,MPP!K29,"") ->  | K4: =IF(MPP!L28<=MPP!$C$28,MPP!L29,"") ->  | L4: =IF(MPP!M28<=MPP!$C$28,MPP!M29,"") ->  | M4: =IF(MPP!N28<=MPP!$C$28,MPP!N29,"") -> 
A5: =IF(MPP!A30<=MPP!$A$4,MPP!B30,IF(MPP!A30=MPP!$A$4+1,"Total","")) -> Milestone Description | B5: =IF(MPP!A30<=MPP!$A$4,MPP!C30,IF(MPP!A30=MPP!$A$4+1,SUM(MPP!C30:C37),"")) -> 210000 | C5: =IF(MPP!A30<=MPP!$A$4,MPP!D30,IF(MPP!A30=MPP!$A$4+1,SUM(MPP!D30:D37),"")) -> 15000 | D5: =IF(MPP!A30<=MPP!$A$4,MPP!E30,IF(MPP!A30=MPP!$A$4+1,SUM(MPP!E30:E37),"")) -> 0 | E5: =IF(MPP!A30<=MPP!$A$4,MPP!F30,IF(MPP!A30=MPP!$A$4+1,SUM(MPP!F30:F37),"")) -> 0 | F5: =IF(MPP!A30<=MPP!$A$4,MPP!G30,IF(MPP!A30=MPP!$A$4+1,SUM(MPP!G30:G37),"")) -> 0 | G5: =IF(MPP!A30<=MPP!$A$4,MPP!H30,IF(MPP!A30=MPP!$A$4+1,SUM(MPP!H30:H37),"")) -> 0 | H5: =IF(MPP!A30<=MPP!$A$4,MPP!I30,IF(MPP!A30=MPP!$A$4+1,SUM(MPP!I30:I37),"")) -> 0 | I5: =IF(MPP!A30<=MPP!$A$4,MPP!J30,IF(MPP!A30=MPP!$A$4+1,SUM(MPP!J30:J37),"")) -> 0 | J5: =IF(MPP!A30<=MPP!$A$4,MPP!K30,IF(MPP!A30=MPP!$A$4+1,SUM(MPP!K30:K37),"")) -> 0 | K5: =IF(MPP!A30<=MPP!$A$4,MPP!L30,IF(MPP!A30=MPP!$A$4+1,SUM(MPP!L30:L37),"")) -> 0 | L5: =IF(MPP!A30<=MPP!$A$4,MPP!M30,IF(MPP!A30=MPP!$A$4+1,SUM(MPP!M30:M37),"")) -> 0 | M5: =IF(MPP!A30<=MPP!$A$4,MPP!N30,IF(MPP!A30=MPP!$A$4+1,SUM(MPP!N30:N37),"")) -> 0
A6: =IF(MPP!A31<=MPP!$A$4,MPP!B31,IF(MPP!A31=MPP!$A$4+1,"Total","")) -> Milestone Description | B6: =IF(MPP!A31<=MPP!$A$4,MPP!C31,IF(MPP!A31=MPP!$A$4+1,SUM(MPP!C30:C37),"")) -> 290000 | C6: =IF(MPP!A31<=MPP!$A$4,MPP!D31,IF(MPP!A31=MPP!$A$4+1,SUM(MPP!D30:DD37),"")) -> 10000 | D6: =IF(MPP!A31<=MPP!$A$4,MPP!E31,IF(MPP!A31=MPP!$A$4+1,SUM(MPP!E30:E37),"")) -> 0 | E6: =IF(MPP!A31<=MPP!$A$4,MPP!F31,IF(MPP!A31=MPP!$A$4+1,SUM(MPP!F30:F37),"")) -> 0 | F6: =IF(MPP!A31<=MPP!$A$4,MPP!G31,IF(MPP!A31=MPP!$A$4+1,SUM(MPP!G30:G37),"")) -> 0 | G6: =IF(MPP!A31<=MPP!$A$4,MPP!H31,IF(MPP!A31=MPP!$A$4+1,SUM(MPP!H30:H37),"")) -> 0 | H6: =IF(MPP!A31<=MPP!$A$4,MPP!I31,IF(MPP!A31=MPP!$A$4+1,SUM(MPP!I30:I37),"")) -> 0 | I6: =IF(MPP!A31<=MPP!$A$4,MPP!J31,IF(MPP!A31=MPP!$A$4+1,SUM(MPP!J30:J37),"")) -> 0 | J6: =IF(MPP!A31<=MPP!$A$4,MPP!K31,IF(MPP!A31=MPP!$A$4+1,SUM(MPP!K30:K37),"")) -> 0 | K6: =IF(MPP!A31<=MPP!$A$4,MPP!L31,IF(MPP!A31=MPP!$A$4+1,SUM(MPP!L30:L37),"")) -> 0 | L6: =IF(MPP!A31<=MPP!$A$4,MPP!M31,IF(MPP!A31=MPP!$A$4+1,SUM(MPP!M30:M37),"")) -> 0 | M6: =IF(MPP!A31<=MPP!$A$4,MPP!N31,IF(MPP!A31=MPP!$A$4+1,SUM(MPP!N30:N37),"")) -> 0
A7: =IF(MPP!A32<=MPP!$A$4,MPP!B32,IF(MPP!A32=MPP!$A$4+1,"Total","")) -> Total | B7: =IF(MPP!A32<=MPP!$A$4,MPP!C32,IF(MPP!A32=MPP!$A$4+1,SUM(MPP!C30:C37),"")) -> 500000 | C7: =IF(MPP!A32<=MPP!$A$4,MPP!D32,IF(MPP!A32=MPP!$A$4+1,SUM(MPP!D30:DD37),"")) -> 25000 | D7: =IF(MPP!A32<=MPP!$A$4,MPP!E32,IF(MPP!A32=MPP!$A$4+1,SUM(MPP!E30:E37),"")) -> 0 | E7: =IF(MPP!A32<=MPP!$A$4,MPP!F32,IF(MPP!A32=MPP!$A$4+1,SUM(MPP!F30:F37),"")) -> 0 | F7: =IF(MPP!A32<=MPP!$A$4,MPP!G32,IF(MPP!A32=MPP!$A$4+1,SUM(MPP!G30:G37),"")) -> 0 | G7: =IF(MPP!A32<=MPP!$A$4,MPP!H32,IF(MPP!A32=MPP!$A$4+1,SUM(MPP!H30:H37),"")) -> 0 | H7: =IF(MPP!A32<=MPP!$A$4,MPP!I32,IF(MPP!A32=MPP!$A$4+1,SUM(MPP!I30:I37),"")) -> 0 | I7: =IF(MPP!A32<=MPP!$A$4,MPP!J32,IF(MPP!A32=MPP!$A$4+1,SUM(MPP!J30:J37),"")) -> 0 | J7: =IF(MPP!A32<=MPP!$A$4,MPP!K32,IF(MPP!A32=MPP!$A$4+1,SUM(MPP!K30:K37),"")) -> 0 | K7: =IF(MPP!A32<=MPP!$A$4,MPP!L32,IF(MPP!A32=MPP!$A$4+1,SUM(MPP!L30:L37),"")) -> 0 | L7: =IF(MPP!A32<=MPP!$A$4,MPP!M32,IF(MPP!A32=MPP!$A$4+1,SUM(MPP!M30:M37),"")) -> 0 | M7: =IF(MPP!A32<=MPP!$A$4,MPP!N32,IF(MPP!A32=MPP!$A$4+1,SUM(MPP!N30:N37),"")) -> 0
A8: =IF(MPP!A33<=MPP!$A$4,MPP!B33,IF(MPP!A33=MPP!$A$4+1,"Total","")) ->  | B8: =IF(MPP!A33<=MPP!$A$4,MPP!C33,IF(MPP!A33=MPP!$A$4+1,SUM(MPP!C30:C37),"")) ->  | C8: =IF(MPP!A33<=MPP!$A$4,MPP!D33,IF(MPP!A33=MPP!$A$4+1,SUM(MPP!D30:DD37),"")) ->  | D8: =IF(MPP!A33<=MPP!$A$4,MPP!E33,IF(MPP!A33=MPP!$A$4+1,SUM(MPP!E30:E37),"")) ->  | E8: =IF(MPP!A33<=MPP!$A$4,MPP!F33,IF(MPP!A33=MPP!$A$4+1,SUM(MPP!F30:F37),"")) ->  | F8: =IF(MPP!A33<=MPP!$A$4,MPP!G33,IF(MPP!A33=MPP!$A$4+1,SUM(MPP!G30:G37),"")) ->  | G8: =IF(MPP!A33<=MPP!$A$4,MPP!H33,IF(MPP!A33=MPP!$A$4+1,SUM(MPP!H30:H37),"")) ->  | H8: =IF(MPP!A33<=MPP!$A$4,MPP!I33,IF(MPP!A33=MPP!$A$4+1,SUM(MPP!I30:I37),"")) ->  | I8: =IF(MPP!A33<=MPP!$A$4,MPP!J33,IF(MPP!A33=MPP!$A$4+1,SUM(MPP!J30:J37),"")) ->  | J8: =IF(MPP!A33<=MPP!$A$4,MPP!K33,IF(MPP!A33=MPP!$A$4+1,SUM(MPP!K30:K37),"")) ->  | K8: =IF(MPP!A33<=MPP!$A$4,MPP!L33,IF(MPP!A33=MPP!$A$4+1,SUM(MPP!L30:L37),"")) ->  | L8: =IF(MPP!A33<=MPP!$A$4,MPP!M33,IF(MPP!A33=MPP!$A$4+1,SUM(MPP!M30:M37),"")) ->  | M8: =IF(MPP!A33<=MPP!$A$4,MPP!N33,IF(MPP!A33=MPP!$A$4+1,SUM(MPP!N30:N37),"")) -> 
A9: =IF(MPP!A34<=MPP!$A$4,MPP!B34,IF(MPP!A34=MPP!$A$4+1,"Total","")) ->  | B9: =IF(MPP!A34<=MPP!$A$4,MPP!C34,IF(MPP!A34=MPP!$A$4+1,SUM(MPP!C30:C37),"")) ->  | C9: =IF(MPP!A34<=MPP!$A$4,MPP!D34,IF(MPP!A34=MPP!$A$4+1,SUM(MPP!D30:D37),"")) ->  | D9: =IF(MPP!A34<=MPP!$A$4,MPP!E34,IF(MPP!A34=MPP!$A$4+1,SUM(MPP!E30:E37),"")) ->  | E9: =IF(MPP!A34<=MPP!$A$4,MPP!F34,IF(MPP!A34=MPP!$A$4+1,SUM(MPP!F30:F37),"")) ->  | F9: =IF(MPP!A34<=MPP!$A$4,MPP!G34,IF(MPP!A34=MPP!$A$4+1,SUM(MPP!G30:G37),"")) ->  | G9: =IF(MPP!A34<=MPP!$A$4,MPP!H34,IF(MPP!A34=MPP!$A$4+1,SUM(MPP!H30:H37),"")) ->  | H9: =IF(MPP!A34<=MPP!$A$4,MPP!I34,IF(MPP!A34=MPP!$A$4+1,SUM(MPP!I30:I37),"")) ->  | I9: =IF(MPP!A34<=MPP!$A$4,MPP!J34,IF(MPP!A34=MPP!$A$4+1,SUM(MPP!J30:J37),"")) ->  | J9: =IF(MPP!A34<=MPP!$A$4,MPP!K34,IF(MPP!A34=MPP!$A$4+1,SUM(MPP!K30:K37),"")) ->  | K9: =IF(MPP!A34<=MPP!$A$4,MPP!L34,IF(MPP!A34=MPP!$A$4+1,SUM(MPP!L30:L37),"")) ->  | L9: =IF(MPP!A34<=MPP!$A$4,MPP!M34,IF(MPP!A34=MPP!$A$4+1,SUM(MPP!M30:M37),"")) ->  | M9: =IF(MPP!A34<=MPP!$A$4,MPP!N34,IF(MPP!A34=MPP!$A$4+1,SUM(MPP!N30:N37),"")) -> 
A10: =IF(MPP!A35<=MPP!$A$4,MPP!B35,IF(MPP!A35=MPP!$A$4+1,"Total","")) ->  | B10: =IF(MPP!A35<=MPP!$A$4,MPP!C35,IF(MPP!A35=MPP!$A$4+1,SUM(MPP!C30:C37),"")) ->  | C10: =IF(MPP!A35<=MPP!$A$4,MPP!D35,IF(MPP!A35=MPP!$A$4+1,SUM(MPP!D30:D37),"")) ->  | D10: =IF(MPP!A35<=MPP!$A$4,MPP!E35,IF(MPP!A35=MPP!$A$4+1,SUM(MPP!E30:E37),"")) ->  | E10: =IF(MPP!A35<=MPP!$A$4,MPP!F35,IF(MPP!A35=MPP!$A$4+1,SUM(MPP!F30:F37),"")) ->  | F10: =IF(MPP!A35<=MPP!$A$4,MPP!G35,IF(MPP!A35=MPP!$A$4+1,SUM(MPP!G30:G37),"")) ->  | G10: =IF(MPP!A35<=MPP!$A$4,MPP!H35,IF(MPP!A35=MPP!$A$4+1,SUM(MPP!H30:H37),"")) ->  | H10: =IF(MPP!A35<=MPP!$A$4,MPP!I35,IF(MPP!A35=MPP!$A$4+1,SUM(MPP!I30:I37),"")) ->  | I10: =IF(MPP!A35<=MPP!$A$4,MPP!J35,IF(MPP!A35=MPP!$A$4+1,SUM(MPP!J30:J37),"")) ->  | J10: =IF(MPP!A35<=MPP!$A$4,MPP!K35,IF(MPP!A35=MPP!$A$4+1,SUM(MPP!K30:K37),"")) ->  | K10: =IF(MPP!A35<=MPP!$A$4,MPP!L35,IF(MPP!A35=MPP!$A$4+1,SUM(MPP!L30:L37),"")) ->  | L10: =IF(MPP!A35<=MPP!$A$4,MPP!M35,IF(MPP!A35=MPP!$A$4+1,SUM(MPP!M30:M37),"")) ->  | M10: =IF(MPP!A35<=MPP!$A$4,MPP!N35,IF(MPP!A35=MPP!$A$4+1,SUM(MPP!N30:N37),"")) -> 
A11: =IF(MPP!A36<=MPP!$A$4,MPP!B36,IF(MPP!A36=MPP!$A$4+1,"Total","")) ->  | B11: =IF(MPP!A36<=MPP!$A$4,MPP!C36,IF(MPP!A36=MPP!$A$4+1,SUM(MPP!C30:C37),"")) ->  | C11: =IF(MPP!A36<=MPP!$A$4,MPP!D36,IF(MPP!A36=MPP!$A$4+1,SUM(MPP!D30:D37),"")) ->  | D11: =IF(MPP!A36<=MPP!$A$4,MPP!E36,IF(MPP!A36=MPP!$A$4+1,SUM(MPP!E30:E37),"")) ->  | E11: =IF(MPP!A36<=MPP!$A$4,MPP!F36,IF(MPP!A36=MPP!$A$4+1,SUM(MPP!F30:F37),"")) ->  | F11: =IF(MPP!A36<=MPP!$A$4,MPP!G36,IF(MPP!A36=MPP!$A$4+1,SUM(MPP!G30:G37),"")) ->  | G11: =IF(MPP!A36<=MPP!$A$4,MPP!H36,IF(MPP!A36=MPP!$A$4+1,SUM(MPP!H30:H37),"")) ->  | H11: =IF(MPP!A36<=MPP!$A$4,MPP!I36,IF(MPP!A36=MPP!$A$4+1,SUM(MPP!I30:I37),"")) ->  | I11: =IF(MPP!A36<=MPP!$A$4,MPP!J36,IF(MPP!A36=MPP!$A$4+1,SUM(MPP!J30:J37),"")) ->  | J11: =IF(MPP!A36<=MPP!$A$4,MPP!K36,IF(MPP!A36=MPP!$A$4+1,SUM(MPP!K30:K37),"")) ->  | K11: =IF(MPP!A36<=MPP!$A$4,MPP!L36,IF(MPP!A36=MPP!$A$4+1,SUM(MPP!L30:L37),"")) ->  | L11: =IF(MPP!A36<=MPP!$A$4,MPP!M36,IF(MPP!A36=MPP!$A$4+1,SUM(MPP!M30:M37),"")) ->  | M11: =IF(MPP!A36<=MPP!$A$4,MPP!N36,IF(MPP!A36=MPP!$A$4+1,SUM(MPP!N30:N37),"")) -> 
A12: =IF(MPP!A37<=MPP!$A$4,MPP!B37,IF(MPP!A37=MPP!$A$4+1,"Total","")) ->  | B12: =IF(MPP!A37<=MPP!$A$4,MPP!C37,IF(MPP!A37=MPP!$A$4+1,SUM(MPP!C30:C37),"")) ->  | C12: =IF(MPP!A37<=MPP!$A$4,MPP!D37,IF(MPP!A37=MPP!$A$4+1,SUM(MPP!D30:D37),"")) ->  | D12: =IF(MPP!A37<=MPP!$A$4,MPP!E37,IF(MPP!A37=MPP!$A$4+1,SUM(MPP!E30:E37),"")) ->  | E12: =IF(MPP!A37<=MPP!$A$4,MPP!F37,IF(MPP!A37=MPP!$A$4+1,SUM(MPP!F30:F37),"")) ->  | F12: =IF(MPP!A37<=MPP!$A$4,MPP!G37,IF(MPP!A37=MPP!$A$4+1,SUM(MPP!G30:G37),"")) ->  | G12: =IF(MPP!A37<=MPP!$A$4,MPP!H37,IF(MPP!A37=MPP!$A$4+1,SUM(MPP!H30:H37),"")) ->  | H12: =IF(MPP!A37<=MPP!$A$4,MPP!I37,IF(MPP!A37=MPP!$A$4+1,SUM(MPP!I30:I37),"")) ->  | I12: =IF(MPP!A37<=MPP!$A$4,MPP!J37,IF(MPP!A37=MPP!$A$4+1,SUM(MPP!J30:J37),"")) ->  | J12: =IF(MPP!A37<=MPP!$A$4,MPP!K37,IF(MPP!A37=MPP!$A$4+1,SUM(MPP!K30:K37),"")) ->  | K12: =IF(MPP!A37<=MPP!$A$4,MPP!L37,IF(MPP!A37=MPP!$A$4+1,SUM(MPP!L30:L37),"")) ->  | L12: =IF(MPP!A37<=MPP!$A$4,MPP!M37,IF(MPP!A37=MPP!$A$4+1,SUM(MPP!M30:M37),"")) ->  | M12: =IF(MPP!A37<=MPP!$A$4,MPP!N37,IF(MPP!A37=MPP!$A$4+1,SUM(MPP!N30:N37),"")) -> 
A13: =IF(MPP!A38<=MPP!$A$4,MPP!B38,IF(MPP!A38=MPP!$A$4+1,"Total","")) ->  | B13: =IF(MPP!A38<=MPP!$A$4,MPP!C38,IF(MPP!A38=MPP!$A$4+1,SUM(MPP!C30:C37),"")) ->  | C13: =IF(MPP!A38<=MPP!$A$4,MPP!D38,IF(MPP!A38=MPP!$A$4+1,SUM(MPP!D30:D37),"")) ->  | D13: =IF(MPP!A38<=MPP!$A$4,MPP!E38,IF(MPP!A38=MPP!$A$4+1,SUM(MPP!E30:E37),"")) ->  | E13: =IF(MPP!A38<=MPP!$A$4,MPP!F38,IF(MPP!A38=MPP!$A$4+1,SUM(MPP!F30:F37),"")) ->  | F13: =IF(MPP!A38<=MPP!$A$4,MPP!G38,IF(MPP!A38=MPP!$A$4+1,SUM(MPP!G30:G37),"")) ->  | G13: =IF(MPP!A38<=MPP!$A$4,MPP!H38,IF(MPP!A38=MPP!$A$4+1,SUM(MPP!H30:H37),"")) ->  | H13: =IF(MPP!A38<=MPP!$A$4,MPP!I38,IF(MPP!A38=MPP!$A$4+1,SUM(MPP!I30:I37),"")) ->  | I13: =IF(MPP!A38<=MPP!$A$4,MPP!J38,IF(MPP!A38=MPP!$A$4+1,SUM(MPP!J30:J37),"")) ->  | J13: =IF(MPP!A38<=MPP!$A$4,MPP!K38,IF(MPP!A38=MPP!$A$4+1,SUM(MPP!K30:K37),"")) ->  | K13: =IF(MPP!A38<=MPP!$A$4,MPP!L38,IF(MPP!A38=MPP!$A$4+1,SUM(MPP!L30:L37),"")) ->  | L13: =IF(MPP!A38<=MPP!$A$4,MPP!M38,IF(MPP!A38=MPP!$A$4+1,SUM(MPP!M30:M37),"")) ->  | M13: =IF(MPP!A38<=MPP!$A$4,MPP!N38,IF(MPP!A38=MPP!$A$4+1,SUM(MPP!N30:N37),"")) -> 
A17: Phase 2
A18: For Information purposes only:
A19: Amounts in Euro for Prime and Subcontractor(s)
A20: Milestone | B20: =MPP!C29 -> Our company (IT) | C20: =IF(MPP!D41<=MPP!$C$41,MPP!D42,"") -> Subco 1 (AT) | D20: =IF(MPP!E41<=MPP!$C$41,MPP!E42,"") -> Subco 2 (DE) | E20: =IF(MPP!F41<=MPP!$C$41,MPP!F42,"") ->  | F20: =IF(MPP!G41<=MPP!$C$41,MPP!G42,"") ->  | G20: =IF(MPP!H41<=MPP!$C$41,MPP!H42,"") ->  | H20: =IF(MPP!I41<=MPP!$C$41,MPP!I42,"") ->  | I20: =IF(MPP!J41<=MPP!$C$41,MPP!J42,"") ->  | J20: =IF(MPP!K41<=MPP!$C$41,MPP!K42,"") ->  | K20: =IF(MPP!L41<=MPP!$C$41,MPP!L42,"") ->  | L20: =IF(MPP!M41<=MPP!$C$41,MPP!M42,"") ->  | M20: =IF(MPP!N41<=MPP!$C$41,MPP!N42,"") -> 
A21: =IF(MPP!A43<=MPP!$A$16,MPP!B43,IF(MPP!A43=MPP!$A$16+1,"Total","")) -> Milestone Description | B21: =IF(MPP!A43<=MPP!$A$16,MPP!C43,IF(MPP!A43=MPP!$A$16+1,SUM(MPP!C43:C50),"")) -> 140000 | C21: =IF(MPP!A43<=MPP!$A$16,MPP!D43,IF(MPP!A43=MPP!$A$16+1,SUM(MPP!D43:D50),"")) -> 40000 | D21: =IF(MPP!A43<=MPP!$A$16,MPP!E43,IF(MPP!A43=MPP!$A$16+1,SUM(MPP!E43:E50),"")) -> 20000 | E21: =IF(MPP!A43<=MPP!$A$16,MPP!F43,IF(MPP!A43=MPP!$A$16+1,SUM(MPP!F43:F50),"")) -> 0 | F21: =IF(MPP!A43<=MPP!$A$16,MPP!G43,IF(MPP!A43=MPP!$A$16+1,SUM(MPP!G43:G50),"")) -> 0 | G21: =IF(MPP!A43<=MPP!$A$16,MPP!H43,IF(MPP!A43=MPP!$A$16+1,SUM(MPP!H43:H50),"")) -> 0 | H21: =IF(MPP!A43<=MPP!$A$16,MPP!I43,IF(MPP!A43=MPP!$A$16+1,SUM(MPP!I43:I50),"")) -> 0 | I21: =IF(MPP!A43<=MPP!$A$16,MPP!J43,IF(MPP!A43=MPP!$A$16+1,SUM(MPP!J43:J50),"")) -> 0 | J21: =IF(MPP!A43<=MPP!$A$16,MPP!K43,IF(MPP!A43=MPP!$A$16+1,SUM(MPP!K43:K50),"")) -> 0 | K21: =IF(MPP!A43<=MPP!$A$16,MPP!L43,IF(MPP!A43=MPP!$A$16+1,SUM(MPP!L43:L50),"")) -> 0 | L21: =IF(MPP!A43<=MPP!$A$16,MPP!M43,IF(MPP!A43=MPP!$A$16+1,SUM(MPP!M43:M50),"")) -> 0 | M21: =IF(MPP!A43<=MPP!$A$16,MPP!N43,IF(MPP!A43=MPP!$A$16+1,SUM(MPP!N43:N50),"")) -> 0
A22: =IF(MPP!A44<=MPP!$A$16,MPP!B44,IF(MPP!A44=MPP!$A$16+1,"Total","")) -> Milestone Description | B22: =IF(MPP!A44<=MPP!$A$16,MPP!C44,IF(MPP!A44=MPP!$A$16+1,SUM(MPP!C43:C50),"")) -> 160000 | C22: =IF(MPP!A44<=MPP!$A$16,MPP!D44,IF(MPP!A44=MPP!$A$16+1,SUM(MPP!D43:D50),"")) -> 20000 | D22: =IF(MPP!A44<=MPP!$A$16,MPP!E44,IF(MPP!A44=MPP!$A$16+1,SUM(MPP!E43:E50),"")) -> 20000 | E22: =IF(MPP!A44<=MPP!$A$16,MPP!F44,IF(MPP!A44=MPP!$A$16+1,SUM(MPP!F43:F50),"")) -> 0 | F22: =IF(MPP!A44<=MPP!$A$16,MPP!G44,IF(MPP!A44=MPP!$A$16+1,SUM(MPP!G43:G50),"")) -> 0 | G22: =IF(MPP!A44<=MPP!$A$16,MPP!H44,IF(MPP!A44=MPP!$A$16+1,SUM(MPP!H43:H50),"")) -> 0 | H22: =IF(MPP!A44<=MPP!$A$16,MPP!I44,IF(MPP!A44=MPP!$A$16+1,SUM(MPP!I43:I50),"")) -> 0 | I22: =IF(MPP!A44<=MPP!$A$16,MPP!J44,IF(MPP!A44=MPP!$A$16+1,SUM(MPP!J43:J50),"")) -> 0 | J22: =IF(MPP!A44<=MPP!$A$16,MPP!K44,IF(MPP!A44=MPP!$A$16+1,SUM(MPP!K43:K50),"")) -> 0 | K22: =IF(MPP!A44<=MPP!$A$16,MPP!L44,IF(MPP!A44=MPP!$A$16+1,SUM(MPP!L43:L50),"")) -> 0 | L22: =IF(MPP!A44<=MPP!$A$16,MPP!M44,IF(MPP!A44=MPP!$A$16+1,SUM(MPP!M43:M50),"")) -> 0 | M22: =IF(MPP!A44<=MPP!$A$16,MPP!N44,IF(MPP!A44=MPP!$A$16+1,SUM(MPP!N43:N50),"")) -> 0
A23: =IF(MPP!A45<=MPP!$A$16,MPP!B45,IF(MPP!A45=MPP!$A$16+1,"Total","")) -> Milestone Description | B23: =IF(MPP!A45<=MPP!$A$16,MPP!C45,IF(MPP!A45=MPP!$A$16+1,SUM(MPP!C43:C50),"")) -> 110000 | C23: =IF(MPP!A45<=MPP!$A$16,MPP!D45,IF(MPP!A45=MPP!$A$16+1,SUM(MPP!D43:D50),"")) -> 20000 | D23: =IF(MPP!A45<=MPP!$A$16,MPP!E45,IF(MPP!A45=MPP!$A$16+1,SUM(MPP!E43:E50),"")) -> 20000 | E23: =IF(MPP!A45<=MPP!$A$16,MPP!F45,IF(MPP!A45=MPP!$A$16+1,SUM(MPP!F43:F50),"")) -> 0 | F23: =IF(MPP!A45<=MPP!$A$16,MPP!G45,IF(MPP!A45=MPP!$A$16+1,SUM(MPP!G43:G50),"")) -> 0 | G23: =IF(MPP!A45<=MPP!$A$16,MPP!H45,IF(MPP!A45=MPP!$A$16+1,SUM(MPP!H43:H50),"")) -> 0 | H23: =IF(MPP!A45<=MPP!$A$16,MPP!I45,IF(MPP!A45=MPP!$A$16+1,SUM(MPP!I43:I50),"")) -> 0 | I23: =IF(MPP!A45<=MPP!$A$16,MPP!J45,IF(MPP!A45=MPP!$A$16+1,SUM(MPP!J43:J50),"")) -> 0 | J23: =IF(MPP!A45<=MPP!$A$16,MPP!K45,IF(MPP!A45=MPP!$A$16+1,SUM(MPP!K43:K50),"")) -> 0 | K23: =IF(MPP!A45<=MPP!$A$16,MPP!L45,IF(MPP!A45=MPP!$A$16+1,SUM(MPP!L43:L50),"")) -> 0 | L23: =IF(MPP!A45<=MPP!$A$16,MPP!M45,IF(MPP!A45=MPP!$A$16+1,SUM(MPP!M43:M50),"")) -> 0 | M23: =IF(MPP!A45<=MPP!$A$16,MPP!N45,IF(MPP!A45=MPP!$A$16+1,SUM(MPP!N43:N50),"")) -> 0
A24: =IF(MPP!A46<=MPP!$A$16,MPP!B46,IF(MPP!A46=MPP!$A$16+1,"Total","")) -> Milestone Description | B24: =IF(MPP!A46<=MPP!$A$16,MPP!C46,IF(MPP!A46=MPP!$A$16+1,SUM(MPP!C43:C50),"")) -> 170000 | C24: =IF(MPP!A46<=MPP!$A$16,MPP!D46,IF(MPP!A46=MPP!$A$16+1,SUM(MPP!D43:D50),"")) -> 10000 | D24: =IF(MPP!A46<=MPP!$A$16,MPP!E46,IF(MPP!A46=MPP!$A$16+1,SUM(MPP!E43:E50),"")) -> 20000 | E24: =IF(MPP!A46<=MPP!$A$16,MPP!F46,IF(MPP!A46=MPP!$A$16+1,SUM(MPP!F43:F50),"")) -> 0 | F24: =IF(MPP!A46<=MPP!$A$16,MPP!G46,IF(MPP!A46=MPP!$A$16+1,SUM(MPP!G43:G50),"")) -> 0 | G24: =IF(MPP!A46<=MPP!$A$16,MPP!H46,IF(MPP!A46=MPP!$A$16+1,SUM(MPP!H43:H50),"")) -> 0 | H24: =IF(MPP!A46<=MPP!$A$16,MPP!I46,IF(MPP!A46=MPP!$A$16+1,SUM(MPP!I43:I50),"")) -> 0 | I24: =IF(MPP!A46<=MPP!$A$16,MPP!J46,IF(MPP!A46=MPP!$A$16+1,SUM(MPP!J43:J50),"")) -> 0 | J24: =IF(MPP!A46<=MPP!$A$16,MPP!K46,IF(MPP!A46=MPP!$A$16+1,SUM(MPP!K43:K50),"")) -> 0 | K24: =IF(MPP!A46<=MPP!$A$16,MPP!L46,IF(MPP!A46=MPP!$A$16+1,SUM(MPP!L43:L50),"")) -> 0 | L24: =IF(MPP!A46<=MPP!$A$16,MPP!M46,IF(MPP!A46=MPP!$A$16+1,SUM(MPP!M43:M50),"")) -> 0 | M24: =IF(MPP!A46<=MPP!$A$16,MPP!N46,IF(MPP!A46=MPP!$A$16+1,SUM(MPP!N43:N50),"")) -> 0
A25: =IF(MPP!A47<=MPP!$A$16,MPP!B47,IF(MPP!A47=MPP!$A$16+1,"Total","")) -> Milestone Description | B25: =IF(MPP!A47<=MPP!$A$16,MPP!C47,IF(MPP!A47=MPP!$A$16+1,SUM(MPP!C43:C50),"")) -> 20000 | C25: =IF(MPP!A47<=MPP!$A$16,MPP!D47,IF(MPP!A47=MPP!$A$16+1,SUM(MPP!D43:D50),"")) -> 10000 | D25: =IF(MPP!A47<=MPP!$A$16,MPP!E47,IF(MPP!A47=MPP!$A$16+1,SUM(MPP!E43:E50),"")) -> 10000 | E25: =IF(MPP!A47<=MPP!$A$16,MPP!F47,IF(MPP!A47=MPP!$A$16+1,SUM(MPP!F43:F50),"")) -> 0 | F25: =IF(MPP!A47<=MPP!$A$16,MPP!G47,IF(MPP!A47=MPP!$A$16+1,SUM(MPP!G43:G50),"")) -> 0 | G25: =IF(MPP!A47<=MPP!$A$16,MPP!H47,IF(MPP!A47=MPP!$A$16+1,SUM(MPP!H43:H50),"")) -> 0 | H25: =IF(MPP!A47<=MPP!$A$16,MPP!I47,IF(MPP!A47=MPP!$A$16+1,SUM(MPP!I43:I50),"")) -> 0 | I25: =IF(MPP!A47<=MPP!$A$16,MPP!J47,IF(MPP!A47=MPP!$A$16+1,SUM(MPP!J43:J50),"")) -> 0 | J25: =IF(MPP!A47<=MPP!$A$16,MPP!K47,IF(MPP!A47=MPP!$A$16+1,SUM(MPP!K43:K50),"")) -> 0 | K25: =IF(MPP!A47<=MPP!$A$16,MPP!L47,IF(MPP!A47=MPP!$A$16+1,SUM(MPP!L43:L50),"")) -> 0 | L25: =IF(MPP!A47<=MPP!$A$16,MPP!M47,IF(MPP!A47=MPP!$A$16+1,SUM(MPP!M43:M50),"")) -> 0 | M25: =IF(MPP!A47<=MPP!$A$16,MPP!N47,IF(MPP!A47=MPP!$A$16+1,SUM(MPP!N43:N50),"")) -> 0
A26: =IF(MPP!A48<=MPP!$A$16,MPP!B48,IF(MPP!A48=MPP!$A$16+1,"Total","")) -> Total | B26: =IF(MPP!A48<=MPP!$A$16,MPP!C48,IF(MPP!A48=MPP!$A$16+1,SUM(MPP!C43:CC50),"")) -> 790000 | C26: =IF(MPP!A48<=MPP!$A$16,MPP!D48,IF(MPP!A48=MPP!$A$16+1,SUM(MPP!D43:D50),"")) -> 100000 | D26: =IF(MPP!A48<=MPP!$A$16,MPP!E48,IF(MPP!A48=MPP!$A$16+1,SUM(MPP!E43:E50),"")) -> 90000 | E26: =IF(MPP!A48<=MPP!$A$16,MPP!F48,IF(MPP!A48=MPP!$A$16+1,SUM(MPP!F43:F50),"")) -> 0 | F26: =IF(MPP!A48<=MPP!$A$16,MPP!G48,IF(MPP!A48=MPP!$A$16+1,SUM(MPP!G43:G50),"")) -> 0 | G26: =IF(MPP!A48<=MPP!$A$16,MPP!H48,IF(MPP!A48=MPP!$A$16+1,SUM(MPP!H43:H50),"")) -> 0 | H26: =IF(MPP!A48<=MPP!$A$16,MPP!I48,IF(MPP!A48=MPP!$A$16+1,SUM(MPP!I43:I50),"")) -> 0 | I26: =IF(MPP!A48<=MPP!$A$16,MPP!J48,IF(MPP!A48=MPP!$A$16+1,SUM(MPP!J43:J50),"")) -> 0 | J26: =IF(MPP!A48<=MPP!$A$16,MPP!K48,IF(MPP!A48=MPP!$A$16+1,SUM(MPP!K43:K50),"")) -> 0 | K26: =IF(MPP!A48<=MPP!$A$16,MPP!L48,IF(MPP!A48=MPP!$A$16+1,SUM(MPP!L43:L50),"")) -> 0 | L26: =IF(MPP!A48<=MPP!$A$16,MPP!M48,IF(MPP!A48=MPP!$A$16+1,SUM(MPP!M43:M50),"")) -> 0 | M26: =IF(MPP!A48<=MPP!$A$16,MPP!N48,IF(MPP!A48=MPP!$A$16+1,SUM(MPP!N43:N50),"")) -> 0
A27: =IF(MPP!A49<=MPP!$A$16,MPP!B49,IF(MPP!A49=MPP!$A$16+1,"Total","")) ->  | B27: =IF(MPP!A49<=MPP!$A$16,MPP!C49,IF(MPP!A49=MPP!$A$16+1,SUM(MPP!C43:CC50),"")) ->  | C27: =IF(MPP!A49<=MPP!$A$16,MPP!D49,IF(MPP!A49=MPP!$A$16+1,SUM(MPP!D43:D50),"")) ->  | D27: =IF(MPP!A49<=MPP!$A$16,MPP!E49,IF(MPP!A49=MPP!$A$16+1,SUM(MPP!E43:E50),"")) ->  | E27: =IF(MPP!A49<=MPP!$A$16,MPP!F49,IF(MPP!A49=MPP!$A$16+1,SUM(MPP!F43:F50),"")) ->  | F27: =IF(MPP!A49<=MPP!$A$16,MPP!G49,IF(MPP!A49=MPP!$A$16+1,SUM(MPP!G43:G50),"")) ->  | G27: =IF(MPP!A49<=MPP!$A$16,MPP!H49,IF(MPP!A49=MPP!$A$16+1,SUM(MPP!H43:H50),"")) ->  | H27: =IF(MPP!A49<=MPP!$A$16,MPP!I49,IF(MPP!A49=MPP!$A$16+1,SUM(MPP!I43:I50),"")) ->  | I27: =IF(MPP!A49<=MPP!$A$16,MPP!J49,IF(MPP!A49=MPP!$A$16+1,SUM(MPP!J43:J50),"")) ->  | J27: =IF(MPP!A49<=MPP!$A$16,MPP!K49,IF(MPP!A49=MPP!$A$16+1,SUM(MPP!K43:K50),"")) ->  | K27: =IF(MPP!A49<=MPP!$A$16,MPP!L49,IF(MPP!A49=MPP!$A$16+1,SUM(MPP!L43:L50),"")) ->  | L27: =IF(MPP!A49<=MPP!$A$16,MPP!M49,IF(MPP!A49=MPP!$A$16+1,SUM(MPP!M43:M50),"")) ->  | M27: =IF(MPP!A49<=MPP!$A$16,MPP!N49,IF(MPP!A49=MPP!$A$16+1,SUM(MPP!N43:N50),"")) -> 
A28: =IF(MPP!A50<=MPP!$A$16,MPP!B50,IF(MPP!A50=MPP!$A$16+1,"Total","")) ->  | B28: =IF(MPP!A50<=MPP!$A$16,MPP!C50,IF(MPP!A50=MPP!$A$16+1,SUM(MPP!C43:CC50),"")) ->  | C28: =IF(MPP!A50<=MPP!$A$16,MPP!D50,IF(MPP!A50=MPP!$A$16+1,SUM(MPP!D43:D50),"")) ->  | D28: =IF(MPP!A50<=MPP!$A$16,MPP!E50,IF(MPP!A50=MPP!$A$16+1,SUM(MPP!E43:E50),"")) ->  | E28: =IF(MPP!A50<=MPP!$A$16,MPP!F50,IF(MPP!A50=MPP!$A$16+1,SUM(MPP!F43:F50),"")) ->  | F28: =IF(MPP!A50<=MPP!$A$16,MPP!G50,IF(MPP!A50=MPP!$A$16+1,SUM(MPP!G43:G50),"")) ->  | G28: =IF(MPP!A50<=MPP!$A$16,MPP!H50,IF(MPP!A50=MPP!$A$16+1,SUM(MPP!H43:H50),"")) ->  | H28: =IF(MPP!A50<=MPP!$A$16,MPP!I50,IF(MPP!A50=MPP!$A$16+1,SUM(MPP!I43:I50),"")) ->  | I28: =IF(MPP!A50<=MPP!$A$16,MPP!J50,IF(MPP!A50=MPP!$A$16+1,SUM(MPP!J43:J50),"")) ->  | J28: =IF(MPP!A50<=MPP!$A$16,MPP!K50,IF(MPP!A50=MPP!$A$16+1,SUM(MPP!K43:K50),"")) ->  | K28: =IF(MPP!A50<=MPP!$A$16,MPP!L50,IF(MPP!A50=MPP!$A$16+1,SUM(MPP!L43:L50),"")) ->  | L28: =IF(MPP!A50<=MPP!$A$16,MPP!M50,IF(MPP!A50=MPP!$A$16+1,SUM(MPP!M43:M50),"")) ->  | M28: =IF(MPP!A50<=MPP!$A$16,MPP!N50,IF(MPP!A50=MPP!$A$16+1,SUM(MPP!N43:N50),"")) -> 
A29: =IF(MPP!A51<=MPP!$A$16,MPP!B51,IF(MPP!A51=MPP!$A$16+1,"Total","")) ->  | B29: =IF(MPP!A51<=MPP!$A$16,MPP!C51,IF(MPP!A51=MPP!$A$16+1,SUM(MPP!C43:C50),"")) ->  | C29: =IF(MPP!A51<=MPP!$A$16,MPP!D51,IF(MPP!A51=MPP!$A$16+1,SUM(MPP!D43:D50),"")) ->  | D29: =IF(MPP!A51<=MPP!$A$16,MPP!E51,IF(MPP!A51=MPP!$A$16+1,SUM(MPP!E43:E50),"")) ->  | E29: =IF(MPP!A51<=MPP!$A$16,MPP!F51,IF(MPP!A51=MPP!$A$16+1,SUM(MPP!F43:F50),"")) ->  | F29: =IF(MPP!A51<=MPP!$A$16,MPP!G51,IF(MPP!A51=MPP!$A$16+1,SUM(MPP!G43:G50),"")) ->  | G29: =IF(MPP!A51<=MPP!$A$16,MPP!H51,IF(MPP!A51=MPP!$A$16+1,SUM(MPP!H43:H50),"")) ->  | H29: =IF(MPP!A51<=MPP!$A$16,MPP!I51,IF(MPP!A51=MPP!$A$16+1,SUM(MPP!I43:I50),"")) ->  | I29: =IF(MPP!A51<=MPP!$A$16,MPP!J51,IF(MPP!A51=MPP!$A$16+1,SUM(MPP!J43:J50),"")) ->  | J29: =IF(MPP!A51<=MPP!$A$16,MPP!K51,IF(MPP!A51=MPP!$A$16+1,SUM(MPP!K43:K50),"")) ->  | K29: =IF(MPP!A51<=MPP!$A$16,MPP!L51,IF(MPP!A51=MPP!$A$16+1,SUM(MPP!L43:L50),"")) ->  | L29: =IF(MPP!A51<=MPP!$A$16,MPP!M51,IF(MPP!A51=MPP!$A$16+1,SUM(MPP!M43:M50),"")) ->  | M29: =IF(MPP!A51<=MPP!$A$16,MPP!N51,IF(MPP!A51=MPP!$A$16+1,SUM(MPP!N43:N50),"")) -> 

Sheet TableAdvance
A1: Phase 1 - Advance Breakdown | J1: Scroll down for Phase 2 table
A2: For Information purposes only:
A3: Amounts in Euro for Contractor and Subcontractor(s)
A4: Prime (P) / Subco (SI) | B4: ="Company" & CHAR(10) & "Name" -> Company Name | C4: Vendor Code (at contract signature) | D4: Country (ISO code) | E4: Advance Payment (in Euro) | F4: Offset against | G4: Offset by Euro | H4: Condition for release of the Advance Payment (if applicable)
A5: =IF(ADV!A3="Yes",ADV!D3,"") -> P | B5: =IF(A5="","",ADV!E3) -> Our Company | C5: =IF(A5="","",ADV!F3) -> 100 xxx-xxx | D5: =IF(A5="","",ADV!G3) -> IT | E5: =IF(A5="","",ADV!H3) -> 50000 | F5: =IF(A5="","",TRIM(ADV!I3&CHAR(10)&ADV!I4&CHAR(10)&ADV!I5&CHAR(10)&ADV!I6&CHAR(10)&ADV!I7&CHAR(10)&ADV!I8&CHAR(10)&ADV!I9&CHAR(10)&ADV!I10&CHAR(10))) -> Milestone 1 Milestone 2 | G5: =IF(A5="","",TRIM(ADV!J3&CHAR(10)&ADV!J4&CHAR(10)&ADV!J5&CHAR(10)&ADV!J6&CHAR(10)&ADV!J7&CHAR(10)&ADV!J8&CHAR(10)&ADV!J9&CHAR(10)&ADV!J10&CHAR(10))) -> 25000 25000 | H5: =IF(A5="","",ADV!K3) -> After signature of the Contract by both Parties
A6: =IF(ADV!A11="Yes",ADV!D11,"") -> SI | B6: =IF(A6="","",ADV!E11) -> Subco 1 | C6: =IF(A6="","",ADV!F11) -> 100 xxx-xxx | D6: =IF(A6="","",ADV!G11) -> AT | E6: =IF(A6="","",ADV!H11) -> 4000 | F6: =IF(A6<>"",TRIM(ADV!I11&CHAR(10)&ADV!I12&CHAR(10)&ADV!I13&CHAR(10)&ADV!I14&CHAR(10)&ADV!I15&CHAR(10)&ADV!I16&CHAR(10)&ADV!I17&CHAR(10)&ADV!I18&CHAR(10)),"") -> Milestone 1 Milestone 2 | G6: =IF(B6<>"",TRIM(ADV!J11&CHAR(10)&ADV!J12&CHAR(10)&ADV!J13&CHAR(10)&ADV!J14&CHAR(10)&ADV!J15&CHAR(10)&ADV!J16&CHAR(10)&ADV!J17&CHAR(10)&ADV!J18&CHAR(10)),"") -> 2000 2000 | H6: =IF(A6="","",ADV!K11) -> After signature of the Contract by both Parties
A7: =IF(ADV!A19="Yes",ADV!D19,"") ->  | B7: =IF(A7="","",ADV!E19) ->  | C7: =IF(A7="","",ADV!F19) ->  | D7: =IF(C7="","",ADV!G19) ->  | E7: =IF(D7="","",ADV!H19) ->  | F7: =IF(A7<>"",TRIM(ADV!I19&CHAR(10)&ADV!I20&CHAR(10)&ADV!I21&CHAR(10)&ADV!I22&CHAR(10)&ADV!I23&CHAR(10)&ADV!I24&CHAR(10)&ADV!I25&CHAR(10)&ADV!I26),"") ->  | G7: =IF(B7<>"",TRIM(ADV!J19&CHAR(10)&ADV!J20&CHAR(10)&ADV!J21&CHAR(10)&ADV!J22&CHAR(10)&ADV!J23&CHAR(10)&ADV!J24&CHAR(10)&ADV!J25&CHAR(10)&ADV!J26),"") ->  | H7: =IF(A7="","",ADV!K19) -> 
A8: =IF(ADV!A27="Yes",ADV!D27,"") ->  | B8: =IF(A8="","",ADV!E27) ->  | C8: =IF(A8="","",ADV!F27) ->  | D8: =IF(C8="","",ADV!G27) ->  | E8: =IF(D8="","",ADV!H27) ->  | F8: =IF(A8<>"",TRIM(ADV!I27&CHAR(10)&ADV!I28&CHAR(10)&ADV!I29&CHAR(10)&ADV!I30&CHAR(10)&ADV!I31&CHAR(10)&ADV!I32&CHAR(10)&ADV!I33&CHAR(10)&ADV!I34),"") ->  | G8: =IF(B8<>"",TRIM(ADV!J27&CHAR(10)&ADV!J28&CHAR(10)&ADV!J29&CHAR(10)&ADV!J30&CHAR(10)&ADV!J31&CHAR(10)&ADV!J32&CHAR(10)&ADV!J33&CHAR(10)&ADV!J34),"") ->  | H8: =IF(A8="","",ADV!K27) -> 
A9: =IF(ADV!A35="Yes",ADV!D35,"") ->  | B9: =IF(A9="","",ADV!E35) ->  | C9: =IF(A9="","",ADV!F35) ->  | D9: =IF(C9="","",ADV!G35) ->  | E9: =IF(D9="","",ADV!H35) ->  | F9: =IF(A9<>"",TRIM(ADV!I35&CHAR(10)&ADV!I36&CHAR(10)&ADV!I37&CHAR(10)&ADV!I38&CHAR(10)&ADV!I39&CHAR(10)&ADV!I40&CHAR(10)&ADV!I41&CHAR(10)&ADV!I42),"") ->  | G9: =IF(B9<>"",TRIM(ADV!J35&CHAR(10)&ADV!J36&CHAR(10)&ADV!J37&CHAR(10)&ADV!J38&CHAR(10)&ADV!J39&CHAR(10)&ADV!J40&CHAR(10)&ADV!J41&CHAR(10)&ADV!J42),"") ->  | H9: =IF(A9="","",ADV!K35) -> 
A10: =IF(ADV!A43="Yes",ADV!D43,"") ->  | B10: =IF(A10="","",ADV!E43) ->  | C10: =IF(A10="","",ADV!F43) ->  | D10: =IF(C10="","",ADV!G43) ->  | E10: =IF(D10="","",ADV!H43) ->  | F10: =IF(A10<>"",TRIM(ADV!I43&CHAR(10)&ADV!I44&CHAR(10)&ADV!I45&CHAR(10)&ADV!I46&CHAR(10)&ADV!I47&CHAR(10)&ADV!I48&CHAR(10)&ADV!I49&CHAR(10)&ADV!I50),"") ->  | G10: =IF(B10<>"",TRIM(ADV!J43&CHAR(10)&ADV!J44&CHAR(10)&ADV!J45&CHAR(10)&ADV!J46&CHAR(10)&ADV!J47&CHAR(10)&ADV!J48&CHAR(10)&ADV!J49&CHAR(10)&ADV!J50),"") ->  | H10: =IF(A10="","",ADV!K43) -> 
A11: =IF(ADV!A51="Yes",ADV!D51,"") ->  | B11: =IF(A11="","",ADV!E51) ->  | C11: =IF(A11="","",ADV!F51) ->  | D11: =IF(C11="","",ADV!G51) ->  | E11: =IF(D11="","",ADV!H51) ->  | F11: =IF(A11<>"",TRIM(ADV!I51&CHAR(10)&ADV!I52&CHAR(10)&ADV!I53&CHAR(10)&ADV!I54&CHAR(10)&ADV!I55&CHAR(10)&ADV!I56&CHAR(10)&ADV!I57&CHAR(10)&ADV!I58),"") ->  | G11: =IF(B11<>"",TRIM(ADV!J51&CHAR(10)&ADV!J52&CHAR(10)&ADV!J53&CHAR(10)&ADV!J54&CHAR(10)&ADV!J55&CHAR(10)&ADV!J56&CHAR(10)&ADV!J57&CHAR(10)&ADV!J58),"") ->  | H11: =IF(A11="","",ADV!K51) -> 
A12: =IF(ADV!A59="Yes",ADV!D59,"") ->  | B12: =IF(A12="","",ADV!E59) ->  | C12: =IF(A12="","",ADV!F59) ->  | D12: =IF(C12="","",ADV!G59) ->  | E12: =IF(D12="","",ADV!H59) ->  | F12: =IF(A12<>"",TRIM(ADV!I59&CHAR(10)&ADV!I60&CHAR(10)&ADV!I61&CHAR(10)&ADV!I62&CHAR(10)&ADV!I63&CHAR(10)&ADV!I64&CHAR(10)&ADV!I65&CHAR(10)&ADV!I66),"") ->  | G12: =IF(B12<>"",TRIM(ADV!J59&CHAR(10)&ADV!J60&CHAR(10)&ADV!J61&CHAR(10)&ADV!J62&CHAR(10)&ADV!J63&CHAR(10)&ADV!J64&CHAR(10)&ADV!J65&CHAR(10)&ADV!J66),"") ->  | H12: =IF(A12="","",ADV!K59) -> 
A13: =IF(ADV!A67="Yes",ADV!D67,"") ->  | B13: =IF(A13="","",ADV!E67) ->  | C13: =IF(A13="","",ADV!F67) ->  | D13: =IF(C13="","",ADV!G67) ->  | E13: =IF(D13="","",ADV!H67) ->  | F13: =IF(A13<>"",TRIM(ADV!I67&CHAR(10)&ADV!I68&CHAR(10)&ADV!I69&CHAR(10)&ADV!I70&CHAR(10)&ADV!I71&CHAR(10)&ADV!I72&CHAR(10)&ADV!I73&CHAR(10)&ADV!I74),"") ->  | G13: =IF(B13<>"",TRIM(ADV!J67&CHAR(10)&ADV!J68&CHAR(10)&ADV!J69&CHAR(10)&ADV!J70&CHAR(10)&ADV!J71&CHAR(10)&ADV!J72&CHAR(10)&ADV!J73&CHAR(10)&ADV!J74),"") ->  | H13: =IF(A13="","",ADV!K67) -> 
A14: =IF(ADV!A75="Yes",ADV!D75,"") ->  | B14: =IF(A14="","",ADV!E75) ->  | C14: =IF(A14="","",ADV!F75) ->  | D14: =IF(C14="","",ADV!G75) ->  | E14: =IF(D14="","",ADV!H75) ->  | F14: =IF(A14<>"",TRIM(ADV!I75&CHAR(10)&ADV!I76&CHAR(10)&ADV!I77&CHAR(10)&ADV!I78&CHAR(10)&ADV!I79&CHAR(10)&ADV!I80&CHAR(10)&ADV!I81&CHAR(10)&ADV!I82),"") ->  | G14: =IF(B14<>"",TRIM(ADV!J75&CHAR(10)&ADV!J76&CHAR(10)&ADV!J77&CHAR(10)&ADV!J78&CHAR(10)&ADV!J79&CHAR(10)&ADV!J80&CHAR(10)&ADV!J81&CHAR(10)&ADV!J82),"") ->  | H14: =IF(A14="","",ADV!K75) -> 
A15: =IF(ADV!A83="Yes",ADV!D83,"") ->  | B15: =IF(A15="","",ADV!E83) ->  | C15: =IF(A15="","",ADV!F83) ->  | D15: =IF(C15="","",ADV!G83) ->  | E15: =IF(D15="","",ADV!H83) ->  | F15: =IF(A15<>"",TRIM(ADV!I75&CHAR(10)&ADV!I76&CHAR(10)&ADV!I77&CHAR(10)&ADV!I78&CHAR(10)&ADV!I79&CHAR(10)&ADV!I80&CHAR(10)&ADV!I81&CHAR(10)&ADV!I82),"") ->  | G15: =IF(B15<>"",TRIM(ADV!J75&CHAR(10)&ADV!J76&CHAR(10)&ADV!J77&CHAR(10)&ADV!J78&CHAR(10)&ADV!J79&CHAR(10)&ADV!J80&CHAR(10)&ADV!J81&CHAR(10)&ADV!J82),"") ->  | H15: =IF(A15="","",ADV!K83) -> 
A16: =IF(ADV!A91="Yes",ADV!D91,"") ->  | B16: =IF(A16="","",ADV!E91) ->  | C16: =IF(A16="","",ADV!F91) ->  | D16: =IF(C16="","",ADV!G91) ->  | E16: =IF(D16="","",ADV!H91) ->  | F16: =IF(A16<>"",TRIM(ADV!I91&CHAR(10)&ADV!I92&CHAR(10)&ADV!I93&CHAR(10)&ADV!I94&CHAR(10)&ADV!I95&CHAR(10)&ADV!I96&CHAR(10)&ADV!I97&CHAR(10)&ADV!I98),"") ->  | G16: =IF(B16<>"",TRIM(ADV!J91&CHAR(10)&ADV!J92&CHAR(10)&ADV!J93&CHAR(10)&ADV!J94&CHAR(10)&ADV!J95&CHAR(10)&ADV!J96&CHAR(10)&ADV!J97&CHAR(10)&ADV!J98),"") ->  | H16: =IF(A16="","",ADV!K91) -> 
A19: Phase 2 - Advance Breakdown
A20: For Information purposes only:
A21: Amounts in Euro for Contractor and Subcontractor(s)
A22: Prime (P) / Subco (SI) | B22: ="Company" & CHAR(10) & "Name" -> Company Name | C22: Vendor Code (at contract signature) | D22: Country (ISO code) | E22: Advance Payment (in Euro) | F22: Offset against | G22: Offset by Euro | H22: Condition for release of the Advance Payment (if applicable)
A23: =IF(ADV!A104="Yes",ADV!D104,"") -> P | B23: =IF(A23="","",ADV!E104) -> Our Company | C23: =IF(A23="","",ADV!F104) -> 100 xxx-xxx | D23: =IF(A23="","",ADV!G104) -> IT | E23: =IF(A23="","",ADV!H104) -> 50000 | F23: =IF(A23="","",TRIM(ADV!I104&CHAR(10)&ADV!I105&CHAR(10)&ADV!I106&CHAR(10)&ADV!I107&CHAR(10)&ADV!I108&CHAR(10)&ADV!I109&CHAR(10)&ADV!I110&CHAR(10)&ADV!I111&CHAR(10))) -> Milestone 1 Milestone 2 Milestone 3 Milestone 4 | G23: =IF(A23="","",TRIM(ADV!J104&CHAR(10)&ADV!J105&CHAR(10)&ADV!J106&CHAR(10)&ADV!J107&CHAR(10)&ADV!J108&CHAR(10)&ADV!J109&CHAR(10)&ADV!J110&CHAR(10)&ADV!J111&CHAR(10))) -> 10000 10000 10000 10000 | H23: =IF(A23="","",ADV!K104) -> After signature of the Contract by both Parties
A24: =IF(ADV!A112="Yes",ADV!D112,"") ->  | B24: =IF(A24="","",ADV!E112) ->  | C24: =IF(A24="","",ADV!F112) ->  | D24: =IF(A24="","",ADV!G112) ->  | E24: =IF(A24="","",ADV!H112) ->  | F24: =IF(A24<>"",TRIM(ADV!I112&CHAR(10)&ADV!I113&CHAR(10)&ADV!I114&CHAR(10)&ADV!I115&CHAR(10)&ADV!I116&CHAR(10)&ADV!I117&CHAR(10)&ADV!I118&CHAR(10)&ADV!I119&CHAR(10)),"") ->  | G24: =IF(B24<>"",TRIM(ADV!J112&CHAR(10)&ADV!J113&CHAR(10)&ADV!J114&CHAR(10)&ADV!J115&CHAR(10)&ADV!J116&CHAR(10)&ADV!J117&CHAR(10)&ADV!J118&CHAR(10)&ADV!J119&CHAR(10)),"") ->  | H24: =IF(A24="","",ADV!K112) -> 
A25: =IF(ADV!A120="Yes",ADV!D120,"") ->  | B25: =IF(A25="","",ADV!E120) ->  | C25: =IF(A25="","",ADV!F120) ->  | D25: =IF(C25="","",ADV!G120) ->  | E25: =IF(D25="","",ADV!H120) ->  | F25: =IF(A25<>"",TRIM(ADV!I120&CHAR(10)&ADV!I121&CHAR(10)&ADV!I122&CHAR(10)&ADV!I123&CHAR(10)&ADV!I124&CHAR(10)&ADV!I125&CHAR(10)&ADV!I126&CHAR(10)&ADV!I127),"") ->  | G25: =IF(B25<>"",TRIM(ADV!J120&CHAR(10)&ADV!J121&CHAR(10)&ADV!J122&CHAR(10)&ADV!J123&CHAR(10)&ADV!J124&CHAR(10)&ADV!J125&CHAR(10)&ADV!J126&CHAR(10)&ADV!J127),"") ->  | H25: =IF(A25="","",ADV!K120) -> 
A26: =IF(ADV!A128="Yes",ADV!D128,"") ->  | B26: =IF(A26="","",ADV!E128) ->  | C26: =IF(A26="","",ADV!F128) ->  | D26: =IF(C26="","",ADV!G128) ->  | E26: =IF(D26="","",ADV!H128) ->  | F26: =IF(A26<>"",TRIM(ADV!I128&CHAR(10)&ADV!I129&CHAR(10)&ADV!I130&CHAR(10)&ADV!I131&CHAR(10)&ADV!I132&CHAR(10)&ADV!I133&CHAR(10)&ADV!I134&CHAR(10)&ADV!I135),"") ->  | G26: =IF(B26<>"",TRIM(ADV!J128&CHAR(10)&ADV!J129&CHAR(10)&ADV!J130&CHAR(10)&ADV!J131&CHAR(10)&ADV!J132&CHAR(10)&ADV!J133&CHAR(10)&ADV!J134&CHAR(10)&ADV!J135),"") ->  | H26: =IF(A26="","",ADV!K128) -> 
A27: =IF(ADV!A136="Yes",ADV!D136,"") ->  | B27: =IF(A27="","",ADV!E136) ->  | C27: =IF(A27="","",ADV!F136) ->  | D27: =IF(C27="","",ADV!G136) ->  | E27: =IF(D27="","",ADV!H136) ->  | F27: =IF(A27<>"",TRIM(ADV!I136&CHAR(10)&ADV!I137&CHAR(10)&ADV!I138&CHAR(10)&ADV!I139&CHAR(10)&ADV!I140&CHAR(10)&ADV!I141&CHAR(10)&ADV!I142&CHAR(10)&ADV!I143),"") ->  | G27: =IF(B27<>"",TRIM(ADV!J136&CHAR(10)&ADV!J137&CHAR(10)&ADV!J138&CHAR(10)&ADV!J139&CHAR(10)&ADV!J140&CHAR(10)&ADV!J141&CHAR(10)&ADV!J142&CHAR(10)&ADV!J143),"") ->  | H27: =IF(A27="","",ADV!K136) -> 
A28: =IF(ADV!A144="Yes",ADV!D144,"") ->  | B28: =IF(A28="","",ADV!E144) ->  | C28: =IF(A28="","",ADV!F144) ->  | D28: =IF(C28="","",ADV!G144) ->  | E28: =IF(D28="","",ADV!H144) ->  | F28: =IF(A28<>"",TRIM(ADV!I144&CHAR(10)&ADV!I145&CHAR(10)&ADV!I146&CHAR(10)&ADV!I147&CHAR(10)&ADV!I148&CHAR(10)&ADV!I149&CHAR(10)&ADV!I150&CHAR(10)&ADV!I151),"") ->  | G28: =IF(B28<>"",TRIM(ADV!J144&CHAR(10)&ADV!J145&CHAR(10)&ADV!J146&CHAR(10)&ADV!J147&CHAR(10)&ADV!J148&CHAR(10)&ADV!J149&CHAR(10)&ADV!J150&CHAR(10)&ADV!J151),"") ->  | H28: =IF(A28="","",ADV!K144) -> 
A29: =IF(ADV!A152="Yes",ADV!D152,"") ->  | B29: =IF(A29="","",ADV!E152) ->  | C29: =IF(A29="","",ADV!F152) ->  | D29: =IF(C29="","",ADV!G152) ->  | E29: =IF(D29="","",ADV!H152) ->  | F29: =IF(A29<>"",TRIM(ADV!I152&CHAR(10)&ADV!I153&CHAR(10)&ADV!I154&CHAR(10)&ADV!I155&CHAR(10)&ADV!I156&CHAR(10)&ADV!I157&CHAR(10)&ADV!I158&CHAR(10)&ADV!I159),"") ->  | G29: =IF(B29<>"",TRIM(ADV!J152&CHAR(10)&ADV!J153&CHAR(10)&ADV!J154&CHAR(10)&ADV!J155&CHAR(10)&ADV!J156&CHAR(10)&ADV!J157&CHAR(10)&ADV!J158&CHAR(10)&ADV!J159),"") ->  | H29: =IF(A29="","",ADV!K152) -> 
A30: =IF(ADV!A160="Yes",ADV!D160,"") ->  | B30: =IF(A30="","",ADV!E160) ->  | C30: =IF(A30="","",ADV!F160) ->  | D30: =IF(C30="","",ADV!G160) ->  | E30: =IF(D30="","",ADV!H160) ->  | F30: =IF(A30<>"",TRIM(ADV!I160&CHAR(10)&ADV!I161&CHAR(10)&ADV!I162&CHAR(10)&ADV!I163&CHAR(10)&ADV!I164&CHAR(10)&ADV!I165&CHAR(10)&ADV!I166&CHAR(10)&ADV!I167),"") ->  | G30: =IF(B30<>"",TRIM(ADV!J160&CHAR(10)&ADV!J161&CHAR(10)&ADV!J162&CHAR(10)&ADV!J163&CHAR(10)&ADV!J164&CHAR(10)&ADV!J165&CHAR(10)&ADV!J166&CHAR(10)&ADV!J167),"") ->  | H30: =IF(A30="","",ADV!K160) -> 
A31: =IF(ADV!A168="Yes",ADV!D168,"") ->  | B31: =IF(A31="","",ADV!E168) ->  | C31: =IF(A31="","",ADV!F168) ->  | D31: =IF(C31="","",ADV!G168) ->  | E31: =IF(D31="","",ADV!H168) ->  | F31: =IF(A31<>"",TRIM(ADV!I168&CHAR(10)&ADV!I169&CHAR(10)&ADV!I170&CHAR(10)&ADV!I171&CHAR(10)&ADV!I172&CHAR(10)&ADV!I173&CHAR(10)&ADV!I174&CHAR(10)&ADV!I175),"") ->  | G31: =IF(B31<>"",TRIM(ADV!J168&CHAR(10)&ADV!J169&CHAR(10)&ADV!J170&CHAR(10)&ADV!J171&CHAR(10)&ADV!J172&CHAR(10)&ADV!J173&CHAR(10)&ADV!J174&CHAR(10)&ADV!J175),"") ->  | H31: =IF(A31="","",ADV!K168) -> 
A32: =IF(ADV!A176="Yes",ADV!D176,"") ->  | B32: =IF(A32="","",ADV!E176) ->  | C32: =IF(A32="","",ADV!F176) ->  | D32: =IF(C32="","",ADV!G176) ->  | E32: =IF(D32="","",ADV!H176) ->  | F32: =IF(A32<>"",TRIM(ADV!I176&CHAR(10)&ADV!I177&CHAR(10)&ADV!I178&CHAR(10)&ADV!I179&CHAR(10)&ADV!I180&CHAR(10)&ADV!I181&CHAR(10)&ADV!I182&CHAR(10)&ADV!I183),"") ->  | G32: =IF(B32<>"",TRIM(ADV!J176&CHAR(10)&ADV!J177&CHAR(10)&ADV!J178&CHAR(10)&ADV!J179&CHAR(10)&ADV!J180&CHAR(10)&ADV!J181&CHAR(10)&ADV!J182&CHAR(10)&ADV!J183),"") ->  | H32: =IF(A32="","",ADV!K176) -> 
A33: =IF(ADV!A184="Yes",ADV!D184,"") ->  | B33: =IF(A33="","",ADV!E184) ->  | C33: =IF(A33="","",ADV!F184) ->  | D33: =IF(C33="","",ADV!G184) ->  | E33: =IF(D33="","",ADV!H184) ->  | F33: =IF(A33<>"",TRIM(ADV!I184&CHAR(10)&ADV!I185&CHAR(10)&ADV!I186&CHAR(10)&ADV!I187&CHAR(10)&ADV!I188&CHAR(10)&ADV!I189&CHAR(10)&ADV!I190&CHAR(10)&ADV!I191),"") ->  | G33: =IF(B33<>"",TRIM(ADV!J184&CHAR(10)&ADV!J185&CHAR(10)&ADV!J186&CHAR(10)&ADV!J187&CHAR(10)&ADV!J188&CHAR(10)&ADV!J189&CHAR(10)&ADV!J190&CHAR(10)&ADV!J191),"") ->  | H33: =IF(A33="","",ADV!K184) -> 
A34: =IF(ADV!A192="Yes",ADV!D192,"") ->  | B34: =IF(A34="","",ADV!E192) ->  | C34: =IF(A34="","",ADV!F192) ->  | D34: =IF(C34="","",ADV!G192) ->  | E34: =IF(D34="","",ADV!H192) ->  | F34: =IF(A34<>"",TRIM(ADV!I192&CHAR(10)&ADV!I193&CHAR(10)&ADV!I194&CHAR(10)&ADV!I195&CHAR(10)&ADV!I196&CHAR(10)&ADV!I197&CHAR(10)&ADV!I198&CHAR(10)&ADV!I199),"") ->  | G34: =IF(B34<>"",TRIM(ADV!J192&CHAR(10)&ADV!J193&CHAR(10)&ADV!J194&CHAR(10)&ADV!J195&CHAR(10)&ADV!J196&CHAR(10)&ADV!J197&CHAR(10)&ADV!J198&CHAR(10)&ADV!J199),"") ->  | H34: =IF(A34="","",ADV!K192) -> 

Sheet TableDeliverables
A1: Management Documents | C1: Table 1 of 5
A2: ID | B2: TITLE | C2: ACRONYM | D2: =IF(Deliverables!E2<>"",Deliverables!E2,"") -> RR | E2: =IF(Deliverables!F2<>"",Deliverables!F2,"") -> PDR | F2: =IF(Deliverables!G2<>"",Deliverables!G2,"") -> CDR | G2: =IF(Deliverables!H2<>"",Deliverables!H2,"") -> TRR | H2: =IF(Deliverables!I2<>"",Deliverables!I2,"") -> QAR | I2: =IF(Deliverables!J2<>"",Deliverables!J2,"") -> IOCR | J2: =IF(Deliverables!K2<>"",Deliverables!K2,"") -> DCCR | K2: =IF(Deliverables!L2<>"",Deliverables!L2,"") -> FR | N2: Keep scrolling down for the other tables!
A3: =IF(Deliverables!B4<>"",Deliverables!B4,"") -> S.MG01 | B3: =IF(A3<>"",Deliverables!C4,"") -> Configuration and Documentation Management Plan | C3: =IF(A3<>"",Deliverables!D4,"") -> CMDP | D3: =IF(AND(A3<>"",Deliverables!E4<>""),Deliverables!E4,"") -> N | E3: =IF(AND(A3<>"",Deliverables!F4<>""),Deliverables!F4,"") -> U | F3: =IF(AND(A3<>"",Deliverables!G4<>""),Deliverables!G4,"") ->  | G3: =IF(AND(A3<>"",Deliverables!H4<>""),Deliverables!H4,"") ->  | H3: =IF(AND(A3<>"",Deliverables!I4<>""),Deliverables!I4,"") ->  | I3: =IF(AND(A3<>"",Deliverables!J4<>""),Deliverables!J4,"") ->  | J3: =IF(AND(A3<>"",Deliverables!K4<>""),Deliverables!K4,"") -> C | K3: =IF(AND(A3<>"",Deliverables!L4<>""),Deliverables!L4,"") -> C
A4: =IF(Deliverables!B5<>"",Deliverables!B5,"") -> S.MG02 | B4: =IF(A4<>"",Deliverables!C5,"") -> Risk Register | C4: =IF(A4<>"",Deliverables!D5,"") -> RR | D4: =IF(A4<>"",Deliverables!E5,"") -> Monthly and at each progress meeting/review | J4: =IF(AND(A4<>"",Deliverables!K5<>""),Deliverables!K5,"") ->  | K4: =IF(AND(A4<>"",Deliverables!L5<>""),Deliverables!L5,"") -> 
A5: =IF(Deliverables!B6<>"",Deliverables!B6,"") -> S.MG03 | B5: =IF(A5<>"",Deliverables!C6,"") -> Business Plan | C5: =IF(A5<>"",Deliverables!D6,"") -> BP | D5: =IF(AND(A5<>"",Deliverables!E6<>""),Deliverables!E6,"") -> N | E5: =IF(AND(A5<>"",Deliverables!F6<>""),Deliverables!F6,"") -> U | F5: =IF(AND(A5<>"",Deliverables!G6<>""),Deliverables!G6,"") -> U | G5: =IF(AND(A5<>"",Deliverables!H6<>""),Deliverables!H6,"") -> U | H5: =IF(AND(A5<>"",Deliverables!I6<>""),Deliverables!I6,"") -> U | I5: =IF(AND(A5<>"",Deliverables!J6<>""),Deliverables!J6,"") -> U | J5: =IF(AND(A5<>"",Deliverables!K6<>""),Deliverables!K6,"") -> U | K5: =IF(AND(A5<>"",Deliverables!L6<>""),Deliverables!L6,"") -> U
A6: =IF(Deliverables!B7<>"",Deliverables!B7,"") -> S.MG04 | B6: =IF(A6<>"",Deliverables!C7,"") -> Document List | C6: =IF(A6<>"",Deliverables!D7,"") -> DL | D6: =IF(AND(A6<>"",Deliverables!E7<>""),Deliverables!E7,"") -> N | E6: =IF(AND(A6<>"",Deliverables!F7<>""),Deliverables!F7,"") -> U | F6: =IF(AND(A6<>"",Deliverables!G7<>""),Deliverables!G7,"") -> U | G6: =IF(AND(A6<>"",Deliverables!H7<>""),Deliverables!H7,"") -> U | H6: =IF(AND(A6<>"",Deliverables!I7<>""),Deliverables!I7,"") -> U | I6: =IF(AND(A6<>"",Deliverables!J7<>""),Deliverables!J7,"") -> U | J6: =IF(AND(A6<>"",Deliverables!K7<>""),Deliverables!K7,"") -> U | K6: =IF(AND(A6<>"",Deliverables!L7<>""),Deliverables!L7,"") -> U
A7: =IF(Deliverables!B8<>"",Deliverables!B8,"") -> S.MG05 | B7: =IF(A7<>"",Deliverables!C8,"") -> Monthly Progress Report | C7: =IF(A7<>"",Deliverables!D8,"") -> MPR | D7: =IF(A7<>"",Deliverables!E8,"") -> Monthly | J7: =IF(AND(A7<>"",Deliverables!K8<>""),Deliverables!K8,"") ->  | K7: =IF(AND(A7<>"",Deliverables!L8<>""),Deliverables!L8,"") -> 
A8: =IF(Deliverables!B9<>"",Deliverables!B9,"") -> S.MG06 | B8: =IF(A8<>"",Deliverables!C9,"") -> Minutes of the Meeting | C8: =IF(A8<>"",Deliverables!D9,"") -> MoM | D8: =IF(AND(A8<>"",Deliverables!E9<>""),Deliverables!E9,"") -> N | E8: =IF(AND(A8<>"",Deliverables!F9<>""),Deliverables!F9,"") -> N | F8: =IF(AND(A8<>"",Deliverables!G9<>""),Deliverables!G9,"") -> N | G8: =IF(AND(A8<>"",Deliverables!H9<>""),Deliverables!H9,"") -> N | H8: =IF(AND(A8<>"",Deliverables!I9<>""),Deliverables!I9,"") -> N | I8: =IF(AND(A8<>"",Deliverables!J9<>""),Deliverables!J9,"") -> N | J8: =IF(AND(A8<>"",Deliverables!K9<>""),Deliverables!K9,"") -> N | K8: =IF(AND(A8<>"",Deliverables!L9<>""),Deliverables!L9,"") -> N
A9: =IF(Deliverables!B10<>"",Deliverables!B10,"") -> S.MG07 | B9: =IF(A9<>"",Deliverables!C10,"") -> Activity Web Page | C9: =IF(A9<>"",Deliverables!D10,"") -> AWP | D9: =IF(A9<>"",Deliverables!E10,"") -> At the first review meeting and current status updated at each review | J9: =IF(AND(A9<>"",Deliverables!K10<>""),Deliverables!K10,"") ->  | K9: =IF(AND(A9<>"",Deliverables!L10<>""),Deliverables!L10,"") -> 
A10: =IF(Deliverables!B11<>"",Deliverables!B11,"") -> S.MG08 | B10: =IF(A10<>"",Deliverables!C11,"") -> Justification for non continuation | C10: =IF(A10<>"",Deliverables!D11,"") -> JFNC | D10: =IF(AND(A10<>"",Deliverables!E11<>""),Deliverables!E11,"") ->  | E10: =IF(AND(A10<>"",Deliverables!F11<>""),Deliverables!F11,"") ->  | F10: =IF(AND(A10<>"",Deliverables!G11<>""),Deliverables!G11,"") ->  | G10: =IF(AND(A10<>"",Deliverables!H11<>""),Deliverables!H11,"") ->  | H10: =IF(AND(A10<>"",Deliverables!I11<>""),Deliverables!I11,"") ->  | I10: =IF(AND(A10<>"",Deliverables!J11<>""),Deliverables!J11,"") ->  | J10: =IF(AND(A10<>"",Deliverables!K11<>""),Deliverables!K11,"") -> N | K10: =IF(AND(A10<>"",Deliverables!L11<>""),Deliverables!L11,"") -> 
A11: =IF(Deliverables!B12<>"",Deliverables!B12,"") -> S.MG09 | B11: =IF(A11<>"",Deliverables!C12,"") -> Digital Media | C11: =IF(A11<>"",Deliverables!D12,"") -> DM | D11: =IF(AND(A11<>"",Deliverables!E12<>""),Deliverables!E12,"") ->  | E11: =IF(AND(A11<>"",Deliverables!F12<>""),Deliverables!F12,"") ->  | F11: =IF(AND(A11<>"",Deliverables!G12<>""),Deliverables!G12,"") ->  | G11: =IF(AND(A11<>"",Deliverables!H12<>""),Deliverables!H12,"") ->  | H11: =IF(AND(A11<>"",Deliverables!I12<>""),Deliverables!I12,"") ->  | I11: =IF(AND(A11<>"",Deliverables!J12<>""),Deliverables!J12,"") ->  | J11: =IF(AND(A11<>"",Deliverables!K12<>""),Deliverables!K12,"") -> N | K11: =IF(AND(A11<>"",Deliverables!L12<>""),Deliverables!L12,"") -> N
A12: =IF(Deliverables!B13<>"",Deliverables!B13,"") -> S.MG10 | B12: =IF(A12<>"",Deliverables!C13,"") -> Product Data Sheet | C12: =IF(A12<>"",Deliverables!D13,"") -> PDS | D12: =IF(AND(A12<>"",Deliverables!E13<>""),Deliverables!E13,"") ->  | E12: =IF(AND(A12<>"",Deliverables!F13<>""),Deliverables!F13,"") ->  | F12: =IF(AND(A12<>"",Deliverables!G13<>""),Deliverables!G13,"") ->  | G12: =IF(AND(A12<>"",Deliverables!H13<>""),Deliverables!H13,"") ->  | H12: =IF(AND(A12<>"",Deliverables!I13<>""),Deliverables!I13,"") ->  | I12: =IF(AND(A12<>"",Deliverables!J13<>""),Deliverables!J13,"") ->  | J12: =IF(AND(A12<>"",Deliverables!K13<>""),Deliverables!K13,"") ->  | K12: =IF(AND(A12<>"",Deliverables!L13<>""),Deliverables!L13,"") -> N
A13: =IF(Deliverables!B14<>"",Deliverables!B14,"") -> S.MG11 | B13: =IF(A13<>"",Deliverables!C14,"") -> CCN for follow-on Cycle(s) | C13: =IF(A13<>"",Deliverables!D14,"") -> CCN-FOC | D13: =IF(AND(A13<>"",Deliverables!E14<>""),Deliverables!E14,"") ->  | E13: =IF(AND(A13<>"",Deliverables!F14<>""),Deliverables!F14,"") ->  | F13: =IF(AND(A13<>"",Deliverables!G14<>""),Deliverables!G14,"") ->  | G13: =IF(AND(A13<>"",Deliverables!H14<>""),Deliverables!H14,"") ->  | H13: =IF(AND(A13<>"",Deliverables!I14<>""),Deliverables!I14,"") ->  | I13: =IF(AND(A13<>"",Deliverables!J14<>""),Deliverables!J14,"") ->  | J13: =IF(AND(A13<>"",Deliverables!K14<>""),Deliverables!K14,"") -> N | K13: =IF(AND(A13<>"",Deliverables!L14<>""),Deliverables!L14,"") -> 
A14: =IF(Deliverables!B15<>"",Deliverables!B15,"") -> S.MG12 | B14: =IF(A14<>"",Deliverables!C15,"") -> Contract Achievements and Socio Economic Impact Questionnaire | C14: =IF(A14<>"",Deliverables!D15,"") -> CA-SEIQ | D14: =IF(AND(A14<>"",Deliverables!E15<>""),Deliverables!E15,"") ->  | E14: =IF(AND(A14<>"",Deliverables!F15<>""),Deliverables!F15,"") ->  | F14: =IF(AND(A14<>"",Deliverables!G15<>""),Deliverables!G15,"") ->  | G14: =IF(AND(A14<>"",Deliverables!H15<>""),Deliverables!H15,"") ->  | H14: =IF(AND(A14<>"",Deliverables!I15<>""),Deliverables!I15,"") ->  | I14: =IF(AND(A14<>"",Deliverables!J15<>""),Deliverables!J15,"") ->  | J14: =IF(AND(A14<>"",Deliverables!K15<>""),Deliverables!K15,"") -> N | K14: =IF(AND(A14<>"",Deliverables!L15<>""),Deliverables!L15,"") -> N
A15: =IF(Deliverables!B16<>"",Deliverables!B16,"") -> S.MG13 | B15: =IF(A15<>"",Deliverables!C16,"") -> Final Data Package | C15: =IF(A15<>"",Deliverables!D16,"") -> FDP | D15: =IF(AND(A15<>"",Deliverables!E16<>""),Deliverables!E16,"") ->  | E15: =IF(AND(A15<>"",Deliverables!F16<>""),Deliverables!F16,"") ->  | F15: =IF(AND(A15<>"",Deliverables!G16<>""),Deliverables!G16,"") ->  | G15: =IF(AND(A15<>"",Deliverables!H16<>""),Deliverables!H16,"") ->  | H15: =IF(AND(A15<>"",Deliverables!I16<>""),Deliverables!I16,"") ->  | I15: =IF(AND(A15<>"",Deliverables!J16<>""),Deliverables!J16,"") ->  | J15: =IF(AND(A15<>"",Deliverables!K16<>""),Deliverables!K16,"") -> N | K15: =IF(AND(A15<>"",Deliverables!L16<>""),Deliverables!L16,"") -> N
A16: =IF(Deliverables!B17<>"",Deliverables!B17,"") -> S.MG14 | B16: =IF(A16<>"",Deliverables!C17,"") -> Final Report | C16: =IF(A16<>"",Deliverables!D17,"") -> FREP | D16: =IF(AND(A16<>"",Deliverables!E17<>""),Deliverables!E17,"") ->  | E16: =IF(AND(A16<>"",Deliverables!F17<>""),Deliverables!F17,"") ->  | F16: =IF(AND(A16<>"",Deliverables!G17<>""),Deliverables!G17,"") ->  | G16: =IF(AND(A16<>"",Deliverables!H17<>""),Deliverables!H17,"") ->  | H16: =IF(AND(A16<>"",Deliverables!I17<>""),Deliverables!I17,"") ->  | I16: =IF(AND(A16<>"",Deliverables!J17<>""),Deliverables!J17,"") ->  | J16: =IF(AND(A16<>"",Deliverables!K17<>""),Deliverables!K17,"") -> N | K16: =IF(AND(A16<>"",Deliverables!L17<>""),Deliverables!L17,"") -> N
A17: =IF(Deliverables!B18<>"",Deliverables!B18,"") ->  | B17: =IF(A17<>"",Deliverables!C18,"") ->  | C17: =IF(A17<>"",Deliverables!D18,"") ->  | D17: =IF(AND(A17<>"",Deliverables!E18<>""),Deliverables!E18,"") ->  | E17: =IF(AND(A17<>"",Deliverables!F18<>""),Deliverables!F18,"") ->  | F17: =IF(AND(A17<>"",Deliverables!G18<>""),Deliverables!G18,"") ->  | G17: =IF(AND(A17<>"",Deliverables!H18<>""),Deliverables!H18,"") ->  | H17: =IF(AND(A17<>"",Deliverables!I18<>""),Deliverables!I18,"") ->  | I17: =IF(AND(A17<>"",Deliverables!J18<>""),Deliverables!J18,"") ->  | J17: =IF(AND(A17<>"",Deliverables!K18<>""),Deliverables!K18,"") ->  | K17: =IF(AND(A17<>"",Deliverables!L18<>""),Deliverables!L18,"") -> 
A18: =IF(Deliverables!B19<>"",Deliverables!B19,"") ->  | B18: =IF(A18<>"",Deliverables!C19,"") ->  | C18: =IF(A18<>"",Deliverables!D19,"") ->  | D18: =IF(AND(A18<>"",Deliverables!E19<>""),Deliverables!E19,"") ->  | E18: =IF(AND(A18<>"",Deliverables!F19<>""),Deliverables!F19,"") ->  | F18: =IF(AND(A18<>"",Deliverables!G19<>""),Deliverables!G19,"") ->  | G18: =IF(AND(A18<>"",Deliverables!H19<>""),Deliverables!H19,"") ->  | H18: =IF(AND(A18<>"",Deliverables!I19<>""),Deliverables!I19,"") ->  | I18: =IF(AND(A18<>"",Deliverables!J19<>""),Deliverables!J19,"") ->  | J18: =IF(AND(A18<>"",Deliverables!K19<>""),Deliverables!K19,"") ->  | K18: =IF(AND(A18<>"",Deliverables!L19<>""),Deliverables!L19,"") -> 
A19: =IF(Deliverables!B20<>"",Deliverables!B20,"") ->  | B19: =IF(A19<>"",Deliverables!C20,"") ->  | C19: =IF(A19<>"",Deliverables!D20,"") ->  | D19: =IF(AND(A19<>"",Deliverables!E20<>""),Deliverables!E20,"") ->  | E19: =IF(AND(A19<>"",Deliverables!F20<>""),Deliverables!F20,"") ->  | F19: =IF(AND(A19<>"",Deliverables!G20<>""),Deliverables!G20,"") ->  | G19: =IF(AND(A19<>"",Deliverables!H20<>""),Deliverables!H20,"") ->  | H19: =IF(AND(A19<>"",Deliverables!I20<>""),Deliverables!I20,"") ->  | I19: =IF(AND(A19<>"",Deliverables!J20<>""),Deliverables!J20,"") ->  | J19: =IF(AND(A19<>"",Deliverables!K20<>""),Deliverables!K20,"") ->  | K19: =IF(AND(A19<>"",Deliverables!L20<>""),Deliverables!L20,"") -> 
A20: =IF(Deliverables!B21<>"",Deliverables!B21,"") ->  | B20: =IF(A20<>"",Deliverables!C21,"") ->  | C20: =IF(A20<>"",Deliverables!D21,"") ->  | D20: =IF(AND(A20<>"",Deliverables!E21<>""),Deliverables!E21,"") ->  | E20: =IF(AND(A20<>"",Deliverables!F21<>""),Deliverables!F21,"") ->  | F20: =IF(AND(A20<>"",Deliverables!G21<>""),Deliverables!G21,"") ->  | G20: =IF(AND(A20<>"",Deliverables!H21<>""),Deliverables!H21,"") ->  | H20: =IF(AND(A20<>"",Deliverables!I21<>""),Deliverables!I21,"") ->  | I20: =IF(AND(A20<>"",Deliverables!J21<>""),Deliverables!J21,"") ->  | J20: =IF(AND(A20<>"",Deliverables!K21<>""),Deliverables!K21,"") ->  | K20: =IF(AND(A20<>"",Deliverables!L21<>""),Deliverables!L21,"") -> 
A21: =IF(Deliverables!B22<>"",Deliverables!B22,"") ->  | B21: =IF(A21<>"",Deliverables!C22,"") ->  | C21: =IF(A21<>"",Deliverables!D22,"") ->  | D21: =IF(AND(A21<>"",Deliverables!E22<>""),Deliverables!E22,"") ->  | E21: =IF(AND(A21<>"",Deliverables!F22<>""),Deliverables!F22,"") ->  | F21: =IF(AND(A21<>"",Deliverables!G22<>""),Deliverables!G22,"") ->  | G21: =IF(AND(A21<>"",Deliverables!H22<>""),Deliverables!H22,"") ->  | H21: =IF(AND(A21<>"",Deliverables!I22<>""),Deliverables!I22,"") ->  | I21: =IF(AND(A21<>"",Deliverables!J22<>""),Deliverables!J22,"") ->  | J21: =IF(AND(A21<>"",Deliverables!K22<>""),Deliverables!K22,"") ->  | K21: =IF(AND(A21<>"",Deliverables!L22<>""),Deliverables!L22,"") -> 
A22: =IF(Deliverables!B23<>"",Deliverables!B23,"") ->  | B22: =IF(A22<>"",Deliverables!C23,"") ->  | C22: =IF(A22<>"",Deliverables!D23,"") ->  | D22: =IF(AND(A22<>"",Deliverables!E23<>""),Deliverables!E23,"") ->  | E22: =IF(AND(A22<>"",Deliverables!F23<>""),Deliverables!F23,"") ->  | F22: =IF(AND(A22<>"",Deliverables!G23<>""),Deliverables!G23,"") ->  | G22: =IF(AND(A22<>"",Deliverables!H23<>""),Deliverables!H23,"") ->  | H22: =IF(AND(A22<>"",Deliverables!I23<>""),Deliverables!I23,"") ->  | I22: =IF(AND(A22<>"",Deliverables!J23<>""),Deliverables!J23,"") ->  | J22: =IF(AND(A22<>"",Deliverables!K23<>""),Deliverables!K23,"") ->  | K22: =IF(AND(A22<>"",Deliverables!L23<>""),Deliverables!L23,"") -> 
A23: =IF(Deliverables!B24<>"",Deliverables!B24,"") ->  | B23: =IF(A23<>"",Deliverables!C24,"") ->  | C23: =IF(A23<>"",Deliverables!D24,"") ->  | D23: =IF(AND(A23<>"",Deliverables!E24<>""),Deliverables!E24,"") ->  | E23: =IF(AND(A23<>"",Deliverables!F24<>""),Deliverables!F24,"") ->  | F23: =IF(AND(A23<>"",Deliverables!G24<>""),Deliverables!G24,"") ->  | G23: =IF(AND(A23<>"",Deliverables!H24<>""),Deliverables!H24,"") ->  | H23: =IF(AND(A23<>"",Deliverables!I24<>""),Deliverables!I24,"") ->  | I23: =IF(AND(A23<>"",Deliverables!J24<>""),Deliverables!J24,"") ->  | J23: =IF(AND(A23<>"",Deliverables!K24<>""),Deliverables!K24,"") ->  | K23: =IF(AND(A23<>"",Deliverables!L24<>""),Deliverables!L24,"") -> 
A24: =IF(Deliverables!B25<>"",Deliverables!B25,"") ->  | B24: =IF(A24<>"",Deliverables!C25,"") ->  | C24: =IF(A24<>"",Deliverables!D25,"") ->  | D24: =IF(AND(A24<>"",Deliverables!E25<>""),Deliverables!E25,"") ->  | E24: =IF(AND(A24<>"",Deliverables!F25<>""),Deliverables!F25,"") ->  | F24: =IF(AND(A24<>"",Deliverables!G25<>""),Deliverables!G25,"") ->  | G24: =IF(AND(A24<>"",Deliverables!H25<>""),Deliverables!H25,"") ->  | H24: =IF(AND(A24<>"",Deliverables!I25<>""),Deliverables!I25,"") ->  | I24: =IF(AND(A24<>"",Deliverables!J25<>""),Deliverables!J25,"") ->  | J24: =IF(AND(A24<>"",Deliverables!K25<>""),Deliverables!K25,"") ->  | K24: =IF(AND(A24<>"",Deliverables!L25<>""),Deliverables!L25,"") -> 
A25: =IF(Deliverables!B26<>"",Deliverables!B26,"") ->  | B25: =IF(A25<>"",Deliverables!C26,"") ->  | C25: =IF(A25<>"",Deliverables!D26,"") ->  | D25: =IF(AND(A25<>"",Deliverables!E26<>""),Deliverables!E26,"") ->  | E25: =IF(AND(A25<>"",Deliverables!F26<>""),Deliverables!F26,"") ->  | F25: =IF(AND(A25<>"",Deliverables!G26<>""),Deliverables!G26,"") ->  | G25: =IF(AND(A25<>"",Deliverables!H26<>""),Deliverables!H26,"") ->  | H25: =IF(AND(A25<>"",Deliverables!I26<>""),Deliverables!I26,"") ->  | I25: =IF(AND(A25<>"",Deliverables!J26<>""),Deliverables!J26,"") ->  | J25: =IF(AND(A25<>"",Deliverables!K26<>""),Deliverables!K26,"") ->  | K25: =IF(AND(A25<>"",Deliverables!L26<>""),Deliverables!L26,"") -> 
A26: =IF(Deliverables!B27<>"",Deliverables!B27,"") ->  | B26: =IF(A26<>"",Deliverables!C27,"") ->  | C26: =IF(A26<>"",Deliverables!D27,"") ->  | D26: =IF(AND(A26<>"",Deliverables!E27<>""),Deliverables!E27,"") ->  | E26: =IF(AND(A26<>"",Deliverables!F27<>""),Deliverables!F27,"") ->  | F26: =IF(AND(A26<>"",Deliverables!G27<>""),Deliverables!G27,"") ->  | G26: =IF(AND(A26<>"",Deliverables!H27<>""),Deliverables!H27,"") ->  | H26: =IF(AND(A26<>"",Deliverables!I27<>""),Deliverables!I27,"") ->  | I26: =IF(AND(A26<>"",Deliverables!J27<>""),Deliverables!J27,"") ->  | J26: =IF(AND(A26<>"",Deliverables!K27<>""),Deliverables!K27,"") ->  | K26: =IF(AND(A26<>"",Deliverables!L27<>""),Deliverables!L27,"") -> 
A27: =IF(Deliverables!B28<>"",Deliverables!B28,"") ->  | B27: =IF(A27<>"",Deliverables!C28,"") ->  | C27: =IF(A27<>"",Deliverables!D28,"") ->  | D27: =IF(AND(A27<>"",Deliverables!E28<>""),Deliverables!E28,"") ->  | E27: =IF(AND(A27<>"",Deliverables!F28<>""),Deliverables!F28,"") ->  | F27: =IF(AND(A27<>"",Deliverables!G28<>""),Deliverables!G28,"") ->  | G27: =IF(AND(A27<>"",Deliverables!H28<>""),Deliverables!H28,"") ->  | H27: =IF(AND(A27<>"",Deliverables!I28<>""),Deliverables!I28,"") ->  | I27: =IF(AND(A27<>"",Deliverables!J28<>""),Deliverables!J28,"") ->  | J27: =IF(AND(A27<>"",Deliverables!K28<>""),Deliverables!K28,"") ->  | K27: =IF(AND(A27<>"",Deliverables!L28<>""),Deliverables!L28,"") -> 
A29: Engineering Documents | C29: Table 2 of 5
A30: ID | B30: TITLE | C30: ACRONYM | D30: =D2 -> RR | E30: =E2 -> PDR | F30: CDR | G30: TRR | H30: QAR | I30: IOCR | J30: DCCR | K30: FR
A31: =IF(Deliverables!B30<>"",Deliverables!B30,"") -> S.EN01 | B31: =IF(AND(A31<>"",Deliverables!C30<>""),Deliverables!C30,"") -> Engineering Document #1 | C31: =IF(AND(A31<>"",Deliverables!D30<>""),Deliverables!D30,"") -> ACR#1 | D31: =IF(AND(A31<>"",Deliverables!E30<>""),Deliverables!E30,"") -> N | E31: =IF(AND(A31<>"",Deliverables!F30<>""),Deliverables!F30,"") -> U | F31: =IF(AND(A31<>"",Deliverables!G30<>""),Deliverables!G30,"") -> U | G31: =IF(AND(A31<>"",Deliverables!H30<>""),Deliverables!H30,"") -> U | H31: =IF(AND(A31<>"",Deliverables!I30<>""),Deliverables!I30,"") -> U | I31: =IF(AND(A31<>"",Deliverables!J30<>""),Deliverables!J30,"") -> U | J31: =IF(AND(A31<>"",Deliverables!K30<>""),Deliverables!K30,"") -> U | K31: =IF(AND(A31<>"",Deliverables!L30<>""),Deliverables!L30,"") -> U
A32: =IF(Deliverables!B31<>"",Deliverables!B31,"") -> S.EN02 | B32: =IF(AND(A32<>"",Deliverables!C31<>""),Deliverables!C31,"") -> Engineering Document #2 | C32: =IF(AND(A32<>"",Deliverables!D31<>""),Deliverables!D31,"") -> ACR#2 | D32: =IF(AND(A32<>"",Deliverables!E31<>""),Deliverables!E31,"") -> N | E32: =IF(AND(A32<>"",Deliverables!F31<>""),Deliverables!F31,"") -> U | F32: =IF(AND(A32<>"",Deliverables!G31<>""),Deliverables!G31,"") -> U | G32: =IF(AND(A32<>"",Deliverables!H31<>""),Deliverables!H31,"") -> U | H32: =IF(AND(A32<>"",Deliverables!I31<>""),Deliverables!I31,"") -> U | I32: =IF(AND(A32<>"",Deliverables!J31<>""),Deliverables!J31,"") -> U | J32: =IF(AND(A32<>"",Deliverables!K31<>""),Deliverables!K31,"") -> U | K32: =IF(AND(A32<>"",Deliverables!L31<>""),Deliverables!L31,"") -> U
A33: =IF(Deliverables!B32<>"",Deliverables!B32,"") -> S.EN03 | B33: =IF(AND(A33<>"",Deliverables!C32<>""),Deliverables!C32,"") -> Engineering Document #3 | C33: =IF(AND(A33<>"",Deliverables!D32<>""),Deliverables!D32,"") -> ACR#3 | D33: =IF(AND(A33<>"",Deliverables!E32<>""),Deliverables!E32,"") ->  | E33: =IF(AND(A33<>"",Deliverables!F32<>""),Deliverables!F32,"") ->  | F33: =IF(AND(A33<>"",Deliverables!G32<>""),Deliverables!G32,"") -> N | G33: =IF(AND(A33<>"",Deliverables!H32<>""),Deliverables!H32,"") -> U | H33: =IF(AND(A33<>"",Deliverables!I32<>""),Deliverables!I32,"") -> U | I33: =IF(AND(A33<>"",Deliverables!J32<>""),Deliverables!J32,"") -> U | J33: =IF(AND(A33<>"",Deliverables!K32<>""),Deliverables!K32,"") -> C | K33: =IF(AND(A33<>"",Deliverables!L32<>""),Deliverables!L32,"") -> C
A34: =IF(Deliverables!B33<>"",Deliverables!B33,"") -> S.EN04 | B34: =IF(AND(A34<>"",Deliverables!C33<>""),Deliverables!C33,"") -> Engineering Document #4 | C34: =IF(AND(A34<>"",Deliverables!D33<>""),Deliverables!D33,"") -> ACR#4 | D34: =IF(AND(A34<>"",Deliverables!E33<>""),Deliverables!E33,"") -> N | E34: =IF(AND(A34<>"",Deliverables!F33<>""),Deliverables!F33,"") ->  | F34: =IF(AND(A34<>"",Deliverables!G33<>""),Deliverables!G33,"") ->  | G34: =IF(AND(A34<>"",Deliverables!H33<>""),Deliverables!H33,"") -> U | H34: =IF(AND(A34<>"",Deliverables!I33<>""),Deliverables!I33,"") -> U | I34: =IF(AND(A34<>"",Deliverables!J33<>""),Deliverables!J33,"") -> U | J34: =IF(AND(A34<>"",Deliverables!K33<>""),Deliverables!K33,"") -> C | K34: =IF(AND(A34<>"",Deliverables!L33<>""),Deliverables!L33,"") -> C
A35: =IF(Deliverables!B34<>"",Deliverables!B34,"") -> S.EN05 | B35: =IF(AND(A35<>"",Deliverables!C34<>""),Deliverables!C34,"") -> Engineering Document #5 | C35: =IF(AND(A35<>"",Deliverables!D34<>""),Deliverables!D34,"") -> ACR#5 | D35: =IF(AND(A35<>"",Deliverables!E34<>""),Deliverables!E34,"") ->  | E35: =IF(AND(A35<>"",Deliverables!F34<>""),Deliverables!F34,"") ->  | F35: =IF(AND(A35<>"",Deliverables!G34<>""),Deliverables!G34,"") ->  | G35: =IF(AND(A35<>"",Deliverables!H34<>""),Deliverables!H34,"") -> N | H35: =IF(AND(A35<>"",Deliverables!I34<>""),Deliverables!I34,"") -> U | I35: =IF(AND(A35<>"",Deliverables!J34<>""),Deliverables!J34,"") -> U | J35: =IF(AND(A35<>"",Deliverables!K34<>""),Deliverables!K34,"") -> C | K35: =IF(AND(A35<>"",Deliverables!L34<>""),Deliverables!L34,"") -> C
A36: =IF(Deliverables!B35<>"",Deliverables!B35,"") ->  | B36: =IF(AND(A36<>"",Deliverables!C35<>""),Deliverables!C35,"") ->  | C36: =IF(AND(A36<>"",Deliverables!D35<>""),Deliverables!D35,"") ->  | D36: =IF(AND(A36<>"",Deliverables!E35<>""),Deliverables!E35,"") ->  | E36: =IF(AND(A36<>"",Deliverables!F35<>""),Deliverables!F35,"") ->  | F36: =IF(AND(A36<>"",Deliverables!G35<>""),Deliverables!G35,"") ->  | G36: =IF(AND(A36<>"",Deliverables!H35<>""),Deliverables!H35,"") ->  | H36: =IF(AND(A36<>"",Deliverables!I35<>""),Deliverables!I35,"") ->  | I36: =IF(AND(A36<>"",Deliverables!J35<>""),Deliverables!J35,"") ->  | J36: =IF(AND(A36<>"",Deliverables!K35<>""),Deliverables!K35,"") ->  | K36: =IF(AND(A36<>"",Deliverables!L35<>""),Deliverables!L35,"") -> 
A37: =IF(Deliverables!B36<>"",Deliverables!B36,"") ->  | B37: =IF(AND(A37<>"",Deliverables!C36<>""),Deliverables!C36,"") ->  | C37: =IF(AND(A37<>"",Deliverables!D36<>""),Deliverables!D36,"") ->  | D37: =IF(AND(A37<>"",Deliverables!E36<>""),Deliverables!E36,"") ->  | E37: =IF(AND(A37<>"",Deliverables!F36<>""),Deliverables!F36,"") ->  | F37: =IF(AND(A37<>"",Deliverables!G36<>""),Deliverables!G36,"") ->  | G37: =IF(AND(A37<>"",Deliverables!H36<>""),Deliverables!H36,"") ->  | H37: =IF(AND(A37<>"",Deliverables!I36<>""),Deliverables!I36,"") ->  | I37: =IF(AND(A37<>"",Deliverables!J36<>""),Deliverables!J36,"") ->  | J37: =IF(AND(A37<>"",Deliverables!K36<>""),Deliverables!K36,"") ->  | K37: =IF(AND(A37<>"",Deliverables!L36<>""),Deliverables!L36,"") -> 
A38: =IF(Deliverables!B37<>"",Deliverables!B37,"") ->  | B38: =IF(AND(A38<>"",Deliverables!C37<>""),Deliverables!C37,"") ->  | C38: =IF(AND(A38<>"",Deliverables!D37<>""),Deliverables!D37,"") ->  | D38: =IF(AND(A38<>"",Deliverables!E37<>""),Deliverables!E37,"") ->  | E38: =IF(AND(A38<>"",Deliverables!F37<>""),Deliverables!F37,"") ->  | F38: =IF(AND(A38<>"",Deliverables!G37<>""),Deliverables!G37,"") ->  | G38: =IF(AND(A38<>"",Deliverables!H37<>""),Deliverables!H37,"") ->  | H38: =IF(AND(A38<>"",Deliverables!I37<>""),Deliverables!I37,"") ->  | I38: =IF(AND(A38<>"",Deliverables!J37<>""),Deliverables!J37,"") ->  | J38: =IF(AND(A38<>"",Deliverables!K37<>""),Deliverables!K37,"") ->  | K38: =IF(AND(A38<>"",Deliverables!L37<>""),Deliverables!L37,"") -> 
A39: =IF(Deliverables!B38<>"",Deliverables!B38,"") ->  | B39: =IF(AND(A39<>"",Deliverables!C38<>""),Deliverables!C38,"") ->  | C39: =IF(AND(A39<>"",Deliverables!D38<>""),Deliverables!D38,"") ->  | D39: =IF(AND(A39<>"",Deliverables!E38<>""),Deliverables!E38,"") ->  | E39: =IF(AND(A39<>"",Deliverables!F38<>""),Deliverables!F38,"") ->  | F39: =IF(AND(A39<>"",Deliverables!G38<>""),Deliverables!G38,"") ->  | G39: =IF(AND(A39<>"",Deliverables!H38<>""),Deliverables!H38,"") ->  | H39: =IF(AND(A39<>"",Deliverables!I38<>""),Deliverables!I38,"") ->  | I39: =IF(AND(A39<>"",Deliverables!J38<>""),Deliverables!J38,"") ->  | J39: =IF(AND(A39<>"",Deliverables!K38<>""),Deliverables!K38,"") ->  | K39: =IF(AND(A39<>"",Deliverables!L38<>""),Deliverables!L38,"") -> 
A40: =IF(Deliverables!B39<>"",Deliverables!B39,"") ->  | B40: =IF(AND(A40<>"",Deliverables!C39<>""),Deliverables!C39,"") ->  | C40: =IF(AND(A40<>"",Deliverables!D39<>""),Deliverables!D39,"") ->  | D40: =IF(AND(A40<>"",Deliverables!E39<>""),Deliverables!E39,"") ->  | E40: =IF(AND(A40<>"",Deliverables!F39<>""),Deliverables!F39,"") ->  | F40: =IF(AND(A40<>"",Deliverables!G39<>""),Deliverables!G39,"") ->  | G40: =IF(AND(A40<>"",Deliverables!H39<>""),Deliverables!H39,"") ->  | H40: =IF(AND(A40<>"",Deliverables!I39<>""),Deliverables!I39,"") ->  | I40: =IF(AND(A40<>"",Deliverables!J39<>""),Deliverables!J39,"") ->  | J40: =IF(AND(A40<>"",Deliverables!K39<>""),Deliverables!K39,"") ->  | K40: =IF(AND(A40<>"",Deliverables!L39<>""),Deliverables!L39,"") -> 
A41: =IF(Deliverables!B40<>"",Deliverables!B40,"") ->  | B41: =IF(AND(A41<>"",Deliverables!C40<>""),Deliverables!C40,"") ->  | C41: =IF(AND(A41<>"",Deliverables!D40<>""),Deliverables!D40,"") ->  | D41: =IF(AND(A41<>"",Deliverables!E40<>""),Deliverables!E40,"") ->  | E41: =IF(AND(A41<>"",Deliverables!F40<>""),Deliverables!F40,"") ->  | F41: =IF(AND(A41<>"",Deliverables!G40<>""),Deliverables!G40,"") ->  | G41: =IF(AND(A41<>"",Deliverables!H40<>""),Deliverables!H40,"") ->  | H41: =IF(AND(A41<>"",Deliverables!I40<>""),Deliverables!I40,"") ->  | I41: =IF(AND(A41<>"",Deliverables!J40<>""),Deliverables!J40,"") ->  | J41: =IF(AND(A41<>"",Deliverables!K40<>""),Deliverables!K40,"") ->  | K41: =IF(AND(A41<>"",Deliverables!L40<>""),Deliverables!L40,"") -> 
A42: =IF(Deliverables!B41<>"",Deliverables!B41,"") ->  | B42: =IF(AND(A42<>"",Deliverables!C41<>""),Deliverables!C41,"") ->  | C42: =IF(AND(A42<>"",Deliverables!D41<>""),Deliverables!D41,"") ->  | D42: =IF(AND(A42<>"",Deliverables!E41<>""),Deliverables!E41,"") ->  | E42: =IF(AND(A42<>"",Deliverables!F41<>""),Deliverables!F41,"") ->  | F42: =IF(AND(A42<>"",Deliverables!G41<>""),Deliverables!G41,"") ->  | G42: =IF(AND(A42<>"",Deliverables!H41<>""),Deliverables!H41,"") ->  | H42: =IF(AND(A42<>"",Deliverables!I41<>""),Deliverables!I41,"") ->  | I42: =IF(AND(A42<>"",Deliverables!J41<>""),Deliverables!J41,"") ->  | J42: =IF(AND(A42<>"",Deliverables!K41<>""),Deliverables!K41,"") ->  | K42: =IF(AND(A42<>"",Deliverables!L41<>""),Deliverables!L41,"") -> 
A43: =IF(Deliverables!B42<>"",Deliverables!B42,"") ->  | B43: =IF(AND(A43<>"",Deliverables!C42<>""),Deliverables!C42,"") ->  | C43: =IF(AND(A43<>"",Deliverables!D42<>""),Deliverables!D42,"") ->  | D43: =IF(AND(A43<>"",Deliverables!E42<>""),Deliverables!E42,"") ->  | E43: =IF(AND(A43<>"",Deliverables!F42<>""),Deliverables!F42,"") ->  | F43: =IF(AND(A43<>"",Deliverables!G42<>""),Deliverables!G42,"") ->  | G43: =IF(AND(A43<>"",Deliverables!H42<>""),Deliverables!H42,"") ->  | H43: =IF(AND(A43<>"",Deliverables!I42<>""),Deliverables!I42,"") ->  | I43: =IF(AND(A43<>"",Deliverables!J42<>""),Deliverables!J42,"") ->  | J43: =IF(AND(A43<>"",Deliverables!K42<>""),Deliverables!K42,"") ->  | K43: =IF(AND(A43<>"",Deliverables!L42<>""),Deliverables!L42,"") -> 
A44: =IF(Deliverables!B43<>"",Deliverables!B43,"") ->  | B44: =IF(AND(A44<>"",Deliverables!C43<>""),Deliverables!C43,"") ->  | C44: =IF(AND(A44<>"",Deliverables!D43<>""),Deliverables!D43,"") ->  | D44: =IF(AND(A44<>"",Deliverables!E43<>""),Deliverables!E43,"") ->  | E44: =IF(AND(A44<>"",Deliverables!F43<>""),Deliverables!F43,"") ->  | F44: =IF(AND(A44<>"",Deliverables!G43<>""),Deliverables!G43,"") ->  | G44: =IF(AND(A44<>"",Deliverables!H43<>""),Deliverables!H43,"") ->  | H44: =IF(AND(A44<>"",Deliverables!I43<>""),Deliverables!I43,"") ->  | I44: =IF(AND(A44<>"",Deliverables!J43<>""),Deliverables!J43,"") ->  | J44: =IF(AND(A44<>"",Deliverables!K43<>""),Deliverables!K43,"") ->  | K44: =IF(AND(A44<>"",Deliverables!L43<>""),Deliverables!L43,"") -> 
A45: =IF(Deliverables!B44<>"",Deliverables!B44,"") ->  | B45: =IF(AND(A45<>"",Deliverables!C44<>""),Deliverables!C44,"") ->  | C45: =IF(AND(A45<>"",Deliverables!D44<>""),Deliverables!D44,"") ->  | D45: =IF(AND(A45<>"",Deliverables!E44<>""),Deliverables!E44,"") ->  | E45: =IF(AND(A45<>"",Deliverables!F44<>""),Deliverables!F44,"") ->  | F45: =IF(AND(A45<>"",Deliverables!G44<>""),Deliverables!G44,"") ->  | G45: =IF(AND(A45<>"",Deliverables!H44<>""),Deliverables!H44,"") ->  | H45: =IF(AND(A45<>"",Deliverables!I44<>""),Deliverables!I44,"") ->  | I45: =IF(AND(A45<>"",Deliverables!J44<>""),Deliverables!J44,"") ->  | J45: =IF(AND(A45<>"",Deliverables!K44<>""),Deliverables!K44,"") ->  | K45: =IF(AND(A45<>"",Deliverables!L44<>""),Deliverables!L44,"") -> 
A46: =IF(Deliverables!B45<>"",Deliverables!B45,"") ->  | B46: =IF(AND(A46<>"",Deliverables!C45<>""),Deliverables!C45,"") ->  | C46: =IF(AND(A46<>"",Deliverables!D45<>""),Deliverables!D45,"") ->  | D46: =IF(AND(A46<>"",Deliverables!E45<>""),Deliverables!E45,"") ->  | E46: =IF(AND(A46<>"",Deliverables!F45<>""),Deliverables!F45,"") ->  | F46: =IF(AND(A46<>"",Deliverables!G45<>""),Deliverables!G45,"") ->  | G46: =IF(AND(A46<>"",Deliverables!H45<>""),Deliverables!H45,"") ->  | H46: =IF(AND(A46<>"",Deliverables!I45<>""),Deliverables!I45,"") ->  | I46: =IF(AND(A46<>"",Deliverables!J45<>""),Deliverables!J45,"") ->  | J46: =IF(AND(A46<>"",Deliverables!K45<>""),Deliverables!K45,"") ->  | K46: =IF(AND(A46<>"",Deliverables!L45<>""),Deliverables!L45,"") -> 
A47: =IF(Deliverables!B46<>"",Deliverables!B46,"") ->  | B47: =IF(AND(A47<>"",Deliverables!C46<>""),Deliverables!C46,"") ->  | C47: =IF(AND(A47<>"",Deliverables!D46<>""),Deliverables!D46,"") ->  | D47: =IF(AND(A47<>"",Deliverables!E46<>""),Deliverables!E46,"") ->  | E47: =IF(AND(A47<>"",Deliverables!F46<>""),Deliverables!F46,"") ->  | F47: =IF(AND(A47<>"",Deliverables!G46<>""),Deliverables!G46,"") ->  | G47: =IF(AND(A47<>"",Deliverables!H46<>""),Deliverables!H46,"") ->  | H47: =IF(AND(A47<>"",Deliverables!I46<>""),Deliverables!I46,"") ->  | I47: =IF(AND(A47<>"",Deliverables!J46<>""),Deliverables!J46,"") ->  | J47: =IF(AND(A47<>"",Deliverables!K46<>""),Deliverables!K46,"") ->  | K47: =IF(AND(A47<>"",Deliverables!L46<>""),Deliverables!L46,"") -> 
A48: =IF(Deliverables!B47<>"",Deliverables!B47,"") ->  | B48: =IF(AND(A48<>"",Deliverables!C47<>""),Deliverables!C47,"") ->  | C48: =IF(AND(A48<>"",Deliverables!D47<>""),Deliverables!D47,"") ->  | D48: =IF(AND(A48<>"",Deliverables!E47<>""),Deliverables!E47,"") ->  | E48: =IF(AND(A48<>"",Deliverables!F47<>""),Deliverables!F47,"") ->  | F48: =IF(AND(A48<>"",Deliverables!G47<>""),Deliverables!G47,"") ->  | G48: =IF(AND(A48<>"",Deliverables!H47<>""),Deliverables!H47,"") ->  | H48: =IF(AND(A48<>"",Deliverables!I47<>""),Deliverables!I47,"") ->  | I48: =IF(AND(A48<>"",Deliverables!J47<>""),Deliverables!J47,"") ->  | J48: =IF(AND(A48<>"",Deliverables!K47<>""),Deliverables!K47,"") ->  | K48: =IF(AND(A48<>"",Deliverables!L47<>""),Deliverables!L47,"") -> 
A49: =IF(Deliverables!B48<>"",Deliverables!B48,"") ->  | B49: =IF(AND(A49<>"",Deliverables!C48<>""),Deliverables!C48,"") ->  | C49: =IF(AND(A49<>"",Deliverables!D48<>""),Deliverables!D48,"") ->  | D49: =IF(AND(A49<>"",Deliverables!E48<>""),Deliverables!E48,"") ->  | E49: =IF(AND(A49<>"",Deliverables!F48<>""),Deliverables!F48,"") ->  | F49: =IF(AND(A49<>"",Deliverables!G48<>""),Deliverables!G48,"") ->  | G49: =IF(AND(A49<>"",Deliverables!H48<>""),Deliverables!H48,"") ->  | H49: =IF(AND(A49<>"",Deliverables!I48<>""),Deliverables!I48,"") ->  | I49: =IF(AND(A49<>"",Deliverables!J48<>""),Deliverables!J48,"") ->  | J49: =IF(AND(A49<>"",Deliverables!K48<>""),Deliverables!K48,"") ->  | K49: =IF(AND(A49<>"",Deliverables!L48<>""),Deliverables!L48,"") -> 
A50: =IF(Deliverables!B49<>"",Deliverables!B49,"") ->  | B50: =IF(AND(A50<>"",Deliverables!C49<>""),Deliverables!C49,"") ->  | C50: =IF(AND(A50<>"",Deliverables!D49<>""),Deliverables!D49,"") ->  | D50: =IF(AND(A50<>"",Deliverables!E49<>""),Deliverables!E49,"") ->  | E50: =IF(AND(A50<>"",Deliverables!F49<>""),Deliverables!F49,"") ->  | F50: =IF(AND(A50<>"",Deliverables!G49<>""),Deliverables!G49,"") ->  | G50: =IF(AND(A50<>"",Deliverables!H49<>""),Deliverables!H49,"") ->  | H50: =IF(AND(A50<>"",Deliverables!I49<>""),Deliverables!I49,"") ->  | I50: =IF(AND(A50<>"",Deliverables!J49<>""),Deliverables!J49,"") ->  | J50: =IF(AND(A50<>"",Deliverables!K49<>""),Deliverables!K49,"") ->  | K50: =IF(AND(A50<>"",Deliverables!L49<>""),Deliverables!L49,"") -> 
A51: =IF(Deliverables!B50<>"",Deliverables!B50,"") ->  | B51: =IF(AND(A51<>"",Deliverables!C50<>""),Deliverables!C50,"") ->  | C51: =IF(AND(A51<>"",Deliverables!D50<>""),Deliverables!D50,"") ->  | D51: =IF(AND(A51<>"",Deliverables!E50<>""),Deliverables!E50,"") ->  | E51: =IF(AND(A51<>"",Deliverables!F50<>""),Deliverables!F50,"") ->  | F51: =IF(AND(A51<>"",Deliverables!G50<>""),Deliverables!G50,"") ->  | G51: =IF(AND(A51<>"",Deliverables!H50<>""),Deliverables!H50,"") ->  | H51: =IF(AND(A51<>"",Deliverables!I50<>""),Deliverables!I50,"") ->  | I51: =IF(AND(A51<>"",Deliverables!J50<>""),Deliverables!J50,"") ->  | J51: =IF(AND(A51<>"",Deliverables!K50<>""),Deliverables!K50,"") ->  | K51: =IF(AND(A51<>"",Deliverables!L50<>""),Deliverables!L50,"") -> 
A52: =IF(Deliverables!B51<>"",Deliverables!B51,"") ->  | B52: =IF(AND(A52<>"",Deliverables!C51<>""),Deliverables!C51,"") ->  | C52: =IF(AND(A52<>"",Deliverables!D51<>""),Deliverables!D51,"") ->  | D52: =IF(AND(A52<>"",Deliverables!E51<>""),Deliverables!E51,"") ->  | E52: =IF(AND(A52<>"",Deliverables!F51<>""),Deliverables!F51,"") ->  | F52: =IF(AND(A52<>"",Deliverables!G51<>""),Deliverables!G51,"") ->  | G52: =IF(AND(A52<>"",Deliverables!H51<>""),Deliverables!H51,"") ->  | H52: =IF(AND(A52<>"",Deliverables!I51<>""),Deliverables!I51,"") ->  | I52: =IF(AND(A52<>"",Deliverables!J51<>""),Deliverables!J51,"") ->  | J52: =IF(AND(A52<>"",Deliverables!K51<>""),Deliverables!K51,"") ->  | K52: =IF(AND(A52<>"",Deliverables!L51<>""),Deliverables!L51,"") -> 
A53: =IF(Deliverables!B52<>"",Deliverables!B52,"") ->  | B53: =IF(AND(A53<>"",Deliverables!C52<>""),Deliverables!C52,"") ->  | C53: =IF(AND(A53<>"",Deliverables!D52<>""),Deliverables!D52,"") ->  | D53: =IF(AND(A53<>"",Deliverables!E52<>""),Deliverables!E52,"") ->  | E53: =IF(AND(A53<>"",Deliverables!F52<>""),Deliverables!F52,"") ->  | F53: =IF(AND(A53<>"",Deliverables!G52<>""),Deliverables!G52,"") ->  | G53: =IF(AND(A53<>"",Deliverables!H52<>""),Deliverables!H52,"") ->  | H53: =IF(AND(A53<>"",Deliverables!I52<>""),Deliverables!I52,"") ->  | I53: =IF(AND(A53<>"",Deliverables!J52<>""),Deliverables!J52,"") ->  | J53: =IF(AND(A53<>"",Deliverables!K52<>""),Deliverables!K52,"") ->  | K53: =IF(AND(A53<>"",Deliverables!L52<>""),Deliverables!L52,"") -> 
A54: =IF(Deliverables!B53<>"",Deliverables!B53,"") ->  | B54: =IF(AND(A54<>"",Deliverables!C53<>""),Deliverables!C53,"") ->  | C54: =IF(AND(A54<>"",Deliverables!D53<>""),Deliverables!D53,"") ->  | D54: =IF(AND(A54<>"",Deliverables!E53<>""),Deliverables!E53,"") ->  | E54: =IF(AND(A54<>"",Deliverables!F53<>""),Deliverables!F53,"") ->  | F54: =IF(AND(A54<>"",Deliverables!G53<>""),Deliverables!G53,"") ->  | G54: =IF(AND(A54<>"",Deliverables!H53<>""),Deliverables!H53,"") ->  | H54: =IF(AND(A54<>"",Deliverables!I53<>""),Deliverables!I53,"") ->  | I54: =IF(AND(A54<>"",Deliverables!J53<>""),Deliverables!J53,"") ->  | J54: =IF(AND(A54<>"",Deliverables!K53<>""),Deliverables!K53,"") ->  | K54: =IF(AND(A54<>"",Deliverables!L53<>""),Deliverables!L53,"") -> 
A55: =IF(Deliverables!B54<>"",Deliverables!B54,"") ->  | B55: =IF(AND(A55<>"",Deliverables!C54<>""),Deliverables!C54,"") ->  | C55: =IF(AND(A55<>"",Deliverables!D54<>""),Deliverables!D54,"") ->  | D55: =IF(AND(A55<>"",Deliverables!E54<>""),Deliverables!E54,"") ->  | E55: =IF(AND(A55<>"",Deliverables!F54<>""),Deliverables!F54,"") ->  | F55: =IF(AND(A55<>"",Deliverables!G54<>""),Deliverables!G54,"") ->  | G55: =IF(AND(A55<>"",Deliverables!H54<>""),Deliverables!H54,"") ->  | H55: =IF(AND(A55<>"",Deliverables!I54<>""),Deliverables!I54,"") ->  | I55: =IF(AND(A55<>"",Deliverables!J54<>""),Deliverables!J54,"") ->  | J55: =IF(AND(A55<>"",Deliverables!K54<>""),Deliverables!K54,"") ->  | K55: =IF(AND(A55<>"",Deliverables!L54<>""),Deliverables!L54,"") -> 
A56: =IF(Deliverables!B55<>"",Deliverables!B55,"") ->  | B56: =IF(AND(A56<>"",Deliverables!C55<>""),Deliverables!C55,"") ->  | C56: =IF(AND(A56<>"",Deliverables!D55<>""),Deliverables!D55,"") ->  | D56: =IF(AND(A56<>"",Deliverables!E55<>""),Deliverables!E55,"") ->  | E56: =IF(AND(A56<>"",Deliverables!F55<>""),Deliverables!F55,"") ->  | F56: =IF(AND(A56<>"",Deliverables!G55<>""),Deliverables!G55,"") ->  | G56: =IF(AND(A56<>"",Deliverables!H55<>""),Deliverables!H55,"") ->  | H56: =IF(AND(A56<>"",Deliverables!I55<>""),Deliverables!I55,"") ->  | I56: =IF(AND(A56<>"",Deliverables!J55<>""),Deliverables!J55,"") ->  | J56: =IF(AND(A56<>"",Deliverables!K55<>""),Deliverables!K55,"") ->  | K56: =IF(AND(A56<>"",Deliverables!L55<>""),Deliverables!L55,"") -> 
A57: =IF(Deliverables!B56<>"",Deliverables!B56,"") ->  | B57: =IF(AND(A57<>"",Deliverables!C56<>""),Deliverables!C56,"") ->  | C57: =IF(AND(A57<>"",Deliverables!D56<>""),Deliverables!D56,"") ->  | D57: =IF(AND(A57<>"",Deliverables!E56<>""),Deliverables!E56,"") ->  | E57: =IF(AND(A57<>"",Deliverables!F56<>""),Deliverables!F56,"") ->  | F57: =IF(AND(A57<>"",Deliverables!G56<>""),Deliverables!G56,"") ->  | G57: =IF(AND(A57<>"",Deliverables!H56<>""),Deliverables!H56,"") ->  | H57: =IF(AND(A57<>"",Deliverables!I56<>""),Deliverables!I56,"") ->  | I57: =IF(AND(A57<>"",Deliverables!J56<>""),Deliverables!J56,"") ->  | J57: =IF(AND(A57<>"",Deliverables!K56<>""),Deliverables!K56,"") ->  | K57: =IF(AND(A57<>"",Deliverables!L56<>""),Deliverables!L56,"") -> 
A58: =IF(Deliverables!B57<>"",Deliverables!B57,"") ->  | B58: =IF(AND(A58<>"",Deliverables!C57<>""),Deliverables!C57,"") ->  | C58: =IF(AND(A58<>"",Deliverables!D57<>""),Deliverables!D57,"") ->  | D58: =IF(AND(A58<>"",Deliverables!E57<>""),Deliverables!E57,"") ->  | E58: =IF(AND(A58<>"",Deliverables!F57<>""),Deliverables!F57,"") ->  | F58: =IF(AND(A58<>"",Deliverables!G57<>""),Deliverables!G57,"") ->  | G58: =IF(AND(A58<>"",Deliverables!H57<>""),Deliverables!H57,"") ->  | H58: =IF(AND(A58<>"",Deliverables!I57<>""),Deliverables!I57,"") ->  | I58: =IF(AND(A58<>"",Deliverables!J57<>""),Deliverables!J57,"") ->  | J58: =IF(AND(A58<>"",Deliverables!K57<>""),Deliverables!K57,"") ->  | K58: =IF(AND(A58<>"",Deliverables!L57<>""),Deliverables!L57,"") -> 
A59: =IF(Deliverables!B58<>"",Deliverables!B58,"") ->  | B59: =IF(AND(A59<>"",Deliverables!C58<>""),Deliverables!C58,"") ->  | C59: =IF(AND(A59<>"",Deliverables!D58<>""),Deliverables!D58,"") ->  | D59: =IF(AND(A59<>"",Deliverables!E58<>""),Deliverables!E58,"") ->  | E59: =IF(AND(A59<>"",Deliverables!F58<>""),Deliverables!F58,"") ->  | F59: =IF(AND(A59<>"",Deliverables!G58<>""),Deliverables!G58,"") ->  | G59: =IF(AND(A59<>"",Deliverables!H58<>""),Deliverables!H58,"") ->  | H59: =IF(AND(A59<>"",Deliverables!I58<>""),Deliverables!I58,"") ->  | I59: =IF(AND(A59<>"",Deliverables!J58<>""),Deliverables!J58,"") ->  | J59: =IF(AND(A59<>"",Deliverables!K58<>""),Deliverables!K58,"") ->  | K59: =IF(AND(A59<>"",Deliverables!L58<>""),Deliverables!L58,"") -> 
A60: =IF(Deliverables!B59<>"",Deliverables!B59,"") ->  | B60: =IF(AND(A60<>"",Deliverables!C59<>""),Deliverables!C59,"") ->  | C60: =IF(AND(A60<>"",Deliverables!D59<>""),Deliverables!D59,"") ->  | D60: =IF(AND(A60<>"",Deliverables!E59<>""),Deliverables!E59,"") ->  | E60: =IF(AND(A60<>"",Deliverables!F59<>""),Deliverables!F59,"") ->  | F60: =IF(AND(A60<>"",Deliverables!G59<>""),Deliverables!G59,"") ->  | G60: =IF(AND(A60<>"",Deliverables!H59<>""),Deliverables!H59,"") ->  | H60: =IF(AND(A60<>"",Deliverables!I59<>""),Deliverables!I59,"") ->  | I60: =IF(AND(A60<>"",Deliverables!J59<>""),Deliverables!J59,"") ->  | J60: =IF(AND(A60<>"",Deliverables!K59<>""),Deliverables!K59,"") ->  | K60: =IF(AND(A60<>"",Deliverables!L59<>""),Deliverables!L59,"") -> 
A61: =IF(Deliverables!B60<>"",Deliverables!B60,"") ->  | B61: =IF(AND(A61<>"",Deliverables!C60<>""),Deliverables!C60,"") ->  | C61: =IF(AND(A61<>"",Deliverables!D60<>""),Deliverables!D60,"") ->  | D61: =IF(AND(A61<>"",Deliverables!E60<>""),Deliverables!E60,"") ->  | E61: =IF(AND(A61<>"",Deliverables!F60<>""),Deliverables!F60,"") ->  | F61: =IF(AND(A61<>"",Deliverables!G60<>""),Deliverables!G60,"") ->  | G61: =IF(AND(A61<>"",Deliverables!H60<>""),Deliverables!H60,"") ->  | H61: =IF(AND(A61<>"",Deliverables!I60<>""),Deliverables!I60,"") ->  | I61: =IF(AND(A61<>"",Deliverables!J60<>""),Deliverables!J60,"") ->  | J61: =IF(AND(A61<>"",Deliverables!K60<>""),Deliverables!K60,"") ->  | K61: =IF(AND(A61<>"",Deliverables!L60<>""),Deliverables!L60,"") -> 
A62: =IF(Deliverables!B61<>"",Deliverables!B61,"") ->  | B62: =IF(AND(A62<>"",Deliverables!C61<>""),Deliverables!C61,"") ->  | C62: =IF(AND(A62<>"",Deliverables!D61<>""),Deliverables!D61,"") ->  | D62: =IF(AND(A62<>"",Deliverables!E61<>""),Deliverables!E61,"") ->  | E62: =IF(AND(A62<>"",Deliverables!F61<>""),Deliverables!F61,"") ->  | F62: =IF(AND(A62<>"",Deliverables!G61<>""),Deliverables!G61,"") ->  | G62: =IF(AND(A62<>"",Deliverables!H61<>""),Deliverables!H61,"") ->  | H62: =IF(AND(A62<>"",Deliverables!I61<>""),Deliverables!I61,"") ->  | I62: =IF(AND(A62<>"",Deliverables!J61<>""),Deliverables!J61,"") ->  | J62: =IF(AND(A62<>"",Deliverables!K61<>""),Deliverables!K61,"") ->  | K62: =IF(AND(A62<>"",Deliverables!L61<>""),Deliverables!L61,"") -> 
A63: =IF(Deliverables!B62<>"",Deliverables!B62,"") ->  | B63: =IF(AND(A63<>"",Deliverables!C62<>""),Deliverables!C62,"") ->  | C63: =IF(AND(A63<>"",Deliverables!D62<>""),Deliverables!D62,"") ->  | D63: =IF(AND(A63<>"",Deliverables!E62<>""),Deliverables!E62,"") ->  | E63: =IF(AND(A63<>"",Deliverables!F62<>""),Deliverables!F62,"") ->  | F63: =IF(AND(A63<>"",Deliverables!G62<>""),Deliverables!G62,"") ->  | G63: =IF(AND(A63<>"",Deliverables!H62<>""),Deliverables!H62,"") ->  | H63: =IF(AND(A63<>"",Deliverables!I62<>""),Deliverables!I62,"") ->  | I63: =IF(AND(A63<>"",Deliverables!J62<>""),Deliverables!J62,"") ->  | J63: =IF(AND(A63<>"",Deliverables!K62<>""),Deliverables!K62,"") ->  | K63: =IF(AND(A63<>"",Deliverables!L62<>""),Deliverables!L62,"") -> 
A64: =IF(Deliverables!B63<>"",Deliverables!B63,"") ->  | B64: =IF(AND(A64<>"",Deliverables!C63<>""),Deliverables!C63,"") ->  | C64: =IF(AND(A64<>"",Deliverables!D63<>""),Deliverables!D63,"") ->  | D64: =IF(AND(A64<>"",Deliverables!E63<>""),Deliverables!E63,"") ->  | E64: =IF(AND(A64<>"",Deliverables!F63<>""),Deliverables!F63,"") ->  | F64: =IF(AND(A64<>"",Deliverables!G63<>""),Deliverables!G63,"") ->  | G64: =IF(AND(A64<>"",Deliverables!H63<>""),Deliverables!H63,"") ->  | H64: =IF(AND(A64<>"",Deliverables!I63<>""),Deliverables!I63,"") ->  | I64: =IF(AND(A64<>"",Deliverables!J63<>""),Deliverables!J63,"") ->  | J64: =IF(AND(A64<>"",Deliverables!K63<>""),Deliverables!K63,"") ->  | K64: =IF(AND(A64<>"",Deliverables!L63<>""),Deliverables!L63,"") -> 
A65: =IF(Deliverables!B64<>"",Deliverables!B64,"") ->  | B65: =IF(AND(A65<>"",Deliverables!C64<>""),Deliverables!C64,"") ->  | C65: =IF(AND(A65<>"",Deliverables!D64<>""),Deliverables!D64,"") ->  | D65: =IF(AND(A65<>"",Deliverables!E64<>""),Deliverables!E64,"") ->  | E65: =IF(AND(A65<>"",Deliverables!F64<>""),Deliverables!F64,"") ->  | F65: =IF(AND(A65<>"",Deliverables!G64<>""),Deliverables!G64,"") ->  | G65: =IF(AND(A65<>"",Deliverables!H64<>""),Deliverables!H64,"") ->  | H65: =IF(AND(A65<>"",Deliverables!I64<>""),Deliverables!I64,"") ->  | I65: =IF(AND(A65<>"",Deliverables!J64<>""),Deliverables!J64,"") ->  | J65: =IF(AND(A65<>"",Deliverables!K64<>""),Deliverables!K64,"") ->  | K65: =IF(AND(A65<>"",Deliverables!L64<>""),Deliverables!L64,"") -> 
A66: =IF(Deliverables!B65<>"",Deliverables!B65,"") ->  | B66: =IF(AND(A66<>"",Deliverables!C65<>""),Deliverables!C65,"") ->  | C66: =IF(AND(A66<>"",Deliverables!D65<>""),Deliverables!D65,"") ->  | D66: =IF(AND(A66<>"",Deliverables!E65<>""),Deliverables!E65,"") ->  | E66: =IF(AND(A66<>"",Deliverables!F65<>""),Deliverables!F65,"") ->  | F66: =IF(AND(A66<>"",Deliverables!G65<>""),Deliverables!G65,"") ->  | G66: =IF(AND(A66<>"",Deliverables!H65<>""),Deliverables!H65,"") ->  | H66: =IF(AND(A66<>"",Deliverables!I65<>""),Deliverables!I65,"") ->  | I66: =IF(AND(A66<>"",Deliverables!J65<>""),Deliverables!J65,"") ->  | J66: =IF(AND(A66<>"",Deliverables!K65<>""),Deliverables!K65,"") ->  | K66: =IF(AND(A66<>"",Deliverables!L65<>""),Deliverables!L65,"") -> 
A67: =IF(Deliverables!B66<>"",Deliverables!B66,"") ->  | B67: =IF(AND(A67<>"",Deliverables!C66<>""),Deliverables!C66,"") ->  | C67: =IF(AND(A67<>"",Deliverables!D66<>""),Deliverables!D66,"") ->  | D67: =IF(AND(A67<>"",Deliverables!E66<>""),Deliverables!E66,"") ->  | E67: =IF(AND(A67<>"",Deliverables!F66<>""),Deliverables!F66,"") ->  | F67: =IF(AND(A67<>"",Deliverables!G66<>""),Deliverables!G66,"") ->  | G67: =IF(AND(A67<>"",Deliverables!H66<>""),Deliverables!H66,"") ->  | H67: =IF(AND(A67<>"",Deliverables!I66<>""),Deliverables!I66,"") ->  | I67: =IF(AND(A67<>"",Deliverables!J66<>""),Deliverables!J66,"") ->  | J67: =IF(AND(A67<>"",Deliverables!K66<>""),Deliverables!K66,"") ->  | K67: =IF(AND(A67<>"",Deliverables!L66<>""),Deliverables!L66,"") -> 
A68: =IF(Deliverables!B67<>"",Deliverables!B67,"") ->  | B68: =IF(AND(A68<>"",Deliverables!C67<>""),Deliverables!C67,"") ->  | C68: =IF(AND(A68<>"",Deliverables!D67<>""),Deliverables!D67,"") ->  | D68: =IF(AND(A68<>"",Deliverables!E67<>""),Deliverables!E67,"") ->  | E68: =IF(AND(A68<>"",Deliverables!F67<>""),Deliverables!F67,"") ->  | F68: =IF(AND(A68<>"",Deliverables!G67<>""),Deliverables!G67,"") ->  | G68: =IF(AND(A68<>"",Deliverables!H67<>""),Deliverables!H67,"") ->  | H68: =IF(AND(A68<>"",Deliverables!I67<>""),Deliverables!I67,"") ->  | I68: =IF(AND(A68<>"",Deliverables!J67<>""),Deliverables!J67,"") ->  | J68: =IF(AND(A68<>"",Deliverables!K67<>""),Deliverables!K67,"") ->  | K68: =IF(AND(A68<>"",Deliverables!L67<>""),Deliverables!L67,"") -> 
A69: =IF(Deliverables!B68<>"",Deliverables!B68,"") ->  | B69: =IF(AND(A69<>"",Deliverables!C68<>""),Deliverables!C68,"") ->  | C69: =IF(AND(A69<>"",Deliverables!D68<>""),Deliverables!D68,"") ->  | D69: =IF(AND(A69<>"",Deliverables!E68<>""),Deliverables!E68,"") ->  | E69: =IF(AND(A69<>"",Deliverables!F68<>""),Deliverables!F68,"") ->  | F69: =IF(AND(A69<>"",Deliverables!G68<>""),Deliverables!G68,"") ->  | G69: =IF(AND(A69<>"",Deliverables!H68<>""),Deliverables!H68,"") ->  | H69: =IF(AND(A69<>"",Deliverables!I68<>""),Deliverables!I68,"") ->  | I69: =IF(AND(A69<>"",Deliverables!J68<>""),Deliverables!J68,"") ->  | J69: =IF(AND(A69<>"",Deliverables!K68<>""),Deliverables!K68,"") ->  | K69: =IF(AND(A69<>"",Deliverables!L68<>""),Deliverables!L68,"") -> 
A70: =IF(Deliverables!B69<>"",Deliverables!B69,"") ->  | B70: =IF(AND(A70<>"",Deliverables!C69<>""),Deliverables!C69,"") ->  | C70: =IF(AND(A70<>"",Deliverables!D69<>""),Deliverables!D69,"") ->  | D70: =IF(AND(A70<>"",Deliverables!E69<>""),Deliverables!E69,"") ->  | E70: =IF(AND(A70<>"",Deliverables!F69<>""),Deliverables!F69,"") ->  | F70: =IF(AND(A70<>"",Deliverables!G69<>""),Deliverables!G69,"") ->  | G70: =IF(AND(A70<>"",Deliverables!H69<>""),Deliverables!H69,"") ->  | H70: =IF(AND(A70<>"",Deliverables!I69<>""),Deliverables!I69,"") ->  | I70: =IF(AND(A70<>"",Deliverables!J69<>""),Deliverables!J69,"") ->  | J70: =IF(AND(A70<>"",Deliverables!K69<>""),Deliverables!K69,"") ->  | K70: =IF(AND(A70<>"",Deliverables!L69<>""),Deliverables!L69,"") -> 
A72: Testing Documents | C72: Table 3 of 5
A73: ID | B73: TITLE | C73: ACRONYM | D73: =D2 -> RR | E73: PDR | F73: CDR | G73: TRR | H73: QAR | I73: IOCR | J73: DCCR | K73: FR
A74: =IF(Deliverables!B71<>"",Deliverables!B71,"") -> S.TE01 | B74: =IF(AND(A74<>"",Deliverables!C71<>""),Deliverables!C71,"") -> Testing Document #1 | C74: =IF(AND(A74<>"",Deliverables!D71<>""),Deliverables!D71,"") -> ACR#6 | D74: =IF(AND(A74<>"",Deliverables!E71<>""),Deliverables!E71,"") ->  | E74: =IF(AND(A74<>"",Deliverables!F71<>""),Deliverables!F71,"") ->  | F74: =IF(AND(A74<>"",Deliverables!G71<>""),Deliverables!G71,"") ->  | G74: =IF(AND(A74<>"",Deliverables!H71<>""),Deliverables!H71,"") -> N | H74: =IF(AND(A74<>"",Deliverables!I71<>""),Deliverables!I71,"") -> U | I74: =IF(AND(A74<>"",Deliverables!J71<>""),Deliverables!J71,"") -> U | J74: =IF(AND(A74<>"",Deliverables!K71<>""),Deliverables!K71,"") -> C | K74: =IF(AND(A74<>"",Deliverables!L71<>""),Deliverables!L71,"") -> C
A75: =IF(Deliverables!B72<>"",Deliverables!B72,"") -> S.TE02 | B75: =IF(AND(A75<>"",Deliverables!C72<>""),Deliverables!C72,"") -> Testing Document #2 | C75: =IF(AND(A75<>"",Deliverables!D72<>""),Deliverables!D72,"") -> ACR#7 | D75: =IF(AND(A75<>"",Deliverables!E72<>""),Deliverables!E72,"") ->  | E75: =IF(AND(A75<>"",Deliverables!F72<>""),Deliverables!F72,"") ->  | F75: =IF(AND(A75<>"",Deliverables!G72<>""),Deliverables!G72,"") -> N | G75: =IF(AND(A75<>"",Deliverables!H72<>""),Deliverables!H72,"") ->  | H75: =IF(AND(A75<>"",Deliverables!I72<>""),Deliverables!I72,"") -> U | I75: =IF(AND(A75<>"",Deliverables!J72<>""),Deliverables!J72,"") -> U | J75: =IF(AND(A75<>"",Deliverables!K72<>""),Deliverables!K72,"") -> C | K75: =IF(AND(A75<>"",Deliverables!L72<>""),Deliverables!L72,"") -> C
A76: =IF(Deliverables!B73<>"",Deliverables!B73,"") -> S.TE03 | B76: =IF(AND(A76<>"",Deliverables!C73<>""),Deliverables!C73,"") -> Testing Document #3 | C76: =IF(AND(A76<>"",Deliverables!D73<>""),Deliverables!D73,"") -> ACR#8 | D76: =IF(AND(A76<>"",Deliverables!E73<>""),Deliverables!E73,"") ->  | E76: =IF(AND(A76<>"",Deliverables!F73<>""),Deliverables!F73,"") ->  | F76: =IF(AND(A76<>"",Deliverables!G73<>""),Deliverables!G73,"") -> N | G76: =IF(AND(A76<>"",Deliverables!H73<>""),Deliverables!H73,"") ->  | H76: =IF(AND(A76<>"",Deliverables!I73<>""),Deliverables!I73,"") -> U | I76: =IF(AND(A76<>"",Deliverables!J73<>""),Deliverables!J73,"") -> U | J76: =IF(AND(A76<>"",Deliverables!K73<>""),Deliverables!K73,"") -> C | K76: =IF(AND(A76<>"",Deliverables!L73<>""),Deliverables!L73,"") -> C
A77: =IF(Deliverables!B74<>"",Deliverables!B74,"") ->  | B77: =IF(AND(A77<>"",Deliverables!C74<>""),Deliverables!C74,"") ->  | C77: =IF(AND(A77<>"",Deliverables!D74<>""),Deliverables!D74,"") ->  | D77: =IF(AND(A77<>"",Deliverables!E74<>""),Deliverables!E74,"") ->  | E77: =IF(AND(A77<>"",Deliverables!F74<>""),Deliverables!F74,"") ->  | F77: =IF(AND(A77<>"",Deliverables!G74<>""),Deliverables!G74,"") ->  | G77: =IF(AND(A77<>"",Deliverables!H74<>""),Deliverables!H74,"") ->  | H77: =IF(AND(A77<>"",Deliverables!I74<>""),Deliverables!I74,"") ->  | I77: =IF(AND(A77<>"",Deliverables!J74<>""),Deliverables!J74,"") ->  | J77: =IF(AND(A77<>"",Deliverables!K74<>""),Deliverables!K74,"") ->  | K77: =IF(AND(A77<>"",Deliverables!L74<>""),Deliverables!L74,"") -> 
A78: =IF(Deliverables!B75<>"",Deliverables!B75,"") ->  | B78: =IF(AND(A78<>"",Deliverables!C75<>""),Deliverables!C75,"") ->  | C78: =IF(AND(A78<>"",Deliverables!D75<>""),Deliverables!D75,"") ->  | D78: =IF(AND(A78<>"",Deliverables!E75<>""),Deliverables!E75,"") ->  | E78: =IF(AND(A78<>"",Deliverables!F75<>""),Deliverables!F75,"") ->  | F78: =IF(AND(A78<>"",Deliverables!G75<>""),Deliverables!G75,"") ->  | G78: =IF(AND(A78<>"",Deliverables!H75<>""),Deliverables!H75,"") ->  | H78: =IF(AND(A78<>"",Deliverables!I75<>""),Deliverables!I75,"") ->  | I78: =IF(AND(A78<>"",Deliverables!J75<>""),Deliverables!J75,"") ->  | J78: =IF(AND(A78<>"",Deliverables!K75<>""),Deliverables!K75,"") ->  | K78: =IF(AND(A78<>"",Deliverables!L75<>""),Deliverables!L75,"") -> 
A79: =IF(Deliverables!B76<>"",Deliverables!B76,"") ->  | B79: =IF(AND(A79<>"",Deliverables!C76<>""),Deliverables!C76,"") ->  | C79: =IF(AND(A79<>"",Deliverables!D76<>""),Deliverables!D76,"") ->  | D79: =IF(AND(A79<>"",Deliverables!E76<>""),Deliverables!E76,"") ->  | E79: =IF(AND(A79<>"",Deliverables!F76<>""),Deliverables!F76,"") ->  | F79: =IF(AND(A79<>"",Deliverables!G76<>""),Deliverables!G76,"") ->  | G79: =IF(AND(A79<>"",Deliverables!H76<>""),Deliverables!H76,"") ->  | H79: =IF(AND(A79<>"",Deliverables!I76<>""),Deliverables!I76,"") ->  | I79: =IF(AND(A79<>"",Deliverables!J76<>""),Deliverables!J76,"") ->  | J79: =IF(AND(A79<>"",Deliverables!K76<>""),Deliverables!K76,"") ->  | K79: =IF(AND(A79<>"",Deliverables!L76<>""),Deliverables!L76,"") -> 
A80: =IF(Deliverables!B77<>"",Deliverables!B77,"") ->  | B80: =IF(AND(A80<>"",Deliverables!C77<>""),Deliverables!C77,"") ->  | C80: =IF(AND(A80<>"",Deliverables!D77<>""),Deliverables!D77,"") ->  | D80: =IF(AND(A80<>"",Deliverables!E77<>""),Deliverables!E77,"") ->  | E80: =IF(AND(A80<>"",Deliverables!F77<>""),Deliverables!F77,"") ->  | F80: =IF(AND(A80<>"",Deliverables!G77<>""),Deliverables!G77,"") ->  | G80: =IF(AND(A80<>"",Deliverables!H77<>""),Deliverables!H77,"") ->  | H80: =IF(AND(A80<>"",Deliverables!I77<>""),Deliverables!I77,"") ->  | I80: =IF(AND(A80<>"",Deliverables!J77<>""),Deliverables!J77,"") ->  | J80: =IF(AND(A80<>"",Deliverables!K77<>""),Deliverables!K77,"") ->  | K80: =IF(AND(A80<>"",Deliverables!L77<>""),Deliverables!L77,"") -> 
A81: =IF(Deliverables!B78<>"",Deliverables!B78,"") ->  | B81: =IF(AND(A81<>"",Deliverables!C78<>""),Deliverables!C78,"") ->  | C81: =IF(AND(A81<>"",Deliverables!D78<>""),Deliverables!D78,"") ->  | D81: =IF(AND(A81<>"",Deliverables!E78<>""),Deliverables!E78,"") ->  | E81: =IF(AND(A81<>"",Deliverables!F78<>""),Deliverables!F78,"") ->  | F81: =IF(AND(A81<>"",Deliverables!G78<>""),Deliverables!G78,"") ->  | G81: =IF(AND(A81<>"",Deliverables!H78<>""),Deliverables!H78,"") ->  | H81: =IF(AND(A81<>"",Deliverables!I78<>""),Deliverables!I78,"") ->  | I81: =IF(AND(A81<>"",Deliverables!J78<>""),Deliverables!J78,"") ->  | J81: =IF(AND(A81<>"",Deliverables!K78<>""),Deliverables!K78,"") ->  | K81: =IF(AND(A81<>"",Deliverables!L78<>""),Deliverables!L78,"") -> 
A82: =IF(Deliverables!B79<>"",Deliverables!B79,"") ->  | B82: =IF(AND(A82<>"",Deliverables!C79<>""),Deliverables!C79,"") ->  | C82: =IF(AND(A82<>"",Deliverables!D79<>""),Deliverables!D79,"") ->  | D82: =IF(AND(A82<>"",Deliverables!E79<>""),Deliverables!E79,"") ->  | E82: =IF(AND(A82<>"",Deliverables!F79<>""),Deliverables!F79,"") ->  | F82: =IF(AND(A82<>"",Deliverables!G79<>""),Deliverables!G79,"") ->  | G82: =IF(AND(A82<>"",Deliverables!H79<>""),Deliverables!H79,"") ->  | H82: =IF(AND(A82<>"",Deliverables!I79<>""),Deliverables!I79,"") ->  | I82: =IF(AND(A82<>"",Deliverables!J79<>""),Deliverables!J79,"") ->  | J82: =IF(AND(A82<>"",Deliverables!K79<>""),Deliverables!K79,"") ->  | K82: =IF(AND(A82<>"",Deliverables!L79<>""),Deliverables!L79,"") -> 
A83: =IF(Deliverables!B80<>"",Deliverables!B80,"") ->  | B83: =IF(AND(A83<>"",Deliverables!C80<>""),Deliverables!C80,"") ->  | C83: =IF(AND(A83<>"",Deliverables!D80<>""),Deliverables!D80,"") ->  | D83: =IF(AND(A83<>"",Deliverables!E80<>""),Deliverables!E80,"") ->  | E83: =IF(AND(A83<>"",Deliverables!F80<>""),Deliverables!F80,"") ->  | F83: =IF(AND(A83<>"",Deliverables!G80<>""),Deliverables!G80,"") ->  | G83: =IF(AND(A83<>"",Deliverables!H80<>""),Deliverables!H80,"") ->  | H83: =IF(AND(A83<>"",Deliverables!I80<>""),Deliverables!I80,"") ->  | I83: =IF(AND(A83<>"",Deliverables!J80<>""),Deliverables!J80,"") ->  | J83: =IF(AND(A83<>"",Deliverables!K80<>""),Deliverables!K80,"") ->  | K83: =IF(AND(A83<>"",Deliverables!L80<>""),Deliverables!L80,"") -> 
A84: =IF(Deliverables!B81<>"",Deliverables!B81,"") ->  | B84: =IF(AND(A84<>"",Deliverables!C81<>""),Deliverables!C81,"") ->  | C84: =IF(AND(A84<>"",Deliverables!D81<>""),Deliverables!D81,"") ->  | D84: =IF(AND(A84<>"",Deliverables!E81<>""),Deliverables!E81,"") ->  | E84: =IF(AND(A84<>"",Deliverables!F81<>""),Deliverables!F81,"") ->  | F84: =IF(AND(A84<>"",Deliverables!G81<>""),Deliverables!G81,"") ->  | G84: =IF(AND(A84<>"",Deliverables!H81<>""),Deliverables!H81,"") ->  | H84: =IF(AND(A84<>"",Deliverables!I81<>""),Deliverables!I81,"") ->  | I84: =IF(AND(A84<>"",Deliverables!J81<>""),Deliverables!J81,"") ->  | J84: =IF(AND(A84<>"",Deliverables!K81<>""),Deliverables!K81,"") ->  | K84: =IF(AND(A84<>"",Deliverables!L81<>""),Deliverables!L81,"") -> 
A85: =IF(Deliverables!B82<>"",Deliverables!B82,"") ->  | B85: =IF(AND(A85<>"",Deliverables!C82<>""),Deliverables!C82,"") ->  | C85: =IF(AND(A85<>"",Deliverables!D82<>""),Deliverables!D82,"") ->  | D85: =IF(AND(A85<>"",Deliverables!E82<>""),Deliverables!E82,"") ->  | E85: =IF(AND(A85<>"",Deliverables!F82<>""),Deliverables!F82,"") ->  | F85: =IF(AND(A85<>"",Deliverables!G82<>""),Deliverables!G82,"") ->  | G85: =IF(AND(A85<>"",Deliverables!H82<>""),Deliverables!H82,"") ->  | H85: =IF(AND(A85<>"",Deliverables!I82<>""),Deliverables!I82,"") ->  | I85: =IF(AND(A85<>"",Deliverables!J82<>""),Deliverables!J82,"") ->  | J85: =IF(AND(A85<>"",Deliverables!K82<>""),Deliverables!K82,"") ->  | K85: =IF(AND(A85<>"",Deliverables!L82<>""),Deliverables!L82,"") -> 
A86: =IF(Deliverables!B83<>"",Deliverables!B83,"") ->  | B86: =IF(AND(A86<>"",Deliverables!C83<>""),Deliverables!C83,"") ->  | C86: =IF(AND(A86<>"",Deliverables!D83<>""),Deliverables!D83,"") ->  | D86: =IF(AND(A86<>"",Deliverables!E83<>""),Deliverables!E83,"") ->  | E86: =IF(AND(A86<>"",Deliverables!F83<>""),Deliverables!F83,"") ->  | F86: =IF(AND(A86<>"",Deliverables!G83<>""),Deliverables!G83,"") ->  | G86: =IF(AND(A86<>"",Deliverables!H83<>""),Deliverables!H83,"") ->  | H86: =IF(AND(A86<>"",Deliverables!I83<>""),Deliverables!I83,"") ->  | I86: =IF(AND(A86<>"",Deliverables!J83<>""),Deliverables!J83,"") ->  | J86: =IF(AND(A86<>"",Deliverables!K83<>""),Deliverables!K83,"") ->  | K86: =IF(AND(A86<>"",Deliverables!L83<>""),Deliverables!L83,"") -> 
A87: =IF(Deliverables!B84<>"",Deliverables!B84,"") ->  | B87: =IF(AND(A87<>"",Deliverables!C84<>""),Deliverables!C84,"") ->  | C87: =IF(AND(A87<>"",Deliverables!D84<>""),Deliverables!D84,"") ->  | D87: =IF(AND(A87<>"",Deliverables!E84<>""),Deliverables!E84,"") ->  | E87: =IF(AND(A87<>"",Deliverables!F84<>""),Deliverables!F84,"") ->  | F87: =IF(AND(A87<>"",Deliverables!G84<>""),Deliverables!G84,"") ->  | G87: =IF(AND(A87<>"",Deliverables!H84<>""),Deliverables!H84,"") ->  | H87: =IF(AND(A87<>"",Deliverables!I84<>""),Deliverables!I84,"") ->  | I87: =IF(AND(A87<>"",Deliverables!J84<>""),Deliverables!J84,"") ->  | J87: =IF(AND(A87<>"",Deliverables!K84<>""),Deliverables!K84,"") ->  | K87: =IF(AND(A87<>"",Deliverables!L84<>""),Deliverables!L84,"") -> 
A88: =IF(Deliverables!B85<>"",Deliverables!B85,"") ->  | B88: =IF(AND(A88<>"",Deliverables!C85<>""),Deliverables!C85,"") ->  | C88: =IF(AND(A88<>"",Deliverables!D85<>""),Deliverables!D85,"") ->  | D88: =IF(AND(A88<>"",Deliverables!E85<>""),Deliverables!E85,"") ->  | E88: =IF(AND(A88<>"",Deliverables!F85<>""),Deliverables!F85,"") ->  | F88: =IF(AND(A88<>"",Deliverables!G85<>""),Deliverables!G85,"") ->  | G88: =IF(AND(A88<>"",Deliverables!H85<>""),Deliverables!H85,"") ->  | H88: =IF(AND(A88<>"",Deliverables!I85<>""),Deliverables!I85,"") ->  | I88: =IF(AND(A88<>"",Deliverables!J85<>""),Deliverables!J85,"") ->  | J88: =IF(AND(A88<>"",Deliverables!K85<>""),Deliverables!K85,"") ->  | K88: =IF(AND(A88<>"",Deliverables!L85<>""),Deliverables!L85,"") -> 
A89: =IF(Deliverables!B86<>"",Deliverables!B86,"") ->  | B89: =IF(AND(A89<>"",Deliverables!C86<>""),Deliverables!C86,"") ->  | C89: =IF(AND(A89<>"",Deliverables!D86<>""),Deliverables!D86,"") ->  | D89: =IF(AND(A89<>"",Deliverables!E86<>""),Deliverables!E86,"") ->  | E89: =IF(AND(A89<>"",Deliverables!F86<>""),Deliverables!F86,"") ->  | F89: =IF(AND(A89<>"",Deliverables!G86<>""),Deliverables!G86,"") ->  | G89: =IF(AND(A89<>"",Deliverables!H86<>""),Deliverables!H86,"") ->  | H89: =IF(AND(A89<>"",Deliverables!I86<>""),Deliverables!I86,"") ->  | I89: =IF(AND(A89<>"",Deliverables!J86<>""),Deliverables!J86,"") ->  | J89: =IF(AND(A89<>"",Deliverables!K86<>""),Deliverables!K86,"") ->  | K89: =IF(AND(A89<>"",Deliverables!L86<>""),Deliverables!L86,"") -> 
A90: =IF(Deliverables!B87<>"",Deliverables!B87,"") ->  | B90: =IF(AND(A90<>"",Deliverables!C87<>""),Deliverables!C87,"") ->  | C90: =IF(AND(A90<>"",Deliverables!D87<>""),Deliverables!D87,"") ->  | D90: =IF(AND(A90<>"",Deliverables!E87<>""),Deliverables!E87,"") ->  | E90: =IF(AND(A90<>"",Deliverables!F87<>""),Deliverables!F87,"") ->  | F90: =IF(AND(A90<>"",Deliverables!G87<>""),Deliverables!G87,"") ->  | G90: =IF(AND(A90<>"",Deliverables!H87<>""),Deliverables!H87,"") ->  | H90: =IF(AND(A90<>"",Deliverables!I87<>""),Deliverables!I87,"") ->  | I90: =IF(AND(A90<>"",Deliverables!J87<>""),Deliverables!J87,"") ->  | J90: =IF(AND(A90<>"",Deliverables!K87<>""),Deliverables!K87,"") ->  | K90: =IF(AND(A90<>"",Deliverables!L87<>""),Deliverables!L87,"") -> 
A91: =IF(Deliverables!B88<>"",Deliverables!B88,"") ->  | B91: =IF(AND(A91<>"",Deliverables!C88<>""),Deliverables!C88,"") ->  | C91: =IF(AND(A91<>"",Deliverables!D88<>""),Deliverables!D88,"") ->  | D91: =IF(AND(A91<>"",Deliverables!E88<>""),Deliverables!E88,"") ->  | E91: =IF(AND(A91<>"",Deliverables!F88<>""),Deliverables!F88,"") ->  | F91: =IF(AND(A91<>"",Deliverables!G88<>""),Deliverables!G88,"") ->  | G91: =IF(AND(A91<>"",Deliverables!H88<>""),Deliverables!H88,"") ->  | H91: =IF(AND(A91<>"",Deliverables!I88<>""),Deliverables!I88,"") ->  | I91: =IF(AND(A91<>"",Deliverables!J88<>""),Deliverables!J88,"") ->  | J91: =IF(AND(A91<>"",Deliverables!K88<>""),Deliverables!K88,"") ->  | K91: =IF(AND(A91<>"",Deliverables!L88<>""),Deliverables!L88,"") -> 
A92: =IF(Deliverables!B89<>"",Deliverables!B89,"") ->  | B92: =IF(AND(A92<>"",Deliverables!C89<>""),Deliverables!C89,"") ->  | C92: =IF(AND(A92<>"",Deliverables!D89<>""),Deliverables!D89,"") ->  | D92: =IF(AND(A92<>"",Deliverables!E89<>""),Deliverables!E89,"") ->  | E92: =IF(AND(A92<>"",Deliverables!F89<>""),Deliverables!F89,"") ->  | F92: =IF(AND(A92<>"",Deliverables!G89<>""),Deliverables!G89,"") ->  | G92: =IF(AND(A92<>"",Deliverables!H89<>""),Deliverables!H89,"") ->  | H92: =IF(AND(A92<>"",Deliverables!I89<>""),Deliverables!I89,"") ->  | I92: =IF(AND(A92<>"",Deliverables!J89<>""),Deliverables!J89,"") ->  | J92: =IF(AND(A92<>"",Deliverables!K89<>""),Deliverables!K89,"") ->  | K92: =IF(AND(A92<>"",Deliverables!L89<>""),Deliverables!L89,"") -> 
A93: =IF(Deliverables!B90<>"",Deliverables!B90,"") ->  | B93: =IF(AND(A93<>"",Deliverables!C90<>""),Deliverables!C90,"") ->  | C93: =IF(AND(A93<>"",Deliverables!D90<>""),Deliverables!D90,"") ->  | D93: =IF(AND(A93<>"",Deliverables!E90<>""),Deliverables!E90,"") ->  | E93: =IF(AND(A93<>"",Deliverables!F90<>""),Deliverables!F90,"") ->  | F93: =IF(AND(A93<>"",Deliverables!G90<>""),Deliverables!G90,"") ->  | G93: =IF(AND(A93<>"",Deliverables!H90<>""),Deliverables!H90,"") ->  | H93: =IF(AND(A93<>"",Deliverables!I90<>""),Deliverables!I90,"") ->  | I93: =IF(AND(A93<>"",Deliverables!J90<>""),Deliverables!J90,"") ->  | J93: =IF(AND(A93<>"",Deliverables!K90<>""),Deliverables!K90,"") ->  | K93: =IF(AND(A93<>"",Deliverables!L90<>""),Deliverables!L90,"") -> 
A94: =IF(Deliverables!B91<>"",Deliverables!B91,"") ->  | B94: =IF(AND(A94<>"",Deliverables!C91<>""),Deliverables!C91,"") ->  | C94: =IF(AND(A94<>"",Deliverables!D91<>""),Deliverables!D91,"") ->  | D94: =IF(AND(A94<>"",Deliverables!E91<>""),Deliverables!E91,"") ->  | E94: =IF(AND(A94<>"",Deliverables!F91<>""),Deliverables!F91,"") ->  | F94: =IF(AND(A94<>"",Deliverables!G91<>""),Deliverables!G91,"") ->  | G94: =IF(AND(A94<>"",Deliverables!H91<>""),Deliverables!H91,"") ->  | H94: =IF(AND(A94<>"",Deliverables!I91<>""),Deliverables!I91,"") ->  | I94: =IF(AND(A94<>"",Deliverables!J91<>""),Deliverables!J91,"") ->  | J94: =IF(AND(A94<>"",Deliverables!K91<>""),Deliverables!K91,"") ->  | K94: =IF(AND(A94<>"",Deliverables!L91<>""),Deliverables!L91,"") -> 
A95: =IF(Deliverables!B92<>"",Deliverables!B92,"") ->  | B95: =IF(AND(A95<>"",Deliverables!C92<>""),Deliverables!C92,"") ->  | C95: =IF(AND(A95<>"",Deliverables!D92<>""),Deliverables!D92,"") ->  | D95: =IF(AND(A95<>"",Deliverables!E92<>""),Deliverables!E92,"") ->  | E95: =IF(AND(A95<>"",Deliverables!F92<>""),Deliverables!F92,"") ->  | F95: =IF(AND(A95<>"",Deliverables!G92<>""),Deliverables!G92,"") ->  | G95: =IF(AND(A95<>"",Deliverables!H92<>""),Deliverables!H92,"") ->  | H95: =IF(AND(A95<>"",Deliverables!I92<>""),Deliverables!I92,"") ->  | I95: =IF(AND(A95<>"",Deliverables!J92<>""),Deliverables!J92,"") ->  | J95: =IF(AND(A95<>"",Deliverables!K92<>""),Deliverables!K92,"") ->  | K95: =IF(AND(A95<>"",Deliverables!L92<>""),Deliverables!L92,"") -> 
A96: =IF(Deliverables!B93<>"",Deliverables!B93,"") ->  | B96: =IF(AND(A96<>"",Deliverables!C93<>""),Deliverables!C93,"") ->  | C96: =IF(AND(A96<>"",Deliverables!D93<>""),Deliverables!D93,"") ->  | D96: =IF(AND(A96<>"",Deliverables!E93<>""),Deliverables!E93,"") ->  | E96: =IF(AND(A96<>"",Deliverables!F93<>""),Deliverables!F93,"") ->  | F96: =IF(AND(A96<>"",Deliverables!G93<>""),Deliverables!G93,"") ->  | G96: =IF(AND(A96<>"",Deliverables!H93<>""),Deliverables!H93,"") ->  | H96: =IF(AND(A96<>"",Deliverables!I93<>""),Deliverables!I93,"") ->  | I96: =IF(AND(A96<>"",Deliverables!J93<>""),Deliverables!J93,"") ->  | J96: =IF(AND(A96<>"",Deliverables!K93<>""),Deliverables!K93,"") ->  | K96: =IF(AND(A96<>"",Deliverables!L93<>""),Deliverables!L93,"") -> 
A97: =IF(Deliverables!B94<>"",Deliverables!B94,"") ->  | B97: =IF(AND(A97<>"",Deliverables!C94<>""),Deliverables!C94,"") ->  | C97: =IF(AND(A97<>"",Deliverables!D94<>""),Deliverables!D94,"") ->  | D97: =IF(AND(A97<>"",Deliverables!E94<>""),Deliverables!E94,"") ->  | E97: =IF(AND(A97<>"",Deliverables!F94<>""),Deliverables!F94,"") ->  | F97: =IF(AND(A97<>"",Deliverables!G94<>""),Deliverables!G94,"") ->  | G97: =IF(AND(A97<>"",Deliverables!H94<>""),Deliverables!H94,"") ->  | H97: =IF(AND(A97<>"",Deliverables!I94<>""),Deliverables!I94,"") ->  | I97: =IF(AND(A97<>"",Deliverables!J94<>""),Deliverables!J94,"") ->  | J97: =IF(AND(A97<>"",Deliverables!K94<>""),Deliverables!K94,"") ->  | K97: =IF(AND(A97<>"",Deliverables!L94<>""),Deliverables!L94,"") -> 
A98: =IF(Deliverables!B95<>"",Deliverables!B95,"") ->  | B98: =IF(AND(A98<>"",Deliverables!C95<>""),Deliverables!C95,"") ->  | C98: =IF(AND(A98<>"",Deliverables!D95<>""),Deliverables!D95,"") ->  | D98: =IF(AND(A98<>"",Deliverables!E95<>""),Deliverables!E95,"") ->  | E98: =IF(AND(A98<>"",Deliverables!F95<>""),Deliverables!F95,"") ->  | F98: =IF(AND(A98<>"",Deliverables!G95<>""),Deliverables!G95,"") ->  | G98: =IF(AND(A98<>"",Deliverables!H95<>""),Deliverables!H95,"") ->  | H98: =IF(AND(A98<>"",Deliverables!I95<>""),Deliverables!I95,"") ->  | I98: =IF(AND(A98<>"",Deliverables!J95<>""),Deliverables!J95,"") ->  | J98: =IF(AND(A98<>"",Deliverables!K95<>""),Deliverables!K95,"") ->  | K98: =IF(AND(A98<>"",Deliverables!L95<>""),Deliverables!L95,"") -> 
A100: Product Assurance Documents | C100: Table 4 of 5
A101: ID | B101: TITLE | C101: ACRONYM | D101: =D2 -> RR | E101: PDR | F101: CDR | G101: TRR | H101: QAR | I101: IOCR | J101: DCCR | K101: FR
A102: =IF(Deliverables!B97<>"",Deliverables!B97,"") -> S.PA01 | B102: =IF(AND(A102<>"",Deliverables!C97<>""),Deliverables!C97,"") -> PA Document #1 | C102: =IF(AND(A102<>"",Deliverables!D97<>""),Deliverables!D97,"") -> ACR#9 | D102: =IF(AND(A102<>"",Deliverables!E97<>""),Deliverables!E97,"") ->  | E102: =IF(AND(A102<>"",Deliverables!F97<>""),Deliverables!F97,"") ->  | F102: =IF(AND(A102<>"",Deliverables!G97<>""),Deliverables!G97,"") ->  | G102: =IF(AND(A102<>"",Deliverables!H97<>""),Deliverables!H97,"") -> N | H102: =IF(AND(A102<>"",Deliverables!I97<>""),Deliverables!I97,"") -> U | I102: =IF(AND(A102<>"",Deliverables!J97<>""),Deliverables!J97,"") -> U | J102: =IF(AND(A102<>"",Deliverables!K97<>""),Deliverables!K97,"") -> C | K102: =IF(AND(A102<>"",Deliverables!L97<>""),Deliverables!L97,"") -> C
A103: =IF(Deliverables!B98<>"",Deliverables!B98,"") -> S.PA02 | B103: =IF(AND(A103<>"",Deliverables!C98<>""),Deliverables!C98,"") -> PA Document #2 | C103: =IF(AND(A103<>"",Deliverables!D98<>""),Deliverables!D98,"") -> ACR#10 | D103: =IF(AND(A103<>"",Deliverables!E98<>""),Deliverables!E98,"") ->  | E103: =IF(AND(A103<>"",Deliverables!F98<>""),Deliverables!F98,"") ->  | F103: =IF(AND(A103<>"",Deliverables!G98<>""),Deliverables!G98,"") -> N | G103: =IF(AND(A103<>"",Deliverables!H98<>""),Deliverables!H98,"") ->  | H103: =IF(AND(A103<>"",Deliverables!I98<>""),Deliverables!I98,"") -> U | I103: =IF(AND(A103<>"",Deliverables!J98<>""),Deliverables!J98,"") -> U | J103: =IF(AND(A103<>"",Deliverables!K98<>""),Deliverables!K98,"") -> C | K103: =IF(AND(A103<>"",Deliverables!L98<>""),Deliverables!L98,"") -> C
A104: =IF(Deliverables!B99<>"",Deliverables!B99,"") ->  | B104: =IF(AND(A104<>"",Deliverables!C99<>""),Deliverables!C99,"") ->  | C104: =IF(AND(A104<>"",Deliverables!D99<>""),Deliverables!D99,"") ->  | D104: =IF(AND(A104<>"",Deliverables!E99<>""),Deliverables!E99,"") ->  | E104: =IF(AND(A104<>"",Deliverables!F99<>""),Deliverables!F99,"") ->  | F104: =IF(AND(A104<>"",Deliverables!G99<>""),Deliverables!G99,"") ->  | G104: =IF(AND(A104<>"",Deliverables!H99<>""),Deliverables!H99,"") ->  | H104: =IF(AND(A104<>"",Deliverables!I99<>""),Deliverables!I99,"") ->  | I104: =IF(AND(A104<>"",Deliverables!J99<>""),Deliverables!J99,"") ->  | J104: =IF(AND(A104<>"",Deliverables!K99<>""),Deliverables!K99,"") ->  | K104: =IF(AND(A104<>"",Deliverables!L99<>""),Deliverables!L99,"") -> 
A105: =IF(Deliverables!B100<>"",Deliverables!B100,"") ->  | B105: =IF(AND(A105<>"",Deliverables!C100<>""),Deliverables!C100,"") ->  | C105: =IF(AND(A105<>"",Deliverables!D100<>""),Deliverables!D100,"") ->  | D105: =IF(AND(A105<>"",Deliverables!E100<>""),Deliverables!E100,"") ->  | E105: =IF(AND(A105<>"",Deliverables!F100<>""),Deliverables!F100,"") ->  | F105: =IF(AND(A105<>"",Deliverables!G100<>""),Deliverables!G100,"") ->  | G105: =IF(AND(A105<>"",Deliverables!H100<>""),Deliverables!H100,"") ->  | H105: =IF(AND(A105<>"",Deliverables!I100<>""),Deliverables!I100,"") ->  | I105: =IF(AND(A105<>"",Deliverables!J100<>""),Deliverables!J100,"") ->  | J105: =IF(AND(A105<>"",Deliverables!K100<>""),Deliverables!K100,"") ->  | K105: =IF(AND(A105<>"",Deliverables!L100<>""),Deliverables!L100,"") -> 
A106: =IF(Deliverables!B101<>"",Deliverables!B101,"") ->  | B106: =IF(AND(A106<>"",Deliverables!C101<>""),Deliverables!C101,"") ->  | C106: =IF(AND(A106<>"",Deliverables!D101<>""),Deliverables!D101,"") ->  | D106: =IF(AND(A106<>"",Deliverables!E101<>""),Deliverables!E101,"") ->  | E106: =IF(AND(A106<>"",Deliverables!F101<>""),Deliverables!F101,"") ->  | F106: =IF(AND(A106<>"",Deliverables!G101<>""),Deliverables!G101,"") ->  | G106: =IF(AND(A106<>"",Deliverables!H101<>""),Deliverables!H101,"") ->  | H106: =IF(AND(A106<>"",Deliverables!I101<>""),Deliverables!I101,"") ->  | I106: =IF(AND(A106<>"",Deliverables!J101<>""),Deliverables!J101,"") ->  | J106: =IF(AND(A106<>"",Deliverables!K101<>""),Deliverables!K101,"") ->  | K106: =IF(AND(A106<>"",Deliverables!L101<>""),Deliverables!L101,"") -> 
A107: =IF(Deliverables!B102<>"",Deliverables!B102,"") ->  | B107: =IF(AND(A107<>"",Deliverables!C102<>""),Deliverables!C102,"") ->  | C107: =IF(AND(A107<>"",Deliverables!D102<>""),Deliverables!D102,"") ->  | D107: =IF(AND(A107<>"",Deliverables!E102<>""),Deliverables!E102,"") ->  | E107: =IF(AND(A107<>"",Deliverables!F102<>""),Deliverables!F102,"") ->  | F107: =IF(AND(A107<>"",Deliverables!G102<>""),Deliverables!G102,"") ->  | G107: =IF(AND(A107<>"",Deliverables!H102<>""),Deliverables!H102,"") ->  | H107: =IF(AND(A107<>"",Deliverables!I102<>""),Deliverables!I102,"") ->  | I107: =IF(AND(A107<>"",Deliverables!J102<>""),Deliverables!J102,"") ->  | J107: =IF(AND(A107<>"",Deliverables!K102<>""),Deliverables!K102,"") ->  | K107: =IF(AND(A107<>"",Deliverables!L102<>""),Deliverables!L102,"") -> 
A108: =IF(Deliverables!B103<>"",Deliverables!B103,"") ->  | B108: =IF(AND(A108<>"",Deliverables!C103<>""),Deliverables!C103,"") ->  | C108: =IF(AND(A108<>"",Deliverables!D103<>""),Deliverables!D103,"") ->  | D108: =IF(AND(A108<>"",Deliverables!E103<>""),Deliverables!E103,"") ->  | E108: =IF(AND(A108<>"",Deliverables!F103<>""),Deliverables!F103,"") ->  | F108: =IF(AND(A108<>"",Deliverables!G103<>""),Deliverables!G103,"") ->  | G108: =IF(AND(A108<>"",Deliverables!H103<>""),Deliverables!H103,"") ->  | H108: =IF(AND(A108<>"",Deliverables!I103<>""),Deliverables!I103,"") ->  | I108: =IF(AND(A108<>"",Deliverables!J103<>""),Deliverables!J103,"") ->  | J108: =IF(AND(A108<>"",Deliverables!K103<>""),Deliverables!K103,"") ->  | K108: =IF(AND(A108<>"",Deliverables!L103<>""),Deliverables!L103,"") -> 
A109: =IF(Deliverables!B104<>"",Deliverables!B104,"") ->  | B109: =IF(AND(A109<>"",Deliverables!C104<>""),Deliverables!C104,"") ->  | C109: =IF(AND(A109<>"",Deliverables!D104<>""),Deliverables!D104,"") ->  | D109: =IF(AND(A109<>"",Deliverables!E104<>""),Deliverables!E104,"") ->  | E109: =IF(AND(A109<>"",Deliverables!F104<>""),Deliverables!F104,"") ->  | F109: =IF(AND(A109<>"",Deliverables!G104<>""),Deliverables!G104,"") ->  | G109: =IF(AND(A109<>"",Deliverables!H104<>""),Deliverables!H104,"") ->  | H109: =IF(AND(A109<>"",Deliverables!I104<>""),Deliverables!I104,"") ->  | I109: =IF(AND(A109<>"",Deliverables!J104<>""),Deliverables!J104,"") ->  | J109: =IF(AND(A109<>"",Deliverables!K104<>""),Deliverables!K104,"") ->  | K109: =IF(AND(A109<>"",Deliverables!L104<>""),Deliverables!L104,"") -> 
A110: =IF(Deliverables!B105<>"",Deliverables!B105,"") ->  | B110: =IF(AND(A110<>"",Deliverables!C105<>""),Deliverables!C105,"") ->  | C110: =IF(AND(A110<>"",Deliverables!D105<>""),Deliverables!D105,"") ->  | D110: =IF(AND(A110<>"",Deliverables!E105<>""),Deliverables!E105,"") ->  | E110: =IF(AND(A110<>"",Deliverables!F105<>""),Deliverables!F105,"") ->  | F110: =IF(AND(A110<>"",Deliverables!G105<>""),Deliverables!G105,"") ->  | G110: =IF(AND(A110<>"",Deliverables!H105<>""),Deliverables!H105,"") ->  | H110: =IF(AND(A110<>"",Deliverables!I105<>""),Deliverables!I105,"") ->  | I110: =IF(AND(A110<>"",Deliverables!J105<>""),Deliverables!J105,"") ->  | J110: =IF(AND(A110<>"",Deliverables!K105<>""),Deliverables!K105,"") ->  | K110: =IF(AND(A110<>"",Deliverables!L105<>""),Deliverables!L105,"") -> 
A111: =IF(Deliverables!B106<>"",Deliverables!B106,"") ->  | B111: =IF(AND(A111<>"",Deliverables!C106<>""),Deliverables!C106,"") ->  | C111: =IF(AND(A111<>"",Deliverables!D106<>""),Deliverables!D106,"") ->  | D111: =IF(AND(A111<>"",Deliverables!E106<>""),Deliverables!E106,"") ->  | E111: =IF(AND(A111<>"",Deliverables!F106<>""),Deliverables!F106,"") ->  | F111: =IF(AND(A111<>"",Deliverables!G106<>""),Deliverables!G106,"") ->  | G111: =IF(AND(A111<>"",Deliverables!H106<>""),Deliverables!H106,"") ->  | H111: =IF(AND(A111<>"",Deliverables!I106<>""),Deliverables!I106,"") ->  | I111: =IF(AND(A111<>"",Deliverables!J106<>""),Deliverables!J106,"") ->  | J111: =IF(AND(A111<>"",Deliverables!K106<>""),Deliverables!K106,"") ->  | K111: =IF(AND(A111<>"",Deliverables!L106<>""),Deliverables!L106,"") -> 
A112: =IF(Deliverables!B107<>"",Deliverables!B107,"") ->  | B112: =IF(AND(A112<>"",Deliverables!C107<>""),Deliverables!C107,"") ->  | C112: =IF(AND(A112<>"",Deliverables!D107<>""),Deliverables!D107,"") ->  | D112: =IF(AND(A112<>"",Deliverables!E107<>""),Deliverables!E107,"") ->  | E112: =IF(AND(A112<>"",Deliverables!F107<>""),Deliverables!F107,"") ->  | F112: =IF(AND(A112<>"",Deliverables!G107<>""),Deliverables!G107,"") ->  | G112: =IF(AND(A112<>"",Deliverables!H107<>""),Deliverables!H107,"") ->  | H112: =IF(AND(A112<>"",Deliverables!I107<>""),Deliverables!I107,"") ->  | I112: =IF(AND(A112<>"",Deliverables!J107<>""),Deliverables!J107,"") ->  | J112: =IF(AND(A112<>"",Deliverables!K107<>""),Deliverables!K107,"") ->  | K112: =IF(AND(A112<>"",Deliverables!L107<>""),Deliverables!L107,"") -> 
A113: =IF(Deliverables!B108<>"",Deliverables!B108,"") ->  | B113: =IF(AND(A113<>"",Deliverables!C108<>""),Deliverables!C108,"") ->  | C113: =IF(AND(A113<>"",Deliverables!D108<>""),Deliverables!D108,"") ->  | D113: =IF(AND(A113<>"",Deliverables!E108<>""),Deliverables!E108,"") ->  | E113: =IF(AND(A113<>"",Deliverables!F108<>""),Deliverables!F108,"") ->  | F113: =IF(AND(A113<>"",Deliverables!G108<>""),Deliverables!G108,"") ->  | G113: =IF(AND(A113<>"",Deliverables!H108<>""),Deliverables!H108,"") ->  | H113: =IF(AND(A113<>"",Deliverables!I108<>""),Deliverables!I108,"") ->  | I113: =IF(AND(A113<>"",Deliverables!J108<>""),Deliverables!J108,"") ->  | J113: =IF(AND(A113<>"",Deliverables!K108<>""),Deliverables!K108,"") ->  | K113: =IF(AND(A113<>"",Deliverables!L108<>""),Deliverables!L108,"") -> 
A114: =IF(Deliverables!B109<>"",Deliverables!B109,"") ->  | B114: =IF(AND(A114<>"",Deliverables!C109<>""),Deliverables!C109,"") ->  | C114: =IF(AND(A114<>"",Deliverables!D109<>""),Deliverables!D109,"") ->  | D114: =IF(AND(A114<>"",Deliverables!E109<>""),Deliverables!E109,"") ->  | E114: =IF(AND(A114<>"",Deliverables!F109<>""),Deliverables!F109,"") ->  | F114: =IF(AND(A114<>"",Deliverables!G109<>""),Deliverables!G109,"") ->  | G114: =IF(AND(A114<>"",Deliverables!H109<>""),Deliverables!H109,"") ->  | H114: =IF(AND(A114<>"",Deliverables!I109<>""),Deliverables!I109,"") ->  | I114: =IF(AND(A114<>"",Deliverables!J109<>""),Deliverables!J109,"") ->  | J114: =IF(AND(A114<>"",Deliverables!K109<>""),Deliverables!K109,"") ->  | K114: =IF(AND(A114<>"",Deliverables!L109<>""),Deliverables!L109,"") -> 
A115: =IF(Deliverables!B110<>"",Deliverables!B110,"") ->  | B115: =IF(AND(A115<>"",Deliverables!C110<>""),Deliverables!C110,"") ->  | C115: =IF(AND(A115<>"",Deliverables!D110<>""),Deliverables!D110,"") ->  | D115: =IF(AND(A115<>"",Deliverables!E110<>""),Deliverables!E110,"") ->  | E115: =IF(AND(A115<>"",Deliverables!F110<>""),Deliverables!F110,"") ->  | F115: =IF(AND(A115<>"",Deliverables!G110<>""),Deliverables!G110,"") ->  | G115: =IF(AND(A115<>"",Deliverables!H110<>""),Deliverables!H110,"") ->  | H115: =IF(AND(A115<>"",Deliverables!I110<>""),Deliverables!I110,"") ->  | I115: =IF(AND(A115<>"",Deliverables!J110<>""),Deliverables!J110,"") ->  | J115: =IF(AND(A115<>"",Deliverables!K110<>""),Deliverables!K110,"") ->  | K115: =IF(AND(A115<>"",Deliverables!L110<>""),Deliverables!L110,"") -> 
A116: =IF(Deliverables!B111<>"",Deliverables!B111,"") ->  | B116: =IF(AND(A116<>"",Deliverables!C111<>""),Deliverables!C111,"") ->  | C116: =IF(AND(A116<>"",Deliverables!D111<>""),Deliverables!D111,"") ->  | D116: =IF(AND(A116<>"",Deliverables!E111<>""),Deliverables!E111,"") ->  | E116: =IF(AND(A116<>"",Deliverables!F111<>""),Deliverables!F111,"") ->  | F116: =IF(AND(A116<>"",Deliverables!G111<>""),Deliverables!G111,"") ->  | G116: =IF(AND(A116<>"",Deliverables!H111<>""),Deliverables!H111,"") ->  | H116: =IF(AND(A116<>"",Deliverables!I111<>""),Deliverables!I111,"") ->  | I116: =IF(AND(A116<>"",Deliverables!J111<>""),Deliverables!J111,"") ->  | J116: =IF(AND(A116<>"",Deliverables!K111<>""),Deliverables!K111,"") ->  | K116: =IF(AND(A116<>"",Deliverables!L111<>""),Deliverables!L111,"") -> 
A117: =IF(Deliverables!B112<>"",Deliverables!B112,"") ->  | B117: =IF(AND(A117<>"",Deliverables!C112<>""),Deliverables!C112,"") ->  | C117: =IF(AND(A117<>"",Deliverables!D112<>""),Deliverables!D112,"") ->  | D117: =IF(AND(A117<>"",Deliverables!E112<>""),Deliverables!E112,"") ->  | E117: =IF(AND(A117<>"",Deliverables!F112<>""),Deliverables!F112,"") ->  | F117: =IF(AND(A117<>"",Deliverables!G112<>""),Deliverables!G112,"") ->  | G117: =IF(AND(A117<>"",Deliverables!H112<>""),Deliverables!H112,"") ->  | H117: =IF(AND(A117<>"",Deliverables!I112<>""),Deliverables!I112,"") ->  | I117: =IF(AND(A117<>"",Deliverables!J112<>""),Deliverables!J112,"") ->  | J117: =IF(AND(A117<>"",Deliverables!K112<>""),Deliverables!K112,"") ->  | K117: =IF(AND(A117<>"",Deliverables!L112<>""),Deliverables!L112,"") -> 
A118: =IF(Deliverables!B113<>"",Deliverables!B113,"") ->  | B118: =IF(AND(A118<>"",Deliverables!C113<>""),Deliverables!C113,"") ->  | C118: =IF(AND(A118<>"",Deliverables!D113<>""),Deliverables!D113,"") ->  | D118: =IF(AND(A118<>"",Deliverables!E113<>""),Deliverables!E113,"") ->  | E118: =IF(AND(A118<>"",Deliverables!F113<>""),Deliverables!F113,"") ->  | F118: =IF(AND(A118<>"",Deliverables!G113<>""),Deliverables!G113,"") ->  | G118: =IF(AND(A118<>"",Deliverables!H113<>""),Deliverables!H113,"") ->  | H118: =IF(AND(A118<>"",Deliverables!I113<>""),Deliverables!I113,"") ->  | I118: =IF(AND(A118<>"",Deliverables!J113<>""),Deliverables!J113,"") ->  | J118: =IF(AND(A118<>"",Deliverables!K113<>""),Deliverables!K113,"") ->  | K118: =IF(AND(A118<>"",Deliverables!L113<>""),Deliverables!L113,"") -> 
A119: =IF(Deliverables!B114<>"",Deliverables!B114,"") ->  | B119: =IF(AND(A119<>"",Deliverables!C114<>""),Deliverables!C114,"") ->  | C119: =IF(AND(A119<>"",Deliverables!D114<>""),Deliverables!D114,"") ->  | D119: =IF(AND(A119<>"",Deliverables!E114<>""),Deliverables!E114,"") ->  | E119: =IF(AND(A119<>"",Deliverables!F114<>""),Deliverables!F114,"") ->  | F119: =IF(AND(A119<>"",Deliverables!G114<>""),Deliverables!G114,"") ->  | G119: =IF(AND(A119<>"",Deliverables!H114<>""),Deliverables!H114,"") ->  | H119: =IF(AND(A119<>"",Deliverables!I114<>""),Deliverables!I114,"") ->  | I119: =IF(AND(A119<>"",Deliverables!J114<>""),Deliverables!J114,"") ->  | J119: =IF(AND(A119<>"",Deliverables!K114<>""),Deliverables!K114,"") ->  | K119: =IF(AND(A119<>"",Deliverables!L114<>""),Deliverables!L114,"") -> 
A120: =IF(Deliverables!B115<>"",Deliverables!B115,"") ->  | B120: =IF(AND(A120<>"",Deliverables!C115<>""),Deliverables!C115,"") ->  | C120: =IF(AND(A120<>"",Deliverables!D115<>""),Deliverables!D115,"") ->  | D120: =IF(AND(A120<>"",Deliverables!E115<>""),Deliverables!E115,"") ->  | E120: =IF(AND(A120<>"",Deliverables!F115<>""),Deliverables!F115,"") ->  | F120: =IF(AND(A120<>"",Deliverables!G115<>""),Deliverables!G115,"") ->  | G120: =IF(AND(A120<>"",Deliverables!H115<>""),Deliverables!H115,"") ->  | H120: =IF(AND(A120<>"",Deliverables!I115<>""),Deliverables!I115,"") ->  | I120: =IF(AND(A120<>"",Deliverables!J115<>""),Deliverables!J115,"") ->  | J120: =IF(AND(A120<>"",Deliverables!K115<>""),Deliverables!K115,"") ->  | K120: =IF(AND(A120<>"",Deliverables!L115<>""),Deliverables!L115,"") -> 
A121: =IF(Deliverables!B116<>"",Deliverables!B116,"") ->  | B121: =IF(AND(A121<>"",Deliverables!C116<>""),Deliverables!C116,"") ->  | C121: =IF(AND(A121<>"",Deliverables!D116<>""),Deliverables!D116,"") ->  | D121: =IF(AND(A121<>"",Deliverables!E116<>""),Deliverables!E116,"") ->  | E121: =IF(AND(A121<>"",Deliverables!F116<>""),Deliverables!F116,"") ->  | F121: =IF(AND(A121<>"",Deliverables!G116<>""),Deliverables!G116,"") ->  | G121: =IF(AND(A121<>"",Deliverables!H116<>""),Deliverables!H116,"") ->  | H121: =IF(AND(A121<>"",Deliverables!I116<>""),Deliverables!I116,"") ->  | I121: =IF(AND(A121<>"",Deliverables!J116<>""),Deliverables!J116,"") ->  | J121: =IF(AND(A121<>"",Deliverables!K116<>""),Deliverables!K116,"") ->  | K121: =IF(AND(A121<>"",Deliverables!L116<>""),Deliverables!L116,"") -> 
B122: =IF(AND(A122<>"",Deliverables!C117<>""),Deliverables!C117,"") ->  | C122: =IF(AND(A122<>"",Deliverables!D117<>""),Deliverables!D117,"") ->  | D122: =IF(AND(A122<>"",Deliverables!E117<>""),Deliverables!E117,"") ->  | E122: =IF(AND(A122<>"",Deliverables!F117<>""),Deliverables!F117,"") ->  | F122: =IF(AND(A122<>"",Deliverables!G117<>""),Deliverables!G117,"") ->  | G122: =IF(AND(A122<>"",Deliverables!H117<>""),Deliverables!H117,"") ->  | H122: =IF(AND(A122<>"",Deliverables!I117<>""),Deliverables!I117,"") ->  | I122: =IF(AND(A122<>"",Deliverables!J117<>""),Deliverables!J117,"") ->  | J122: =IF(AND(A122<>"",Deliverables!K117<>""),Deliverables!K117,"") ->  | K122: =IF(AND(A122<>"",Deliverables!L117<>""),Deliverables!L117,"") -> 
A123: Software Documents | C123: Table 5 of 5
A124: ID | B124: TITLE | C124: ACRONYM | D124: =D2 -> RR | E124: PDR | F124: CDR | G124: TRR | H124: QAR | I124: IOCR | J124: DCCR | K124: FR
A125: =IF(Deliverables!B118<>"",Deliverables!B118,"") -> S.SW01 | B125: =IF(AND(A125<>"",Deliverables!C118<>""),Deliverables!C118,"") -> SW Document #1 | C125: =IF(AND(A125<>"",Deliverables!D118<>""),Deliverables!D118,"") -> ACR#11 | D125: =IF(AND(A125<>"",Deliverables!E118<>""),Deliverables!E118,"") -> N | E125: =IF(AND(A125<>"",Deliverables!F118<>""),Deliverables!F118,"") -> U | F125: =IF(AND(A125<>"",Deliverables!G118<>""),Deliverables!G118,"") -> U | G125: =IF(AND(A125<>"",Deliverables!H118<>""),Deliverables!H118,"") -> U | H125: =IF(AND(A125<>"",Deliverables!I118<>""),Deliverables!I118,"") -> U | I125: =IF(AND(A125<>"",Deliverables!J118<>""),Deliverables!J118,"") -> U | J125: =IF(AND(A125<>"",Deliverables!K118<>""),Deliverables!K118,"") -> U | K125: =IF(AND(A125<>"",Deliverables!L118<>""),Deliverables!L118,"") -> U
A126: =IF(Deliverables!B119<>"",Deliverables!B119,"") -> S.SW02 | B126: =IF(AND(A126<>"",Deliverables!C119<>""),Deliverables!C119,"") -> SW Document #2 | C126: =IF(AND(A126<>"",Deliverables!D119<>""),Deliverables!D119,"") -> ACR#12 | D126: =IF(AND(A126<>"",Deliverables!E119<>""),Deliverables!E119,"") ->  | E126: =IF(AND(A126<>"",Deliverables!F119<>""),Deliverables!F119,"") ->  | F126: =IF(AND(A126<>"",Deliverables!G119<>""),Deliverables!G119,"") -> N | G126: =IF(AND(A126<>"",Deliverables!H119<>""),Deliverables!H119,"") -> U | H126: =IF(AND(A126<>"",Deliverables!I119<>""),Deliverables!I119,"") -> U | I126: =IF(AND(A126<>"",Deliverables!J119<>""),Deliverables!J119,"") -> U | J126: =IF(AND(A126<>"",Deliverables!K119<>""),Deliverables!K119,"") -> C | K126: =IF(AND(A126<>"",Deliverables!L119<>""),Deliverables!L119,"") -> C
A127: =IF(Deliverables!B120<>"",Deliverables!B120,"") ->  | B127: =IF(AND(A127<>"",Deliverables!C120<>""),Deliverables!C120,"") ->  | C127: =IF(AND(A127<>"",Deliverables!D120<>""),Deliverables!D120,"") ->  | D127: =IF(AND(A127<>"",Deliverables!E120<>""),Deliverables!E120,"") ->  | E127: =IF(AND(A127<>"",Deliverables!F120<>""),Deliverables!F120,"") ->  | F127: =IF(AND(A127<>"",Deliverables!G120<>""),Deliverables!G120,"") ->  | G127: =IF(AND(A127<>"",Deliverables!H120<>""),Deliverables!H120,"") ->  | H127: =IF(AND(A127<>"",Deliverables!I120<>""),Deliverables!I120,"") ->  | I127: =IF(AND(A127<>"",Deliverables!J120<>""),Deliverables!J120,"") ->  | J127: =IF(AND(A127<>"",Deliverables!K120<>""),Deliverables!K120,"") ->  | K127: =IF(AND(A127<>"",Deliverables!L120<>""),Deliverables!L120,"") -> 
A128: =IF(Deliverables!B121<>"",Deliverables!B121,"") ->  | B128: =IF(AND(A128<>"",Deliverables!C121<>""),Deliverables!C121,"") ->  | C128: =IF(AND(A128<>"",Deliverables!D121<>""),Deliverables!D121,"") ->  | D128: =IF(AND(A128<>"",Deliverables!E121<>""),Deliverables!E121,"") ->  | E128: =IF(AND(A128<>"",Deliverables!F121<>""),Deliverables!F121,"") ->  | F128: =IF(AND(A128<>"",Deliverables!G121<>""),Deliverables!G121,"") ->  | G128: =IF(AND(A128<>"",Deliverables!H121<>""),Deliverables!H121,"") ->  | H128: =IF(AND(A128<>"",Deliverables!I121<>""),Deliverables!I121,"") ->  | I128: =IF(AND(A128<>"",Deliverables!J121<>""),Deliverables!J121,"") ->  | J128: =IF(AND(A128<>"",Deliverables!K121<>""),Deliverables!K121,"") ->  | K128: =IF(AND(A128<>"",Deliverables!L121<>""),Deliverables!L121,"") -> 
A129: =IF(Deliverables!B122<>"",Deliverables!B122,"") ->  | B129: =IF(AND(A129<>"",Deliverables!C122<>""),Deliverables!C122,"") ->  | C129: =IF(AND(A129<>"",Deliverables!D122<>""),Deliverables!D122,"") ->  | D129: =IF(AND(A129<>"",Deliverables!E122<>""),Deliverables!E122,"") ->  | E129: =IF(AND(A129<>"",Deliverables!F122<>""),Deliverables!F122,"") ->  | F129: =IF(AND(A129<>"",Deliverables!G122<>""),Deliverables!G122,"") ->  | G129: =IF(AND(A129<>"",Deliverables!H122<>""),Deliverables!H122,"") ->  | H129: =IF(AND(A129<>"",Deliverables!I122<>""),Deliverables!I122,"") ->  | I129: =IF(AND(A129<>"",Deliverables!J122<>""),Deliverables!J122,"") ->  | J129: =IF(AND(A129<>"",Deliverables!K122<>""),Deliverables!K122,"") ->  | K129: =IF(AND(A129<>"",Deliverables!L122<>""),Deliverables!L122,"") -> 
A130: =IF(Deliverables!B123<>"",Deliverables!B123,"") ->  | B130: =IF(AND(A130<>"",Deliverables!C123<>""),Deliverables!C123,"") ->  | C130: =IF(AND(A130<>"",Deliverables!D123<>""),Deliverables!D123,"") ->  | D130: =IF(AND(A130<>"",Deliverables!E123<>""),Deliverables!E123,"") ->  | E130: =IF(AND(A130<>"",Deliverables!F123<>""),Deliverables!F123,"") ->  | F130: =IF(AND(A130<>"",Deliverables!G123<>""),Deliverables!G123,"") ->  | G130: =IF(AND(A130<>"",Deliverables!H123<>""),Deliverables!H123,"") ->  | H130: =IF(AND(A130<>"",Deliverables!I123<>""),Deliverables!I123,"") ->  | I130: =IF(AND(A130<>"",Deliverables!J123<>""),Deliverables!J123,"") ->  | J130: =IF(AND(A130<>"",Deliverables!K123<>""),Deliverables!K123,"") ->  | K130: =IF(AND(A130<>"",Deliverables!L123<>""),Deliverables!L123,"") -> 
A131: =IF(Deliverables!B124<>"",Deliverables!B124,"") ->  | B131: =IF(AND(A131<>"",Deliverables!C124<>""),Deliverables!C124,"") ->  | C131: =IF(AND(A131<>"",Deliverables!D124<>""),Deliverables!D124,"") ->  | D131: =IF(AND(A131<>"",Deliverables!E124<>""),Deliverables!E124,"") ->  | E131: =IF(AND(A131<>"",Deliverables!F124<>""),Deliverables!F124,"") ->  | F131: =IF(AND(A131<>"",Deliverables!G124<>""),Deliverables!G124,"") ->  | G131: =IF(AND(A131<>"",Deliverables!H124<>""),Deliverables!H124,"") ->  | H131: =IF(AND(A131<>"",Deliverables!I124<>""),Deliverables!I124,"") ->  | I131: =IF(AND(A131<>"",Deliverables!J124<>""),Deliverables!J124,"") ->  | J131: =IF(AND(A131<>"",Deliverables!K124<>""),Deliverables!K124,"") ->  | K131: =IF(AND(A131<>"",Deliverables!L124<>""),Deliverables!L124,"") -> 
A132: =IF(Deliverables!B125<>"",Deliverables!B125,"") ->  | B132: =IF(AND(A132<>"",Deliverables!C125<>""),Deliverables!C125,"") ->  | C132: =IF(AND(A132<>"",Deliverables!D125<>""),Deliverables!D125,"") ->  | D132: =IF(AND(A132<>"",Deliverables!E125<>""),Deliverables!E125,"") ->  | E132: =IF(AND(A132<>"",Deliverables!F125<>""),Deliverables!F125,"") ->  | F132: =IF(AND(A132<>"",Deliverables!G125<>""),Deliverables!G125,"") ->  | G132: =IF(AND(A132<>"",Deliverables!H125<>""),Deliverables!H125,"") ->  | H132: =IF(AND(A132<>"",Deliverables!I125<>""),Deliverables!I125,"") ->  | I132: =IF(AND(A132<>"",Deliverables!J125<>""),Deliverables!J125,"") ->  | J132: =IF(AND(A132<>"",Deliverables!K125<>""),Deliverables!K125,"") ->  | K132: =IF(AND(A132<>"",Deliverables!L125<>""),Deliverables!L125,"") -> 
A133: =IF(Deliverables!B126<>"",Deliverables!B126,"") ->  | B133: =IF(AND(A133<>"",Deliverables!C126<>""),Deliverables!C126,"") ->  | C133: =IF(AND(A133<>"",Deliverables!D126<>""),Deliverables!D126,"") ->  | D133: =IF(AND(A133<>"",Deliverables!E126<>""),Deliverables!E126,"") ->  | E133: =IF(AND(A133<>"",Deliverables!F126<>""),Deliverables!F126,"") ->  | F133: =IF(AND(A133<>"",Deliverables!G126<>""),Deliverables!G126,"") ->  | G133: =IF(AND(A133<>"",Deliverables!H126<>""),Deliverables!H126,"") ->  | H133: =IF(AND(A133<>"",Deliverables!I126<>""),Deliverables!I126,"") ->  | I133: =IF(AND(A133<>"",Deliverables!J126<>""),Deliverables!J126,"") ->  | J133: =IF(AND(A133<>"",Deliverables!K126<>""),Deliverables!K126,"") ->  | K133: =IF(AND(A133<>"",Deliverables!L126<>""),Deliverables!L126,"") -> 
A134: =IF(Deliverables!B127<>"",Deliverables!B127,"") ->  | B134: =IF(AND(A134<>"",Deliverables!C127<>""),Deliverables!C127,"") ->  | C134: =IF(AND(A134<>"",Deliverables!D127<>""),Deliverables!D127,"") ->  | D134: =IF(AND(A134<>"",Deliverables!E127<>""),Deliverables!E127,"") ->  | E134: =IF(AND(A134<>"",Deliverables!F127<>""),Deliverables!F127,"") ->  | F134: =IF(AND(A134<>"",Deliverables!G127<>""),Deliverables!G127,"") ->  | G134: =IF(AND(A134<>"",Deliverables!H127<>""),Deliverables!H127,"") ->  | H134: =IF(AND(A134<>"",Deliverables!I127<>""),Deliverables!I127,"") ->  | I134: =IF(AND(A134<>"",Deliverables!J127<>""),Deliverables!J127,"") ->  | J134: =IF(AND(A134<>"",Deliverables!K127<>""),Deliverables!K127,"") ->  | K134: =IF(AND(A134<>"",Deliverables!L127<>""),Deliverables!L127,"") -> 
A135: =IF(Deliverables!B128<>"",Deliverables!B128,"") ->  | B135: =IF(AND(A135<>"",Deliverables!C128<>""),Deliverables!C128,"") ->  | C135: =IF(AND(A135<>"",Deliverables!D128<>""),Deliverables!D128,"") ->  | D135: =IF(AND(A135<>"",Deliverables!E128<>""),Deliverables!E128,"") ->  | E135: =IF(AND(A135<>"",Deliverables!F128<>""),Deliverables!F128,"") ->  | F135: =IF(AND(A135<>"",Deliverables!G128<>""),Deliverables!G128,"") ->  | G135: =IF(AND(A135<>"",Deliverables!H128<>""),Deliverables!H128,"") ->  | H135: =IF(AND(A135<>"",Deliverables!I128<>""),Deliverables!I128,"") ->  | I135: =IF(AND(A135<>"",Deliverables!J128<>""),Deliverables!J128,"") ->  | J135: =IF(AND(A135<>"",Deliverables!K128<>""),Deliverables!K128,"") ->  | K135: =IF(AND(A135<>"",Deliverables!L128<>""),Deliverables!L128,"") -> 
A136: =IF(Deliverables!B129<>"",Deliverables!B129,"") ->  | B136: =IF(AND(A136<>"",Deliverables!C129<>""),Deliverables!C129,"") ->  | C136: =IF(AND(A136<>"",Deliverables!D129<>""),Deliverables!D129,"") ->  | D136: =IF(AND(A136<>"",Deliverables!E129<>""),Deliverables!E129,"") ->  | E136: =IF(AND(A136<>"",Deliverables!F129<>""),Deliverables!F129,"") ->  | F136: =IF(AND(A136<>"",Deliverables!G129<>""),Deliverables!G129,"") ->  | G136: =IF(AND(A136<>"",Deliverables!H129<>""),Deliverables!H129,"") ->  | H136: =IF(AND(A136<>"",Deliverables!I129<>""),Deliverables!I129,"") ->  | I136: =IF(AND(A136<>"",Deliverables!J129<>""),Deliverables!J129,"") ->  | J136: =IF(AND(A136<>"",Deliverables!K129<>""),Deliverables!K129,"") ->  | K136: =IF(AND(A136<>"",Deliverables!L129<>""),Deliverables!L129,"") -> 
A137: =IF(Deliverables!B130<>"",Deliverables!B130,"") ->  | B137: =IF(AND(A137<>"",Deliverables!C130<>""),Deliverables!C130,"") ->  | C137: =IF(AND(A137<>"",Deliverables!D130<>""),Deliverables!D130,"") ->  | D137: =IF(AND(A137<>"",Deliverables!E130<>""),Deliverables!E130,"") ->  | E137: =IF(AND(A137<>"",Deliverables!F130<>""),Deliverables!F130,"") ->  | F137: =IF(AND(A137<>"",Deliverables!G130<>""),Deliverables!G130,"") ->  | G137: =IF(AND(A137<>"",Deliverables!H130<>""),Deliverables!H130,"") ->  | H137: =IF(AND(A137<>"",Deliverables!I130<>""),Deliverables!I130,"") ->  | I137: =IF(AND(A137<>"",Deliverables!J130<>""),Deliverables!J130,"") ->  | J137: =IF(AND(A137<>"",Deliverables!K130<>""),Deliverables!K130,"") ->  | K137: =IF(AND(A137<>"",Deliverables!L130<>""),Deliverables!L130,"") -> 
A138: =IF(Deliverables!B131<>"",Deliverables!B131,"") ->  | B138: =IF(AND(A138<>"",Deliverables!C131<>""),Deliverables!C131,"") ->  | C138: =IF(AND(A138<>"",Deliverables!D131<>""),Deliverables!D131,"") ->  | D138: =IF(AND(A138<>"",Deliverables!E131<>""),Deliverables!E131,"") ->  | E138: =IF(AND(A138<>"",Deliverables!F131<>""),Deliverables!F131,"") ->  | F138: =IF(AND(A138<>"",Deliverables!G131<>""),Deliverables!G131,"") ->  | G138: =IF(AND(A138<>"",Deliverables!H131<>""),Deliverables!H131,"") ->  | H138: =IF(AND(A138<>"",Deliverables!I131<>""),Deliverables!I131,"") ->  | I138: =IF(AND(A138<>"",Deliverables!J131<>""),Deliverables!J131,"") ->  | J138: =IF(AND(A138<>"",Deliverables!K131<>""),Deliverables!K131,"") ->  | K138: =IF(AND(A138<>"",Deliverables!L131<>""),Deliverables!L131,"") -> 
A139: =IF(Deliverables!B132<>"",Deliverables!B132,"") ->  | B139: =IF(AND(A139<>"",Deliverables!C132<>""),Deliverables!C132,"") ->  | C139: =IF(AND(A139<>"",Deliverables!D132<>""),Deliverables!D132,"") ->  | D139: =IF(AND(A139<>"",Deliverables!E132<>""),Deliverables!E132,"") ->  | E139: =IF(AND(A139<>"",Deliverables!F132<>""),Deliverables!F132,"") ->  | F139: =IF(AND(A139<>"",Deliverables!G132<>""),Deliverables!G132,"") ->  | G139: =IF(AND(A139<>"",Deliverables!H132<>""),Deliverables!H132,"") ->  | H139: =IF(AND(A139<>"",Deliverables!I132<>""),Deliverables!I132,"") ->  | I139: =IF(AND(A139<>"",Deliverables!J132<>""),Deliverables!J132,"") ->  | J139: =IF(AND(A139<>"",Deliverables!K132<>""),Deliverables!K132,"") ->  | K139: =IF(AND(A139<>"",Deliverables!L132<>""),Deliverables!L132,"") -> 
A140: =IF(Deliverables!B133<>"",Deliverables!B133,"") ->  | B140: =IF(AND(A140<>"",Deliverables!C133<>""),Deliverables!C133,"") ->  | C140: =IF(AND(A140<>"",Deliverables!D133<>""),Deliverables!D133,"") ->  | D140: =IF(AND(A140<>"",Deliverables!E133<>""),Deliverables!E133,"") ->  | E140: =IF(AND(A140<>"",Deliverables!F133<>""),Deliverables!F133,"") ->  | F140: =IF(AND(A140<>"",Deliverables!G133<>""),Deliverables!G133,"") ->  | G140: =IF(AND(A140<>"",Deliverables!H133<>""),Deliverables!H133,"") ->  | H140: =IF(AND(A140<>"",Deliverables!I133<>""),Deliverables!I133,"") ->  | I140: =IF(AND(A140<>"",Deliverables!J133<>""),Deliverables!J133,"") ->  | J140: =IF(AND(A140<>"",Deliverables!K133<>""),Deliverables!K133,"") ->  | K140: =IF(AND(A140<>"",Deliverables!L133<>""),Deliverables!L133,"") -> 
A141: =IF(Deliverables!B134<>"",Deliverables!B134,"") ->  | B141: =IF(AND(A141<>"",Deliverables!C134<>""),Deliverables!C134,"") ->  | C141: =IF(AND(A141<>"",Deliverables!D134<>""),Deliverables!D134,"") ->  | D141: =IF(AND(A141<>"",Deliverables!E134<>""),Deliverables!E134,"") ->  | E141: =IF(AND(A141<>"",Deliverables!F134<>""),Deliverables!F134,"") ->  | F141: =IF(AND(A141<>"",Deliverables!G134<>""),Deliverables!G134,"") ->  | G141: =IF(AND(A141<>"",Deliverables!H134<>""),Deliverables!H134,"") ->  | H141: =IF(AND(A141<>"",Deliverables!I134<>""),Deliverables!I134,"") ->  | I141: =IF(AND(A141<>"",Deliverables!J134<>""),Deliverables!J134,"") ->  | J141: =IF(AND(A141<>"",Deliverables!K134<>""),Deliverables!K134,"") ->  | K141: =IF(AND(A141<>"",Deliverables!L134<>""),Deliverables!L134,"") -> 
A142: =IF(Deliverables!B135<>"",Deliverables!B135,"") ->  | B142: =IF(AND(A142<>"",Deliverables!C135<>""),Deliverables!C135,"") ->  | C142: =IF(AND(A142<>"",Deliverables!D135<>""),Deliverables!D135,"") ->  | D142: =IF(AND(A142<>"",Deliverables!E135<>""),Deliverables!E135,"") ->  | E142: =IF(AND(A142<>"",Deliverables!F135<>""),Deliverables!F135,"") ->  | F142: =IF(AND(A142<>"",Deliverables!G135<>""),Deliverables!G135,"") ->  | G142: =IF(AND(A142<>"",Deliverables!H135<>""),Deliverables!H135,"") ->  | H142: =IF(AND(A142<>"",Deliverables!I135<>""),Deliverables!I135,"") ->  | I142: =IF(AND(A142<>"",Deliverables!J135<>""),Deliverables!J135,"") ->  | J142: =IF(AND(A142<>"",Deliverables!K135<>""),Deliverables!K135,"") ->  | K142: =IF(AND(A142<>"",Deliverables!L135<>""),Deliverables!L135,"") -> 
A143: =IF(Deliverables!B136<>"",Deliverables!B136,"") ->  | B143: =IF(AND(A143<>"",Deliverables!C136<>""),Deliverables!C136,"") ->  | C143: =IF(AND(A143<>"",Deliverables!D136<>""),Deliverables!D136,"") ->  | D143: =IF(AND(A143<>"",Deliverables!E136<>""),Deliverables!E136,"") ->  | E143: =IF(AND(A143<>"",Deliverables!F136<>""),Deliverables!F136,"") ->  | F143: =IF(AND(A143<>"",Deliverables!G136<>""),Deliverables!G136,"") ->  | G143: =IF(AND(A143<>"",Deliverables!H136<>""),Deliverables!H136,"") ->  | H143: =IF(AND(A143<>"",Deliverables!I136<>""),Deliverables!I136,"") ->  | I143: =IF(AND(A143<>"",Deliverables!J136<>""),Deliverables!J136,"") ->  | J143: =IF(AND(A143<>"",Deliverables!K136<>""),Deliverables!K136,"") ->  | K143: =IF(AND(A143<>"",Deliverables!L136<>""),Deliverables!L136,"") -> 
A144: =IF(Deliverables!B137<>"",Deliverables!B137,"") ->  | B144: =IF(AND(A144<>"",Deliverables!C137<>""),Deliverables!C137,"") ->  | C144: =IF(AND(A144<>"",Deliverables!D137<>""),Deliverables!D137,"") ->  | D144: =IF(AND(A144<>"",Deliverables!E137<>""),Deliverables!E137,"") ->  | E144: =IF(AND(A144<>"",Deliverables!F137<>""),Deliverables!F137,"") ->  | F144: =IF(AND(A144<>"",Deliverables!G137<>""),Deliverables!G137,"") ->  | G144: =IF(AND(A144<>"",Deliverables!H137<>""),Deliverables!H137,"") ->  | H144: =IF(AND(A144<>"",Deliverables!I137<>""),Deliverables!I137,"") ->  | I144: =IF(AND(A144<>"",Deliverables!J137<>""),Deliverables!J137,"") ->  | J144: =IF(AND(A144<>"",Deliverables!K137<>""),Deliverables!K137,"") ->  | K144: =IF(AND(A144<>"",Deliverables!L137<>""),Deliverables!L137,"") -> 

Sheet references (hidden)
A1: ESRIN | B1: ESA – ESRIN Largo Galileo Galilei, 1 00044 FRASCATI, Italy
A2: ESTEC | B2: ESA – ESTEC Keplerlaan 1, 2201 AZ Noordwijk, The Netherlands
A3: ESOC | B3: ESA – ESOC Robert-Bosch Strasse 5, 64293 Darmstadt, Germany
A4: ESAC | B4: ESA – ESAC Camino Bajo del Castillo s/n, 28692 Villafranca del Castillo, Madrid, Espagne
A5: ECSAT | B5: ESA – ECSAT Fermi Avenue Harwell Campus Didcot, Oxfordshire OX11 0FD United Kingdom
A6: EAC | B6: ESA – EAC Linder Hoehe, 51147 Köln, Allemagne
A7: ESA HQ | B7: ESA – ESA HQ Bertrand 24 rue du Général Bertrand CS 30798 75345 Paris CEDEX 7 France
B10: Austria | C10: AT
B11: Belgium | C11: BE
B12: Switzerland | C12: CH
B13: Czech Republic | C13: CZ
B14: Germany | C14: DE
B15: Denmark | C15: DK
B16: Spain | C16: ES
B17: Finland | C17: FI
B18: France | C18: FR
B19: Greece | C19: GR
B20: Hungary | C20: HU
B21: Ireland | C21: IE
B22: Italy | C22: IT
B23: Luxembourg | C23: LU
B24: Netherlands | C24: NL
B25: Norway | C25: NO
B26: Poland | C26: PL
B27: Portugal | C27: PT
B28: Romania | C28: RO
B29: Sweden | C29: SE
B30: United Kingdom | C30: UK
B31: Slovenia | C31: SL
B32: Estonia | C32: EE
C39: yes
C40: no
B47: Weeks before final delivery | C47: 4
B49: key personel reference
B50: nego MoM
B51: full proposal
B52: full proposal and nego MoM
B55: Firm Fixed Price
B56: Ceiling Price
